﻿Directorate,Service,Division,Responsible Unit,Expense Type,Payment Date,Trans No,Net Amount,Supplier Name
Childrens Services,Cultural and Related Services,Open Spaces,Mile End Park,Repairs and Maintenance - Responsive - Buildings,04/04/2018,5015730,"5,090.00",JC Coster (Metalworks) Ltd
Childrens Services,Children's Social Care,Support Service and Management Costs,Schools Catering,Kitchen Supplies - Food and Beverages,04/04/2018,5016511,528.82,Thomas Ridley & Son Ltd
Childrens Services,Children's Social Care,Support Service and Management Costs,Schools Catering,Kitchen Supplies - Food and Beverages,04/04/2018,5016514,456.88,Thomas Ridley & Son Ltd
Childrens Services,Children's Social Care,Support Service and Management Costs,Schools Catering,Kitchen Supplies - Food and Beverages,04/04/2018,5016516,528.86,Thomas Ridley & Son Ltd
Childrens Services,Children's Social Care,Support Service and Management Costs,Schools Catering,Kitchen Supplies - Food and Beverages,04/04/2018,5016518,663.89,Thomas Ridley & Son Ltd
Childrens Services,Children's Social Care,Support Service and Management Costs,Schools Catering,Kitchen Supplies - Food and Beverages,04/04/2018,5016520,"1,119.91",Thomas Ridley & Son Ltd
Childrens Services,Children's Social Care,Support Service and Management Costs,Schools Catering,Kitchen Supplies - Food and Beverages,04/04/2018,5016521,328.96,Thomas Ridley & Son Ltd
Childrens Services,Children's Social Care,Support Service and Management Costs,Schools Catering,Kitchen Supplies - Food and Beverages,04/04/2018,5016522,675.12,Thomas Ridley & Son Ltd
Childrens Services,Children's Social Care,Support Service and Management Costs,"Mulberry Caf�		",Kitchen Supplies - Food and Beverages,04/04/2018,5016623,340.62,Thomas Ridley & Son Ltd
Childrens Services,Children's Social Care,Support Service and Management Costs,Sch. Meals A/c - Central Production Unit,Kitchen Supplies - Food and Beverages,04/04/2018,5016624,"1,457.86",Thomas Ridley & Son Ltd
Childrens Services,Children's Social Care,Support Service and Management Costs,Schools Catering,Kitchen Supplies - Food and Beverages,04/04/2018,5016766,826.48,Thomas Ridley & Son Ltd
Childrens Services,Children's Social Care,Support Service and Management Costs,Schools Catering,Kitchen Supplies - Food and Beverages,04/04/2018,5016776,360.75,Thomas Ridley & Son Ltd
Childrens Services,Children's Social Care,Support Service and Management Costs,Schools Catering,Kitchen Supplies - Food and Beverages,04/04/2018,5016786,622.79,Thomas Ridley & Son Ltd
Childrens Services,Children's Social Care,Support Service and Management Costs,Schools Catering,Kitchen Supplies - Food and Beverages,04/04/2018,5016794,789.97,Thomas Ridley & Son Ltd
Childrens Services,Children's Social Care,Support Service and Management Costs,Schools Catering,Kitchen Supplies - Food and Beverages,04/04/2018,5016812,846.93,Thomas Ridley & Son Ltd
Childrens Services,Children's Social Care,Support Service and Management Costs,Schools Catering,Kitchen Supplies - Food and Beverages,04/04/2018,5016822,667.67,Thomas Ridley & Son Ltd
Childrens Services,Children's Social Care,Support Service and Management Costs,Schools Catering,Kitchen Supplies - Food and Beverages,04/04/2018,5016836,322.13,Thomas Ridley & Son Ltd
Childrens Services,Children's Social Care,Support Service and Management Costs,Schools Catering,Kitchen Supplies - Food and Beverages,04/04/2018,5016845,456.09,Thomas Ridley & Son Ltd
Childrens Services,Children's Social Care,Support Service and Management Costs,Schools Catering,Kitchen Supplies - Food and Beverages,04/04/2018,5016849,542.08,Thomas Ridley & Son Ltd
Childrens Services,Children's Social Care,Support Service and Management Costs,Schools Catering,Kitchen Supplies - Food and Beverages,04/04/2018,5016853,915.21,Thomas Ridley & Son Ltd
Childrens Services,Children's Social Care,Support Service and Management Costs,Schools Catering,Kitchen Supplies - Food and Beverages,04/04/2018,5016860,443.75,Thomas Ridley & Son Ltd
Childrens Services,Children's Social Care,Support Service and Management Costs,Schools Catering,Kitchen Supplies - Food and Beverages,04/04/2018,5016863,275.18,Thomas Ridley & Son Ltd
Childrens Services,Children's Social Care,Support Service and Management Costs,Schools Catering,Kitchen Supplies - Food and Beverages,04/04/2018,5016866,810.88,Thomas Ridley & Son Ltd
Childrens Services,Children's Social Care,Support Service and Management Costs,Schools Catering,Kitchen Supplies - Food and Beverages,04/04/2018,5016869,783.34,Thomas Ridley & Son Ltd
Childrens Services,Children's Social Care,Support Service and Management Costs,Schools Catering,Kitchen Supplies - Food and Beverages,04/04/2018,5016872,575.97,Thomas Ridley & Son Ltd
Childrens Services,Children's Social Care,Support Service and Management Costs,Schools Catering,Kitchen Supplies - Food and Beverages,04/04/2018,5016875,291.70,Thomas Ridley & Son Ltd
Childrens Services,Children's Social Care,Support Service and Management Costs,Schools Catering,Kitchen Supplies - Food and Beverages,04/04/2018,5016878,869.50,Thomas Ridley & Son Ltd
Childrens Services,Children's Social Care,Support Service and Management Costs,Schools Catering,Kitchen Supplies - Food and Beverages,04/04/2018,5016884,699.12,Thomas Ridley & Son Ltd
Childrens Services,Children's Social Care,Support Service and Management Costs,Schools Catering,Kitchen Supplies - Food and Beverages,04/04/2018,5016887,484.54,Thomas Ridley & Son Ltd
Childrens Services,Children's Social Care,Support Service and Management Costs,Schools Catering,Kitchen Supplies - Food and Beverages,04/04/2018,5016896,334.82,Thomas Ridley & Son Ltd
Childrens Services,Children's Social Care,Support Service and Management Costs,Schools Catering,Kitchen Supplies - Food and Beverages,04/04/2018,5016899,548.56,Thomas Ridley & Son Ltd
Childrens Services,Children's Social Care,Support Service and Management Costs,Schools Catering,Kitchen Supplies - Food and Beverages,04/04/2018,5016901,343.12,Thomas Ridley & Son Ltd
Childrens Services,Children's Social Care,Support Service and Management Costs,Schools Catering,Kitchen Supplies - Food and Beverages,04/04/2018,5016903,352.78,Thomas Ridley & Son Ltd
Childrens Services,Children's Social Care,Support Service and Management Costs,Schools Catering,Kitchen Supplies - Food and Beverages,04/04/2018,5016905,323.76,Thomas Ridley & Son Ltd
Childrens Services,Children's Social Care,Support Service and Management Costs,Schools Catering,Kitchen Supplies - Food and Beverages,04/04/2018,5016907,355.21,Thomas Ridley & Son Ltd
Childrens Services,Children's Social Care,Support Service and Management Costs,Schools Catering,Kitchen Supplies - Food and Beverages,04/04/2018,5016909,622.67,Thomas Ridley & Son Ltd
Childrens Services,Children's Social Care,Support Service and Management Costs,Schools Catering,Kitchen Supplies - Food and Beverages,04/04/2018,5016911,712.20,Thomas Ridley & Son Ltd
Childrens Services,Children's Social Care,Support Service and Management Costs,Schools Catering,Kitchen Supplies - Food and Beverages,04/04/2018,5016913,401.88,Thomas Ridley & Son Ltd
Childrens Services,Children's Social Care,Support Service and Management Costs,Schools Catering,Kitchen Supplies - Food and Beverages,04/04/2018,5016915,278.34,Thomas Ridley & Son Ltd
Childrens Services,Children's Social Care,Support Service and Management Costs,Schools Catering,Kitchen Supplies - Food and Beverages,04/04/2018,5016917,491.10,Thomas Ridley & Son Ltd
Childrens Services,Children's Social Care,Support Service and Management Costs,Schools Catering,Kitchen Supplies - Food and Beverages,04/04/2018,5016923,762.51,Thomas Ridley & Son Ltd
Childrens Services,Children's Social Care,Support Service and Management Costs,Schools Catering,Kitchen Supplies - Food and Beverages,04/04/2018,5016925,445.03,Thomas Ridley & Son Ltd
Childrens Services,Children's Social Care,Support Service and Management Costs,Schools Catering,Kitchen Supplies - Food and Beverages,04/04/2018,5016927,440.42,Thomas Ridley & Son Ltd
Childrens Services,Children's Social Care,Children Looked After,S23-Resi-P&V/OLA-Child Home,Childrens Act Section 23 - Placement Fee,04/04/2018,5017008,"5,092.74",Green Harvest Capital Consulting Ltd
Childrens Services,Education Services,Early Years,Mary Sambrook,Repairs and Maintenance - Responsive - Repair & Maintenance,04/04/2018,5017027,400.00,JC Coster (Metalworks) Ltd
Childrens Services,Education Services,Early Years,Collingwood,Educational/Training Supplies - Arts & Crafts,04/04/2018,5017037,336.05,ESPO
Childrens Services,Education Services,Early Years,John Smith,Educational/Training Supplies - Arts & Crafts,04/04/2018,5017039,314.86,ESPO
Childrens Services,Children's Social Care,Support Service and Management Costs,Swanlea,Kitchen Supplies - Food and Beverages,04/04/2018,5017053,"1,550.66",Thomas Ridley & Son Ltd
Childrens Services,Children's Social Care,Children Looked After,Virtual School PPG,Agency Staff - Associations,04/04/2018,5017061,690.45,Academics ltd
Childrens Services,Children's Social Care,Children Looked After,Virtual School PPG,Agency Staff - Associations,04/04/2018,5017062,690.45,Academics ltd
Childrens Services,Children's Social Care,Children Looked After,Virtual School PPG,Agency Staff - Associations,04/04/2018,5017063,"1,150.75",Academics ltd
Childrens Services,Children's Social Care,Children Looked After,Virtual School PPG,Agency Staff - Associations,04/04/2018,5017064,920.60,Academics ltd
Childrens Services,Children's Social Care,Support Service and Management Costs,Schools Catering,Kitchen Supplies - Food and Beverages,04/04/2018,5017176,633.65,Thomas Ridley & Son Ltd
Childrens Services,Children's Social Care,Support Service and Management Costs,Schools Catering,Kitchen Supplies - Food and Beverages,04/04/2018,5017189,580.74,Thomas Ridley & Son Ltd
Childrens Services,Children's Social Care,Support Service and Management Costs,Schools Catering,Kitchen Supplies - Food and Beverages,04/04/2018,5017199,348.61,Thomas Ridley & Son Ltd
Childrens Services,Children's Social Care,Support Service and Management Costs,Schools Catering,Kitchen Supplies - Food and Beverages,04/04/2018,5017207,705.44,Thomas Ridley & Son Ltd
Childrens Services,Children's Social Care,Support Service and Management Costs,Schools Catering,Kitchen Supplies - Food and Beverages,04/04/2018,5017213,285.69,Thomas Ridley & Son Ltd
Childrens Services,Children's Social Care,Support Service and Management Costs,Schools Catering,Kitchen Supplies - Food and Beverages,04/04/2018,5017394,359.14,Thomas Ridley & Son Ltd
Childrens Services,Children's Social Care,Support Service and Management Costs,Schools Catering,Kitchen Supplies - Food and Beverages,04/04/2018,5017416,370.37,Thomas Ridley & Son Ltd
Childrens Services,Children's Social Care,Support Service and Management Costs,Schools Catering,Kitchen Supplies - Food and Beverages,04/04/2018,5017419,521.44,Thomas Ridley & Son Ltd
Childrens Services,Children's Social Care,Support Service and Management Costs,Schools Catering,Kitchen Supplies - Food and Beverages,04/04/2018,5017428,444.56,Thomas Ridley & Son Ltd
Childrens Services,Children's Social Care,Support Service and Management Costs,Schools Catering,Kitchen Supplies - Food and Beverages,04/04/2018,5017431,608.08,Thomas Ridley & Son Ltd
Childrens Services,Children's Social Care,Support Service and Management Costs,Schools Catering,Kitchen Supplies - Food and Beverages,04/04/2018,5017434,695.16,Thomas Ridley & Son Ltd
Childrens Services,Children's Social Care,Support Service and Management Costs,Schools Catering,Kitchen Supplies - Food and Beverages,04/04/2018,5017437,339.24,Thomas Ridley & Son Ltd
Childrens Services,Children's Social Care,Support Service and Management Costs,Schools Catering,Kitchen Supplies - Food and Beverages,04/04/2018,5017440,706.02,Thomas Ridley & Son Ltd
Childrens Services,Children's Social Care,Support Service and Management Costs,Schools Catering,Kitchen Supplies - Food and Beverages,04/04/2018,5017443,470.07,Thomas Ridley & Son Ltd
Childrens Services,Children's Social Care,Children Looked After,Virtual School PPG,Third Party Payments - Payments to Schools,04/04/2018,5017668,"1,000.00",The Federation of Orchard & Southwold Schs
Childrens Services,Education Services,Early Years,Mile End CC,Property Leases - Buildings,04/04/2018,5017671,"2,035.46",Eastend Homes LTD
Childrens Services,Education Services,Early Years,John Smith CC,Services - Professional Fees - Consultants Fees,04/04/2018,5018496,500.00,Agilisys Professional Services
Childrens Services,Children's Social Care,Commissioning and Social Work,Emergency Duty Team,Services - Professional Fees - Consultants Fees,04/04/2018,5018499,250.00,Agilisys Professional Services
Childrens Services,Children's Social Care,Children's and Young People's Safety,Prevention of Violent Extremism - FSP,Services - Professional Fees - Consultants Fees,04/04/2018,5018514,500.00,Agilisys Professional Services
Childrens Services,Cultural and Related Services,Culture & Heritage,Arts-Park Events,Events & Exhibition Supplies,04/04/2018,5018553,535.00,Community Link Trading Ltd
Childrens Services,Children's Social Care,Support Service and Management Costs,Sch. Meals A/c - Central Production Unit,Kitchen Supplies - Food and Beverages,04/04/2018,5018692,606.10,William White Meats Ltd
Childrens Services,Children's Social Care,Support Service and Management Costs,Schools Catering,Kitchen Supplies - Food and Beverages,04/04/2018,5018818,288.66,William White Meats Ltd
Childrens Services,Children's Social Care,Support Service and Management Costs,Schools Catering,Kitchen Supplies - Food and Beverages,04/04/2018,5018991,396.50,William White Meats Ltd
Childrens Services,Children's Social Care,Children Looked After,Virtual School PPG,Third Party Payments - Payments to Schools,04/04/2018,5019026,450.00,Doncaster Deaf Trust
Childrens Services,Children's Social Care,Support Service and Management Costs,Schools Catering,Materials - Cleaning Materials,04/04/2018,5019031,282.38,The Maintenance Supply Co Ltd
Childrens Services,Children's Social Care,Support Service and Management Costs,Building Cleaning,Materials - Cleaning Materials,04/04/2018,5019033,"3,748.50",The Maintenance Supply Co Ltd
Childrens Services,Children's Social Care,Children Looked After,Virtual School PPG,Third Party Payments - Payments to Schools,04/04/2018,5019160,430.00,The Rowans AP Academy
Childrens Services,Children's Social Care,Support Service and Management Costs,Schools Catering,Kitchen Supplies - Food and Beverages,04/04/2018,5019356,459.66,William White Meats Ltd
Childrens Services,Education Services,Early Years,Isle of Dogs. CC,Educational/Training Supplies - Curriculum Visits/Activities,04/04/2018,5020178,484.70,Eduzone Ltd
Childrens Services,Children's Social Care,Children Looked After,S23-Resi-P&V/OLA-Child Home,Childrens Act Section 23 - Placement Fee,04/04/2018,5020195,"12,188.40",Bridge Communities Ltd
Childrens Services,Children's Social Care,Children's and Young People's Safety,Community Safeguarding,Catering - Hospitality,04/04/2018,5020255,350.00,Aderonke's Food Catering
Childrens Services,Education Services,Other Strategic Functions,High Needs Other Boroughs,Third Party Payments - Payments to Schools,04/04/2018,5020284,"24,504.75",The Garden
Childrens Services,Children's Social Care,Children Looked After,S23 Fam Pl P&V-F/Care,Childrens Act Section 23 - Placement Fee,04/04/2018,5020592,"3,145.88",Children First Fostering Agency LTD
Childrens Services,Children's Social Care,Children Looked After,S23 Fam Pl P&V-F/Care,Childrens Act Section 23 - Placement Fee,04/04/2018,5020593,"3,173.78",Children First Fostering Agency LTD
Childrens Services,Education Services,Other Strategic Functions,Special Education Needs GF,Third Party Payments - Other Agencies,04/04/2018,5020595,"80,000.00",Barts Health NHS Trust
Childrens Services,Education Services,Other Strategic Functions,Special Education Needs DSG,Payments to Private Contractors - Private Contractor,04/04/2018,5020595,"20,000.00",Barts Health NHS Trust
Childrens Services,Children's Social Care,Support Service and Management Costs,Welfare Catering,Kitchen Supplies - Food and Beverages,04/04/2018,5020649,529.77,William White Meats Ltd
Childrens Services,Children's Social Care,Children Looked After,S23 Fam Pl P&V-F/Care,Childrens Act Section 23 - Placement Fee,04/04/2018,5020697,"3,145.88",Children First Fostering Agency LTD
Childrens Services,Children's Social Care,Commissioning and Social Work,Emergency Duty Team,Computing - Purchase of Software,04/04/2018,5020994,"1,483.94",Specialist Computer Centres PLC
Childrens Services,Children's Social Care,Support Service and Management Costs,Schools Catering,Repairs and Maintenance - Responsive - General,04/04/2018,5021094,588.00,Lambourne Refrigeration
Childrens Services,Cultural and Related Services,Culture & Heritage,Arts-Park Events,Events & Exhibition Supplies,04/04/2018,5022033,269.00,TMP UK Ltd
Childrens Services,Children's Social Care,Children Looked After,Virtual School PPG,Third Party Payments - Payments to Schools,04/04/2018,5022130,300.00,Cheam Fields Primary Academy
Childrens Services,Education Services,Other Strategic Functions,SEN External Travel,Non Staff Transport Costs - Reimbursement,04/04/2018,5025933,"13,031.00",Healthcare and Transport Services Group Ltd
Childrens Services,Education Services,Other Strategic Functions,SEN External Travel,Non Staff Transport Costs - Reimbursement,04/04/2018,5030546,"2,379.00",Sam's Cars
Childrens Services,Children's Social Care,Children Looked After,C.B.C & Fam.Prev/Support-Mgmnt,Third Party Payments - Social Services,04/04/2018,5030576,"91,186.00",TCS SERVICES LTD
Childrens Services,Children's Social Care,Support Service and Management Costs,Welfare Catering,Kitchen Supplies - Food and Beverages,04/04/2018,5030578,374.26,William White Meats Ltd
Childrens Services,Children's Social Care,Support Service and Management Costs,Swanlea,Kitchen Supplies - Food and Beverages,04/04/2018,5030716,"1,836.68",Thomas Ridley & Son Ltd
Childrens Services,Children's Social Care,Support Service and Management Costs,Welfare Catering,Kitchen Supplies - Food and Beverages,04/04/2018,5030725,406.98,William White Meats Ltd
Childrens Services,Children's Social Care,Support Service and Management Costs,Schools Catering,Kitchen Supplies - Food and Beverages,04/04/2018,5030755,534.74,Thomas Ridley & Son Ltd
Childrens Services,Children's Social Care,Support Service and Management Costs,Schools Catering,Kitchen Supplies - Food and Beverages,04/04/2018,5030784,448.54,Thomas Ridley & Son Ltd
Childrens Services,Children's Social Care,Support Service and Management Costs,Schools Catering,Kitchen Supplies - Food and Beverages,04/04/2018,5030786,571.69,Thomas Ridley & Son Ltd
Childrens Services,Children's Social Care,Support Service and Management Costs,Schools Catering,Kitchen Supplies - Food and Beverages,04/04/2018,5030796,528.05,Thomas Ridley & Son Ltd
Childrens Services,Children's Social Care,Support Service and Management Costs,Schools Catering,Kitchen Supplies - Food and Beverages,04/04/2018,5030806,"1,206.58",Thomas Ridley & Son Ltd
Childrens Services,Children's Social Care,Support Service and Management Costs,Schools Catering,Kitchen Supplies - Food and Beverages,04/04/2018,5030807,431.78,Thomas Ridley & Son Ltd
Childrens Services,Children's Social Care,Support Service and Management Costs,Schools Catering,Kitchen Supplies - Food and Beverages,04/04/2018,5030808,344.20,Thomas Ridley & Son Ltd
Childrens Services,Children's Social Care,Support Service and Management Costs,Schools Catering,Kitchen Supplies - Food and Beverages,04/04/2018,5030810,957.27,Thomas Ridley & Son Ltd
Childrens Services,Children's Social Care,Support Service and Management Costs,Schools Catering,Kitchen Supplies - Food and Beverages,04/04/2018,5030811,361.65,Thomas Ridley & Son Ltd
Childrens Services,Children's Social Care,Support Service and Management Costs,Schools Catering,Kitchen Supplies - Food and Beverages,04/04/2018,5030813,306.05,Thomas Ridley & Son Ltd
Childrens Services,Children's Social Care,Support Service and Management Costs,Schools Catering,Kitchen Supplies - Food and Beverages,04/04/2018,5030814,349.86,Thomas Ridley & Son Ltd
Childrens Services,Children's Social Care,Support Service and Management Costs,Schools Catering,Kitchen Supplies - Food and Beverages,04/04/2018,5030818,276.40,Thomas Ridley & Son Ltd
Childrens Services,Children's Social Care,Support Service and Management Costs,Schools Catering,Kitchen Supplies - Food and Beverages,04/04/2018,5030821,586.15,Thomas Ridley & Son Ltd
Childrens Services,Children's Social Care,Support Service and Management Costs,Schools Catering,Kitchen Supplies - Food and Beverages,04/04/2018,5030825,452.23,Thomas Ridley & Son Ltd
Childrens Services,Children's Social Care,Support Service and Management Costs,Schools Catering,Kitchen Supplies - Food and Beverages,04/04/2018,5030826,259.73,Thomas Ridley & Son Ltd
Childrens Services,Children's Social Care,Support Service and Management Costs,Schools Catering,Kitchen Supplies - Food and Beverages,04/04/2018,5030830,"1,669.48",Thomas Ridley & Son Ltd
Childrens Services,Children's Social Care,Support Service and Management Costs,Schools Catering,Kitchen Supplies - Food and Beverages,04/04/2018,5030831,261.45,Thomas Ridley & Son Ltd
Childrens Services,Children's Social Care,Support Service and Management Costs,Schools Catering,Kitchen Supplies - Food and Beverages,04/04/2018,5030832,367.32,Thomas Ridley & Son Ltd
Childrens Services,Children's Social Care,Support Service and Management Costs,Schools Catering,Kitchen Supplies - Food and Beverages,04/04/2018,5030833,456.38,Thomas Ridley & Son Ltd
Childrens Services,Children's Social Care,Support Service and Management Costs,Schools Catering,Kitchen Supplies - Food and Beverages,04/04/2018,5030836,418.54,Thomas Ridley & Son Ltd
Childrens Services,Children's Social Care,Support Service and Management Costs,Schools Catering,Kitchen Supplies - Food and Beverages,04/04/2018,5030839,394.52,Thomas Ridley & Son Ltd
Childrens Services,Children's Social Care,Support Service and Management Costs,Schools Catering,Kitchen Supplies - Food and Beverages,04/04/2018,5030848,325.29,Thomas Ridley & Son Ltd
Childrens Services,Children's Social Care,Support Service and Management Costs,Schools Catering,Kitchen Supplies - Food and Beverages,04/04/2018,5030850,624.70,Thomas Ridley & Son Ltd
Childrens Services,Children's Social Care,Support Service and Management Costs,Schools Catering,Kitchen Supplies - Food and Beverages,04/04/2018,5030851,430.89,Thomas Ridley & Son Ltd
Childrens Services,Children's Social Care,Support Service and Management Costs,Schools Catering,Kitchen Supplies - Food and Beverages,04/04/2018,5030854,317.37,Thomas Ridley & Son Ltd
Childrens Services,Children's Social Care,Support Service and Management Costs,Schools Catering,Kitchen Supplies - Food and Beverages,04/04/2018,5030857,331.22,Thomas Ridley & Son Ltd
Childrens Services,Children's Social Care,Support Service and Management Costs,Schools Catering,Kitchen Supplies - Food and Beverages,04/04/2018,5030858,449.98,Thomas Ridley & Son Ltd
Childrens Services,Children's Social Care,Support Service and Management Costs,Schools Catering,Kitchen Supplies - Food and Beverages,04/04/2018,5030860,275.44,Thomas Ridley & Son Ltd
Childrens Services,Children's Social Care,Support Service and Management Costs,Schools Catering,Kitchen Supplies - Food and Beverages,04/04/2018,5030865,627.00,Thomas Ridley & Son Ltd
Childrens Services,Children's Social Care,Support Service and Management Costs,Schools Catering,Kitchen Supplies - Food and Beverages,04/04/2018,5030867,371.50,Thomas Ridley & Son Ltd
Childrens Services,Children's Social Care,Support Service and Management Costs,Schools Catering,Kitchen Supplies - Food and Beverages,04/04/2018,5030868,288.77,Thomas Ridley & Son Ltd
Childrens Services,Children's Social Care,Support Service and Management Costs,Schools Catering,Kitchen Supplies - Food and Beverages,04/04/2018,5030869,338.68,Thomas Ridley & Son Ltd
Childrens Services,Children's Social Care,Support Service and Management Costs,Schools Catering,Kitchen Supplies - Food and Beverages,04/04/2018,5030870,293.33,Thomas Ridley & Son Ltd
Childrens Services,Children's Social Care,Support Service and Management Costs,Schools Catering,Kitchen Supplies - Food and Beverages,04/04/2018,5030871,572.33,Thomas Ridley & Son Ltd
Childrens Services,Children's Social Care,Support Service and Management Costs,Schools Catering,Kitchen Supplies - Food and Beverages,04/04/2018,5030875,"1,018.41",Thomas Ridley & Son Ltd
Childrens Services,Children's Social Care,Support Service and Management Costs,Schools Catering,Kitchen Supplies - Food and Beverages,04/04/2018,5030878,387.83,Thomas Ridley & Son Ltd
Childrens Services,Children's Social Care,Support Service and Management Costs,Schools Catering,Kitchen Supplies - Food and Beverages,04/04/2018,5030880,402.25,Thomas Ridley & Son Ltd
Childrens Services,Children's Social Care,Support Service and Management Costs,Schools Catering,Kitchen Supplies - Food and Beverages,04/04/2018,5030881,312.48,Thomas Ridley & Son Ltd
Childrens Services,Children's Social Care,Support Service and Management Costs,Schools Catering,Kitchen Supplies - Food and Beverages,04/04/2018,5030885,262.92,Thomas Ridley & Son Ltd
Childrens Services,Children's Social Care,Support Service and Management Costs,Schools Catering,Kitchen Supplies - Food and Beverages,04/04/2018,5030887,312.13,Thomas Ridley & Son Ltd
Childrens Services,Children's Social Care,Support Service and Management Costs,Schools Catering,Kitchen Supplies - Food and Beverages,04/04/2018,5030888,552.74,Thomas Ridley & Son Ltd
Childrens Services,Children's Social Care,Support Service and Management Costs,Schools Catering,Kitchen Supplies - Food and Beverages,04/04/2018,5030890,301.55,Thomas Ridley & Son Ltd
Childrens Services,Children's Social Care,Support Service and Management Costs,Schools Catering,Kitchen Supplies - Food and Beverages,04/04/2018,5030891,334.78,Thomas Ridley & Son Ltd
Childrens Services,Children's Social Care,Support Service and Management Costs,Schools Catering,Kitchen Supplies - Food and Beverages,04/04/2018,5030896,748.95,Thomas Ridley & Son Ltd
Childrens Services,Children's Social Care,Support Service and Management Costs,Schools Catering,Kitchen Supplies - Food and Beverages,04/04/2018,5030897,"1,009.26",Thomas Ridley & Son Ltd
Childrens Services,Children's Social Care,Support Service and Management Costs,Schools Catering,Kitchen Supplies - Food and Beverages,04/04/2018,5030900,275.41,Thomas Ridley & Son Ltd
Childrens Services,Children's Social Care,Support Service and Management Costs,Schools Catering,Kitchen Supplies - Food and Beverages,04/04/2018,5030901,319.24,Thomas Ridley & Son Ltd
Childrens Services,Children's Social Care,Support Service and Management Costs,Schools Catering,Kitchen Supplies - Food and Beverages,04/04/2018,5030905,565.43,Thomas Ridley & Son Ltd
Childrens Services,Children's Social Care,Support Service and Management Costs,Schools Catering,Kitchen Supplies - Food and Beverages,04/04/2018,5030906,402.47,Thomas Ridley & Son Ltd
Childrens Services,Children's Social Care,Support Service and Management Costs,Schools Catering,Kitchen Supplies - Food and Beverages,04/04/2018,5030907,461.26,Thomas Ridley & Son Ltd
Childrens Services,Children's Social Care,Support Service and Management Costs,Schools Catering,Kitchen Supplies - Food and Beverages,04/04/2018,5030908,268.22,Thomas Ridley & Son Ltd
Childrens Services,Children's Social Care,Support Service and Management Costs,Schools Catering,Kitchen Supplies - Food and Beverages,04/04/2018,5030909,276.40,Thomas Ridley & Son Ltd
Childrens Services,Children's Social Care,Support Service and Management Costs,Schools Catering,Kitchen Supplies - Food and Beverages,04/04/2018,5030910,541.49,Thomas Ridley & Son Ltd
Childrens Services,Children's Social Care,Support Service and Management Costs,Schools Catering,Kitchen Supplies - Food and Beverages,04/04/2018,5030912,500.80,Thomas Ridley & Son Ltd
Childrens Services,Children's Social Care,Support Service and Management Costs,Schools Catering,Kitchen Supplies - Food and Beverages,04/04/2018,5030913,513.04,Thomas Ridley & Son Ltd
Childrens Services,Children's Social Care,Support Service and Management Costs,Schools Catering,Kitchen Supplies - Food and Beverages,04/04/2018,5030915,705.78,Thomas Ridley & Son Ltd
Childrens Services,Children's Social Care,Support Service and Management Costs,Schools Catering,Kitchen Supplies - Food and Beverages,04/04/2018,5030916,598.79,Thomas Ridley & Son Ltd
Childrens Services,Children's Social Care,Support Service and Management Costs,Schools Catering,Kitchen Supplies - Food and Beverages,04/04/2018,5030917,447.00,Thomas Ridley & Son Ltd
Childrens Services,Children's Social Care,Support Service and Management Costs,Schools Catering,Kitchen Supplies - Food and Beverages,04/04/2018,5030919,361.30,Thomas Ridley & Son Ltd
Childrens Services,Children's Social Care,Support Service and Management Costs,Schools Catering,Kitchen Supplies - Food and Beverages,04/04/2018,5030922,776.70,Thomas Ridley & Son Ltd
Childrens Services,Children's Social Care,Support Service and Management Costs,Schools Catering,Kitchen Supplies - Food and Beverages,04/04/2018,5030923,662.70,Thomas Ridley & Son Ltd
Childrens Services,Children's Social Care,Support Service and Management Costs,Schools Catering,Kitchen Supplies - Food and Beverages,04/04/2018,5030924,316.65,Thomas Ridley & Son Ltd
Childrens Services,Children's Social Care,Children's and Young People's Safety,CLA Reviewing Service,Non Staff Transport Costs - Reimbursement,04/04/2018,5030971,297.80,RSP Rail Travel (Rail Settlement Plan)
Childrens Services,Children's Social Care,Services for young people,Youth Service Management,SLA Services (Expenditure) - Service Level Agreements,04/04/2018,5030974,"6,666.00",Society Links
Childrens Services,Education Services,Other Strategic Functions,Governors Services,Training Expenses - Staff External Training (UK Based),04/04/2018,5030986,500.00,Sapphire Skies Limited
Childrens Services,Children's Social Care,Commissioning and Social Work,Advice and Assessment Section 17,Childrens Act Section 17 - Independent Sector Providers,04/04/2018,5031133,"1,600.00",South Gloucestershire Council
Childrens Services,Children's Social Care,Support Service and Management Costs,Welfare Catering,Kitchen Supplies - Food and Beverages,04/04/2018,5031145,711.18,Thomas Ridley & Son Ltd
Childrens Services,Children's Social Care,Support Service and Management Costs,Schools Catering,Kitchen Supplies - Food and Beverages,04/04/2018,5031165,281.67,Thomas Ridley & Son Ltd
Childrens Services,Children's Social Care,Support Service and Management Costs,Welfare Catering,Kitchen Supplies - Food and Beverages,04/04/2018,5031166,831.88,Thomas Ridley & Son Ltd
Childrens Services,Children's Social Care,Support Service and Management Costs,Schools Catering,Kitchen Supplies - Food and Beverages,04/04/2018,5031175,641.71,Thomas Ridley & Son Ltd
Childrens Services,Children's Social Care,Support Service and Management Costs,Schools Catering,Kitchen Supplies - Food and Beverages,04/04/2018,5031178,339.59,Thomas Ridley & Son Ltd
Childrens Services,Children's Social Care,Support Service and Management Costs,Schools Catering,Kitchen Supplies - Food and Beverages,04/04/2018,5031184,259.34,Thomas Ridley & Son Ltd
Childrens Services,Children's Social Care,Support Service and Management Costs,Schools Catering,Kitchen Supplies - Food and Beverages,04/04/2018,5031204,344.45,Thomas Ridley & Son Ltd
Childrens Services,Children's Social Care,Support Service and Management Costs,Schools Catering,Kitchen Supplies - Food and Beverages,04/04/2018,5031208,625.22,Thomas Ridley & Son Ltd
Childrens Services,Children's Social Care,Support Service and Management Costs,Schools Catering,Kitchen Supplies - Food and Beverages,04/04/2018,5031210,470.78,Thomas Ridley & Son Ltd
Childrens Services,Children's Social Care,Support Service and Management Costs,Schools Catering,Kitchen Supplies - Food and Beverages,04/04/2018,5031212,342.10,Thomas Ridley & Son Ltd
Childrens Services,Children's Social Care,Support Service and Management Costs,Schools Catering,Kitchen Supplies - Food and Beverages,04/04/2018,5031214,"1,050.03",Thomas Ridley & Son Ltd
Childrens Services,Children's Social Care,Support Service and Management Costs,Schools Catering,Kitchen Supplies - Food and Beverages,04/04/2018,5031219,334.59,Thomas Ridley & Son Ltd
Childrens Services,Children's Social Care,Support Service and Management Costs,Schools Catering,Kitchen Supplies - Food and Beverages,04/04/2018,5031221,"1,005.43",Thomas Ridley & Son Ltd
Childrens Services,Children's Social Care,Support Service and Management Costs,Schools Catering,Kitchen Supplies - Food and Beverages,04/04/2018,5031223,333.74,Thomas Ridley & Son Ltd
Childrens Services,Education Services,Secondary Schools,Trade Union Facilities,Agency Staff - TradUn&PubDuties,04/04/2018,5031256,"57,862.00",Stepney Green Maths Computing Science College
Childrens Services,Highways and Transport Services,Management and Support Services,Contract Services M & A,Subscriptions - Associations,04/04/2018,5031378,"9,296.30",APSE
Childrens Services,Children's Social Care,Support Service and Management Costs,"Mulberry Caf�		",Kitchen Supplies - Food and Beverages,04/04/2018,5031443,605.99,Thomas Ridley & Son Ltd
Childrens Services,Children's Social Care,Children Looked After,Leaving Care Staff,Water Services - Metered,04/04/2018,5031705,327.93,CASTLE WATER
Childrens Services,Children's Social Care,Children Looked After,S23 Fam Pl In-Hse-S/Term F/C,Childrens Act Section 23 - Expert Assessmt/Witness Costs,04/04/2018,5031733,405.00,The Priory Hospital
Childrens Services,Children's Social Care,Support Service and Management Costs,Welfare Catering,Kitchen Supplies - Catering Equipment,04/04/2018,5031798,252.00,W V Howe LTD
Childrens Services,Adult Social Care,Support Service and Management Costs,Org Development L&D Training,Training Expenses - Staff External Training (UK Based),04/04/2018,5031804,815.00,Huntersjoy Ltd
Childrens Services,Children's Social Care,Family Support Services,CNN Pool: Children Direct Paym,Social Care - Direct Payments,04/04/2018,5032111,690.86,DH TOWER HAMLETS
Childrens Services,Children's Social Care,Family Support Services,CNN Pool: Children Direct Paym,Social Care - Direct Payments,04/04/2018,5032112,674.60,DH TOWER HAMLETS
Childrens Services,Children's Social Care,Family Support Services,CNN Pool: Children Direct Paym,Social Care - Direct Payments,04/04/2018,5032113,674.60,DH TOWER HAMLETS
Childrens Services,Children's Social Care,Family Support Services,CNN Pool: Children Direct Paym,Social Care - Direct Payments,04/04/2018,5032114,"3,526.16",DH TOWER HAMLETS
Childrens Services,Children's Social Care,Family Support Services,CNN Pool: Children Direct Paym,Social Care - Direct Payments,04/04/2018,5032119,674.60,DH TOWER HAMLETS
Childrens Services,Children's Social Care,Family Support Services,CNN Pool: Children Direct Paym,Social Care - Direct Payments,04/04/2018,5032122,929.40,DH TOWER HAMLETS
Childrens Services,Children's Social Care,Family Support Services,CNN Pool: Children Direct Paym,Social Care - Direct Payments,04/04/2018,5032123,674.56,DH TOWER HAMLETS
Childrens Services,Children's Social Care,Family Support Services,CNN Pool: Children Direct Paym,Social Care - Direct Payments,04/04/2018,5032127,674.60,DH TOWER HAMLETS
Childrens Services,Children's Social Care,Family Support Services,CNN Pool: Children Direct Paym,Social Care - Direct Payments,04/04/2018,5032130,"8,673.10",DH TOWER HAMLETS
Childrens Services,Children's Social Care,Family Support Services,CNN Pool: Children Direct Paym,Social Care - Direct Payments,04/04/2018,5032133,674.60,DH TOWER HAMLETS
Childrens Services,Children's Social Care,Family Support Services,CNN Pool: Children Direct Paym,Social Care - Direct Payments,04/04/2018,5032138,"1,401.78",D D PAYROLL SERVICES
Childrens Services,Children's Social Care,Family Support Services,CNN Pool: Children Direct Paym,Social Care - Direct Payments,04/04/2018,5032140,"7,049.06",DH TOWER HAMLETS
Childrens Services,Children's Social Care,Family Support Services,CNN Pool: Children Direct Paym,Social Care - Direct Payments,04/04/2018,5032142,"1,349.20",DH TOWER HAMLETS
Childrens Services,Children's Social Care,Family Support Services,CNN Pool: Children Direct Paym,Social Care - Direct Payments,04/04/2018,5032143,898.42,DH TOWER HAMLETS
Childrens Services,Children's Social Care,Family Support Services,CNN Pool: Children Direct Paym,Social Care - Direct Payments,04/04/2018,5032144,449.73,DH TOWER HAMLETS
Childrens Services,Children's Social Care,Family Support Services,CNN Pool: Children Direct Paym,Social Care - Direct Payments,04/04/2018,5032146,674.60,DH TOWER HAMLETS
Childrens Services,Children's Social Care,Family Support Services,CNN Pool: Children Direct Paym,Social Care - Direct Payments,04/04/2018,5032148,899.42,DH TOWER HAMLETS
Childrens Services,Children's Social Care,Family Support Services,CNN Pool: Children Direct Paym,Social Care - Direct Payments,04/04/2018,5032153,674.60,DH TOWER HAMLETS
Childrens Services,Children's Social Care,Family Support Services,CNN Pool: Children Direct Paym,Social Care - Direct Payments,04/04/2018,5032155,674.56,DH TOWER HAMLETS
Childrens Services,Children's Social Care,Family Support Services,CNN Pool: Children Direct Paym,Social Care - Direct Payments,04/04/2018,5032156,674.60,DH TOWER HAMLETS
Childrens Services,Children's Social Care,Family Support Services,CNN Pool: Children Direct Paym,Social Care - Direct Payments,04/04/2018,5032157,674.60,DH TOWER HAMLETS
Childrens Services,Children's Social Care,Family Support Services,CNN Pool: Children Direct Paym,Social Care - Direct Payments,04/04/2018,5032158,"4,208.32",DH TOWER HAMLETS
Childrens Services,Children's Social Care,Family Support Services,CNN Pool: Children Direct Paym,Social Care - Direct Payments,04/04/2018,5032159,"2,385.41",DH TOWER HAMLETS
Childrens Services,Children's Social Care,Family Support Services,CNN Pool: Children Direct Paym,Social Care - Direct Payments,04/04/2018,5032162,"15,129.58",DH TOWER HAMLETS
Childrens Services,Children's Social Care,Family Support Services,CNN Pool: Children Direct Paym,Social Care - Direct Payments,04/04/2018,5032171,899.46,DH TOWER HAMLETS
Childrens Services,Children's Social Care,Family Support Services,CNN Pool: Children Direct Paym,Social Care - Direct Payments,04/04/2018,5032173,"8,526.66",DH TOWER HAMLETS
Childrens Services,Children's Social Care,Family Support Services,CNN Pool: Children Direct Paym,Social Care - Direct Payments,04/04/2018,5032176,548.40,DH TOWER HAMLETS
Childrens Services,Children's Social Care,Family Support Services,CNN Pool: Children Direct Paym,Social Care - Direct Payments,04/04/2018,5032177,674.60,DH TOWER HAMLETS
Childrens Services,Children's Social Care,Family Support Services,CNN Pool: Children Direct Paym,Social Care - Direct Payments,04/04/2018,5032178,"2,248.66",DH TOWER HAMLETS
Childrens Services,Children's Social Care,Family Support Services,CNN Pool: Children Direct Paym,Social Care - Direct Payments,04/04/2018,5032179,"1,124.33",DH TOWER HAMLETS
Childrens Services,Children's Social Care,Family Support Services,CNN Pool: Children Direct Paym,Social Care - Direct Payments,04/04/2018,5032180,899.46,D D PAYROLL SERVICES
Childrens Services,Children's Social Care,Family Support Services,CNN Pool: Children Direct Paym,Social Care - Direct Payments,04/04/2018,5032182,929.40,DH TOWER HAMLETS
Childrens Services,Children's Social Care,Family Support Services,CNN Pool: Children Direct Paym,Social Care - Direct Payments,04/04/2018,5032183,674.60,DH TOWER HAMLETS
Childrens Services,Children's Social Care,Family Support Services,CNN Pool: Children Direct Paym,Social Care - Direct Payments,04/04/2018,5032184,674.60,DH TOWER HAMLETS
Childrens Services,Children's Social Care,Family Support Services,CNN Pool: Children Direct Paym,Social Care - Direct Payments,04/04/2018,5032185,674.60,DH TOWER HAMLETS
Childrens Services,Children's Social Care,Family Support Services,CNN Pool: Children Direct Paym,Social Care - Direct Payments,04/04/2018,5032187,674.60,DH TOWER HAMLETS
Childrens Services,Children's Social Care,Family Support Services,CNN Pool: Children Direct Paym,Social Care - Direct Payments,04/04/2018,5032188,899.46,DH TOWER HAMLETS
Childrens Services,Children's Social Care,Family Support Services,CNN Pool: Children Direct Paym,Social Care - Direct Payments,04/04/2018,5032189,"2,626.70",DH TOWER HAMLETS
Childrens Services,Children's Social Care,Family Support Services,CNN Pool: Children Direct Paym,Social Care - Direct Payments,04/04/2018,5032190,794.60,DH TOWER HAMLETS
Childrens Services,Children's Social Care,Family Support Services,CNN Pool: Children Direct Paym,Social Care - Direct Payments,04/04/2018,5032191,674.60,DH TOWER HAMLETS
Childrens Services,Children's Social Care,Family Support Services,CNN Pool: Children Direct Paym,Social Care - Direct Payments,04/04/2018,5032192,"1,469.20",DH TOWER HAMLETS
Childrens Services,Children's Social Care,Family Support Services,CNN Pool: Children Direct Paym,Social Care - Direct Payments,04/04/2018,5032193,674.60,DH TOWER HAMLETS
Childrens Services,Children's Social Care,Family Support Services,CNN Pool: Children Direct Paym,Social Care - Direct Payments,04/04/2018,5032194,674.60,DH TOWER HAMLETS
Childrens Services,Children's Social Care,Family Support Services,CNN Pool: Children Direct Paym,Social Care - Direct Payments,04/04/2018,5032195,674.60,DH TOWER HAMLETS
Childrens Services,Children's Social Care,Family Support Services,CNN Pool: Children Direct Paym,Social Care - Direct Payments,04/04/2018,5032196,674.60,DH TOWER HAMLETS
Childrens Services,Children's Social Care,Family Support Services,CNN Pool: Children Direct Paym,Social Care - Direct Payments,04/04/2018,5032197,674.60,DH TOWER HAMLETS
Childrens Services,Children's Social Care,Family Support Services,CNN Pool: Children Direct Paym,Social Care - Direct Payments,04/04/2018,5032198,674.60,DH TOWER HAMLETS
Childrens Services,Children's Social Care,Family Support Services,CNN Pool: Children Direct Paym,Social Care - Direct Payments,04/04/2018,5032199,863.62,DH TOWER HAMLETS
Childrens Services,Children's Social Care,Support Service and Management Costs,Swanlea,Kitchen Supplies - Food and Beverages,06/04/2018,3996982,434.17,Thomas Ridley & Son Ltd
Childrens Services,Children's Social Care,Support Service and Management Costs,Schools Catering,Kitchen Supplies - Food and Beverages,06/04/2018,3997183,297.88,Thomas Ridley & Son Ltd
Childrens Services,Children's Social Care,Support Service and Management Costs,Schools Catering,Kitchen Supplies - Food and Beverages,06/04/2018,3997192,819.50,Thomas Ridley & Son Ltd
Childrens Services,Education Services,Early Years,Meath Gardens CC,Stationery,06/04/2018,5015719,546.39,Supplies Team Ltd
Childrens Services,Cultural and Related Services,Recreation & Sport,Sports Development,Recreational Activities,06/04/2018,5017518,600.00,Carmen Valino
Childrens Services,Children's Social Care,Support Service and Management Costs,"Mulberry Caf�		",Kitchen Supplies - Food and Beverages,06/04/2018,5017585,346.22,Thomas Ridley & Son Ltd
Childrens Services,Education Services,Other Strategic Functions,Schools Library,Comms - Courier,06/04/2018,5017587,"1,345.00",Figurehead Studios
Childrens Services,Education Services,Early Years,Chrisp St,Catering - Hospitality,06/04/2018,5017602,320.00,Spice n Nice Catering Ltd
Childrens Services,Education Services,Other Strategic Functions,Schools Library,Comms - Courier,06/04/2018,5017725,"2,341.00",Figurehead Studios
Childrens Services,Children's Social Care,Support Service and Management Costs,Schools Catering,Kitchen Supplies - Food and Beverages,06/04/2018,5017761,475.60,Thomas Ridley & Son Ltd
Childrens Services,Children's Social Care,Support Service and Management Costs,Schools Catering,Kitchen Supplies - Food and Beverages,06/04/2018,5017771,497.79,Thomas Ridley & Son Ltd
Childrens Services,Children's Social Care,Support Service and Management Costs,Schools Catering,Kitchen Supplies - Food and Beverages,06/04/2018,5017780,347.79,Thomas Ridley & Son Ltd
Childrens Services,Children's Social Care,Support Service and Management Costs,Schools Catering,Kitchen Supplies - Food and Beverages,06/04/2018,5017786,475.07,Thomas Ridley & Son Ltd
Childrens Services,Children's Social Care,Support Service and Management Costs,Schools Catering,Kitchen Supplies - Food and Beverages,06/04/2018,5017790,327.40,Thomas Ridley & Son Ltd
Childrens Services,Children's Social Care,Support Service and Management Costs,Schools Catering,Kitchen Supplies - Food and Beverages,06/04/2018,5017794,319.75,Thomas Ridley & Son Ltd
Childrens Services,Children's Social Care,Support Service and Management Costs,Schools Catering,Kitchen Supplies - Food and Beverages,06/04/2018,5017808,484.93,Thomas Ridley & Son Ltd
Childrens Services,Children's Social Care,Support Service and Management Costs,Schools Catering,Kitchen Supplies - Food and Beverages,06/04/2018,5018338,254.11,Thomas Ridley & Son Ltd
Childrens Services,Children's Social Care,Support Service and Management Costs,Schools Catering,Kitchen Supplies - Food and Beverages,06/04/2018,5018341,476.04,Thomas Ridley & Son Ltd
Childrens Services,Children's Social Care,Support Service and Management Costs,Schools Catering,Kitchen Supplies - Food and Beverages,06/04/2018,5018343,275.51,Thomas Ridley & Son Ltd
Childrens Services,Children's Social Care,Support Service and Management Costs,Schools Catering,Kitchen Supplies - Food and Beverages,06/04/2018,5018345,356.46,Thomas Ridley & Son Ltd
Childrens Services,Children's Social Care,Support Service and Management Costs,Schools Catering,Kitchen Supplies - Food and Beverages,06/04/2018,5018348,251.32,Thomas Ridley & Son Ltd
Childrens Services,Children's Social Care,Support Service and Management Costs,Schools Catering,Kitchen Supplies - Food and Beverages,06/04/2018,5018350,468.38,Thomas Ridley & Son Ltd
Childrens Services,Children's Social Care,Support Service and Management Costs,Schools Catering,Kitchen Supplies - Food and Beverages,06/04/2018,5018355,304.80,Thomas Ridley & Son Ltd
Childrens Services,Children's Social Care,Support Service and Management Costs,Schools Catering,Kitchen Supplies - Food and Beverages,06/04/2018,5018357,302.09,Thomas Ridley & Son Ltd
Childrens Services,Children's Social Care,Support Service and Management Costs,Schools Catering,Kitchen Supplies - Food and Beverages,06/04/2018,5018361,565.23,Thomas Ridley & Son Ltd
Childrens Services,Children's Social Care,Support Service and Management Costs,Schools Catering,Kitchen Supplies - Food and Beverages,06/04/2018,5018363,279.51,Thomas Ridley & Son Ltd
Childrens Services,Children's Social Care,Support Service and Management Costs,Schools Catering,Kitchen Supplies - Food and Beverages,06/04/2018,5018364,285.13,Thomas Ridley & Son Ltd
Childrens Services,Children's Social Care,Support Service and Management Costs,Schools Catering,Kitchen Supplies - Food and Beverages,06/04/2018,5018367,273.66,Thomas Ridley & Son Ltd
Childrens Services,Children's Social Care,Support Service and Management Costs,Schools Catering,Kitchen Supplies - Food and Beverages,06/04/2018,5018376,570.17,Thomas Ridley & Son Ltd
Childrens Services,Children's Social Care,Support Service and Management Costs,Schools Catering,Kitchen Supplies - Food and Beverages,06/04/2018,5018377,404.92,Thomas Ridley & Son Ltd
Childrens Services,Children's Social Care,Support Service and Management Costs,Schools Catering,Kitchen Supplies - Food and Beverages,06/04/2018,5018378,911.14,Thomas Ridley & Son Ltd
Childrens Services,Children's Social Care,Support Service and Management Costs,Schools Catering,Kitchen Supplies - Food and Beverages,06/04/2018,5018379,529.23,Thomas Ridley & Son Ltd
Childrens Services,Children's Social Care,Support Service and Management Costs,Schools Catering,Kitchen Supplies - Food and Beverages,06/04/2018,5018380,499.97,Thomas Ridley & Son Ltd
Childrens Services,Children's Social Care,Support Service and Management Costs,Schools Catering,Kitchen Supplies - Food and Beverages,06/04/2018,5018381,759.79,Thomas Ridley & Son Ltd
Childrens Services,Children's Social Care,Support Service and Management Costs,Schools Catering,Kitchen Supplies - Food and Beverages,06/04/2018,5018385,296.82,Thomas Ridley & Son Ltd
Childrens Services,Children's Social Care,Support Service and Management Costs,Schools Catering,Kitchen Supplies - Food and Beverages,06/04/2018,5018386,735.92,Thomas Ridley & Son Ltd
Childrens Services,Children's Social Care,Support Service and Management Costs,Schools Catering,Kitchen Supplies - Food and Beverages,06/04/2018,5018388,343.81,Thomas Ridley & Son Ltd
Childrens Services,Children's Social Care,Support Service and Management Costs,Schools Catering,Kitchen Supplies - Food and Beverages,06/04/2018,5018390,781.12,Thomas Ridley & Son Ltd
Childrens Services,Children's Social Care,Support Service and Management Costs,Schools Catering,Kitchen Supplies - Food and Beverages,06/04/2018,5018392,400.93,Thomas Ridley & Son Ltd
Childrens Services,Children's Social Care,Support Service and Management Costs,Schools Catering,Kitchen Supplies - Food and Beverages,06/04/2018,5018393,274.63,Thomas Ridley & Son Ltd
Childrens Services,Children's Social Care,Support Service and Management Costs,Schools Catering,Kitchen Supplies - Food and Beverages,06/04/2018,5018394,453.87,Thomas Ridley & Son Ltd
Childrens Services,Children's Social Care,Support Service and Management Costs,Schools Catering,Kitchen Supplies - Food and Beverages,06/04/2018,5018397,355.98,Thomas Ridley & Son Ltd
Childrens Services,Children's Social Care,Support Service and Management Costs,Schools Catering,Kitchen Supplies - Food and Beverages,06/04/2018,5018398,345.80,Thomas Ridley & Son Ltd
Childrens Services,Children's Social Care,Support Service and Management Costs,Schools Catering,Kitchen Supplies - Food and Beverages,06/04/2018,5018399,539.29,Thomas Ridley & Son Ltd
Childrens Services,Children's Social Care,Support Service and Management Costs,Schools Catering,Kitchen Supplies - Food and Beverages,06/04/2018,5018400,351.82,Thomas Ridley & Son Ltd
Childrens Services,Children's Social Care,Support Service and Management Costs,Schools Catering,Kitchen Supplies - Food and Beverages,06/04/2018,5018401,788.71,Thomas Ridley & Son Ltd
Childrens Services,Children's Social Care,Support Service and Management Costs,Schools Catering,Kitchen Supplies - Food and Beverages,06/04/2018,5018402,330.76,Thomas Ridley & Son Ltd
Childrens Services,Children's Social Care,Support Service and Management Costs,Schools Catering,Kitchen Supplies - Food and Beverages,06/04/2018,5018404,791.52,Thomas Ridley & Son Ltd
Childrens Services,Children's Social Care,Support Service and Management Costs,Schools Catering,Kitchen Supplies - Food and Beverages,06/04/2018,5018405,393.87,Thomas Ridley & Son Ltd
Childrens Services,Children's Social Care,Support Service and Management Costs,Schools Catering,Kitchen Supplies - Food and Beverages,06/04/2018,5018406,411.81,Thomas Ridley & Son Ltd
Childrens Services,Children's Social Care,Support Service and Management Costs,Schools Catering,Kitchen Supplies - Food and Beverages,06/04/2018,5018407,324.10,Thomas Ridley & Son Ltd
Childrens Services,Children's Social Care,Support Service and Management Costs,Schools Catering,Kitchen Supplies - Food and Beverages,06/04/2018,5018409,265.03,Thomas Ridley & Son Ltd
Childrens Services,Children's Social Care,Support Service and Management Costs,Schools Catering,Kitchen Supplies - Food and Beverages,06/04/2018,5018413,291.96,Thomas Ridley & Son Ltd
Childrens Services,Children's Social Care,Support Service and Management Costs,Schools Catering,Kitchen Supplies - Food and Beverages,06/04/2018,5018414,417.30,Thomas Ridley & Son Ltd
Childrens Services,Children's Social Care,Support Service and Management Costs,Schools Catering,Kitchen Supplies - Food and Beverages,06/04/2018,5018417,461.12,Thomas Ridley & Son Ltd
Childrens Services,Children's Social Care,Support Service and Management Costs,Schools Catering,Kitchen Supplies - Food and Beverages,06/04/2018,5018420,363.30,Thomas Ridley & Son Ltd
Childrens Services,Children's Social Care,Support Service and Management Costs,Schools Catering,Kitchen Supplies - Food and Beverages,06/04/2018,5018422,544.39,Thomas Ridley & Son Ltd
Childrens Services,Children's Social Care,Support Service and Management Costs,Schools Catering,Kitchen Supplies - Food and Beverages,06/04/2018,5018425,843.50,Thomas Ridley & Son Ltd
Childrens Services,Children's Social Care,Support Service and Management Costs,Schools Catering,Kitchen Supplies - Food and Beverages,06/04/2018,5018430,335.09,Thomas Ridley & Son Ltd
Childrens Services,Children's Social Care,Support Service and Management Costs,Sch. Meals A/c - Central Production Unit,Kitchen Supplies - Food and Beverages,06/04/2018,5018668,653.09,William White Meats Ltd
Childrens Services,Children's Social Care,Support Service and Management Costs,Schools Catering,Kitchen Supplies - Food and Beverages,06/04/2018,5018937,475.68,William White Meats Ltd
Childrens Services,Children's Social Care,Support Service and Management Costs,Schools Catering,Kitchen Supplies - Food and Beverages,06/04/2018,5018988,589.07,William White Meats Ltd
Childrens Services,Children's Social Care,Support Service and Management Costs,Schools Catering,Kitchen Supplies - Food and Beverages,06/04/2018,5019264,264.60,William White Meats Ltd
Childrens Services,Children's Social Care,Support Service and Management Costs,Schools Catering,Kitchen Supplies - Food and Beverages,06/04/2018,5019278,270.95,William White Meats Ltd
Childrens Services,Children's Social Care,Support Service and Management Costs,Schools Catering,Kitchen Supplies - Food and Beverages,06/04/2018,5020080,340.00,William White Meats Ltd
Childrens Services,Children's Social Care,Support Service and Management Costs,Schools Catering,Kitchen Supplies - Food and Beverages,06/04/2018,5020100,277.99,William White Meats Ltd
Childrens Services,Children's Social Care,Support Service and Management Costs,Schools Catering,Kitchen Supplies - Food and Beverages,06/04/2018,5020111,368.25,William White Meats Ltd
Childrens Services,Children's Social Care,Support Service and Management Costs,Schools Catering,Kitchen Supplies - Food and Beverages,06/04/2018,5020115,482.55,William White Meats Ltd
Childrens Services,Children's Social Care,Support Service and Management Costs,Schools Catering,Kitchen Supplies - Food and Beverages,06/04/2018,5020117,366.00,William White Meats Ltd
Childrens Services,Children's Social Care,Support Service and Management Costs,Schools Catering,Kitchen Supplies - Food and Beverages,06/04/2018,5020129,292.70,William White Meats Ltd
Childrens Services,Education Services,Early Years,Around Poplar CC,Office Furniture/Equipment,06/04/2018,5020618,313.60,Yorkshire Purchasing Organisation
Childrens Services,Education Services,Early Years,Marner. CC,Educational/Training Supplies - Resources,06/04/2018,5020698,288.20,Yorkshire Purchasing Organisation
Childrens Services,Education Services,Other Strategic Functions,Governors Services,Education & Training - Non Staff Tuition Fees,06/04/2018,5020963,500.00,Redacted Section 40 FOI Act
Childrens Services,Children's Social Care,Support Service and Management Costs,Sch. Meals A/c - Bow School,Catering - Hospitality,06/04/2018,5021620,711.00,Tiffin Sandwiches
Childrens Services,Children's Social Care,Support Service and Management Costs,Sch. Meals A/c - C.F.S. Upper (Harley Grove),Catering - Hospitality,06/04/2018,5021621,790.00,Tiffin Sandwiches
Childrens Services,Children's Social Care,Support Service and Management Costs,Sch. Meals A/c - George Green,Catering - Hospitality,06/04/2018,5021622,620.15,Tiffin Sandwiches
Childrens Services,Children's Social Care,Support Service and Management Costs,Sch. Meals A/c - Langdon Park,Catering - Hospitality,06/04/2018,5021623,692.04,Tiffin Sandwiches
Childrens Services,Children's Social Care,Support Service and Management Costs,Sch. Meals A/c - Mulberry,Catering - Hospitality,06/04/2018,5021624,887.17,Tiffin Sandwiches
Childrens Services,Children's Social Care,Support Service and Management Costs,Sch. Meals A/c - Oaklands,Catering - Hospitality,06/04/2018,5021625,616.20,Tiffin Sandwiches
Childrens Services,Children's Social Care,Support Service and Management Costs,Sch. Meals A/c - Raines Foundation,Catering - Hospitality,06/04/2018,5021626,306.52,Tiffin Sandwiches
Childrens Services,Children's Social Care,Support Service and Management Costs,Sch. Meals A/c - St. Paul's Way Comm. Trust,Catering - Hospitality,06/04/2018,5021627,387.89,Tiffin Sandwiches
Childrens Services,Children's Social Care,Support Service and Management Costs,Sch. Meals A/c - Stepney Green,Catering - Hospitality,06/04/2018,5021628,355.50,Tiffin Sandwiches
Childrens Services,Children's Social Care,Support Service and Management Costs,Sch. Meals A/c - Morpeth,Catering - Hospitality,06/04/2018,5021629,"1,078.35",Tiffin Sandwiches
Childrens Services,Children's Social Care,Support Service and Management Costs,"Mulberry Caf�		",Catering - Hospitality,06/04/2018,5021630,389.73,Tiffin Sandwiches
Childrens Services,Children's Social Care,Support Service and Management Costs,Schools Catering,Kitchen Supplies - Food and Beverages,06/04/2018,5021681,309.32,William White Meats Ltd
Childrens Services,Children's Social Care,Support Service and Management Costs,Welfare Catering,Kitchen Supplies - Food and Beverages,06/04/2018,5021682,317.58,William White Meats Ltd
Childrens Services,Children's Social Care,Support Service and Management Costs,Swanlea,Kitchen Supplies - Food and Beverages,06/04/2018,5021683,612.95,William White Meats Ltd
Childrens Services,Education Services,Other Strategic Functions,Attendance & Welf Service GF,Healthy & Safety Supplies,06/04/2018,5021701,554.35,Posturite (UK) Ltd
Childrens Services,Children's Social Care,Support Service and Management Costs,Schools Catering,Kitchen Supplies - Food and Beverages,06/04/2018,5021842,762.43,William White Meats Ltd
Childrens Services,Children's Social Care,Support Service and Management Costs,Schools Catering,Kitchen Supplies - Food and Beverages,06/04/2018,5021846,274.45,William White Meats Ltd
Childrens Services,Children's Social Care,Support Service and Management Costs,Schools Catering,Kitchen Supplies - Food and Beverages,06/04/2018,5021866,343.00,William White Meats Ltd
Childrens Services,Children's Social Care,Support Service and Management Costs,Schools Catering,Kitchen Supplies - Food and Beverages,06/04/2018,5021871,594.08,William White Meats Ltd
Childrens Services,Children's Social Care,Support Service and Management Costs,Schools Catering,Kitchen Supplies - Food and Beverages,06/04/2018,5021877,366.42,William White Meats Ltd
Childrens Services,Children's Social Care,Support Service and Management Costs,Schools Catering,Kitchen Supplies - Food and Beverages,06/04/2018,5021879,345.96,William White Meats Ltd
Childrens Services,Children's Social Care,Support Service and Management Costs,Schools Catering,Kitchen Supplies - Food and Beverages,06/04/2018,5021883,364.18,William White Meats Ltd
Childrens Services,Children's Social Care,Support Service and Management Costs,Schools Catering,Kitchen Supplies - Food and Beverages,06/04/2018,5021898,601.74,William White Meats Ltd
Childrens Services,Children's Social Care,Support Service and Management Costs,Schools Catering,Kitchen Supplies - Food and Beverages,06/04/2018,5021902,386.29,William White Meats Ltd
Childrens Services,Children's Social Care,Support Service and Management Costs,Schools Catering,Kitchen Supplies - Food and Beverages,06/04/2018,5021911,872.10,William White Meats Ltd
Childrens Services,Children's Social Care,Support Service and Management Costs,Schools Catering,Kitchen Supplies - Food and Beverages,06/04/2018,5021940,393.61,William White Meats Ltd
Childrens Services,Children's Social Care,Support Service and Management Costs,Schools Catering,Kitchen Supplies - Food and Beverages,06/04/2018,5021942,295.01,William White Meats Ltd
Childrens Services,Children's Social Care,Support Service and Management Costs,Schools Catering,Kitchen Supplies - Food and Beverages,06/04/2018,5021944,375.00,William White Meats Ltd
Childrens Services,Children's Social Care,Support Service and Management Costs,Schools Catering,Kitchen Supplies - Food and Beverages,06/04/2018,5021946,344.60,William White Meats Ltd
Childrens Services,Children's Social Care,Support Service and Management Costs,Schools Catering,Kitchen Supplies - Food and Beverages,06/04/2018,5021948,275.04,William White Meats Ltd
Childrens Services,Children's Social Care,Support Service and Management Costs,Schools Catering,Kitchen Supplies - Food and Beverages,06/04/2018,5021950,443.62,William White Meats Ltd
Childrens Services,Children's Social Care,Support Service and Management Costs,Welfare Catering,Kitchen Supplies - Food and Beverages,06/04/2018,5022120,404.11,Apetito LTD
Childrens Services,Children's Social Care,Services for young people,Youth Service Management,SLA Services (Expenditure) - Service Level Agreements,06/04/2018,5024652,"24,825.00",Step Forward (Tower Hamlets)
Childrens Services,Children's Social Care,Support Service and Management Costs,Sch. Meals A/c - Hermitage,Repairs and Maintenance - Responsive - General,06/04/2018,5030560,965.00,Lambourne Refrigeration
Childrens Services,Children's Social Care,Support Service and Management Costs,Schools Catering,Kitchen Supplies - Food and Beverages,06/04/2018,5030792,660.68,Thomas Ridley & Son Ltd
Childrens Services,Cultural and Related Services,Open Spaces,Victoria Park,Events & Exhibition Supplies,06/04/2018,5031005,300.00,Rehan Jamil Photography
Childrens Services,Education Services,Early Years,Isle of Dogs. CC,Room Hire,06/04/2018,5031061,"1,500.00",Alpha Grove Centre
Childrens Services,Education Services,Early Years,Isle of Dogs. CC,Room Hire,06/04/2018,5031064,"1,000.00",Alpha Grove Centre
Childrens Services,Central Services to the Public,Emergency Planning,"Emergency Community Care Plan		",Training Expenses - Staff External Training (UK Based),06/04/2018,5031447,500.00,British Red Cross Society
Childrens Services,Children's Social Care,Support Service and Management Costs,Sch. Meals A/c - Stephen Hawking,Kitchen Supplies - Catering Equipment,06/04/2018,5032083,816.00,W V Howe LTD
Childrens Services,Children's Social Care,Children Looked After,S23 Fam Pl In-Hse-S/Term F/C,Childrens Act Section 23 - Medical Expenses,06/04/2018,5032085,464.00,E4 Law Limited T/A Lextox
Childrens Services,Children's Social Care,Children Looked After,S23 Fam Pl In-Hse-S/Term F/C,Childrens Act Section 23 - Medical Expenses,06/04/2018,5032095,"1,197.00",E4 Law Limited T/A Lextox
Childrens Services,Children's Social Care,Children Looked After,12 Norman Grove,Community Equipment  Supplies - Clothing - Client,06/04/2018,5032720,253.98,LBTH - 12A NORMAN GROVE LONG TERM UNIT
Childrens Services,Children's Social Care,Children Looked After,S23 Fam Pl P&V-F/Care,Childrens Act Section 23 - Commissioned Services,06/04/2018,5032744,586.46,Opus 2 International Ltd
Childrens Services,Education Services,Other Strategic Functions,Family Information Services,Computing - Purchase of Software,06/04/2018,5032752,"1,500.00",THIS IS FOCUS
Childrens Services,Children's Social Care,Children Looked After,S23 Fam Pl P&V-F/Care,Childrens Act Section 23 - Placement Fee,06/04/2018,5032761,784.00,Swiis Foster Care Limited
Childrens Services,Children's Social Care,Children Looked After,S23 Fam Pl P&V-F/Care,Childrens Act Section 23 - Commissioned Services,06/04/2018,5032763,"4,400.00",Family Action
Childrens Services,Children's Social Care,Children Looked After,S23-Other-Mother & Baby Unit,Childrens Act Section 23 - Placement Fee,06/04/2018,5032780,"15,278.57",OneOneCoCo
Childrens Services,Children's Social Care,Support Service and Management Costs,Sch. Meals A/c - Woolmore,Repairs and Maintenance - Responsive - General,06/04/2018,5032813,965.00,Lambourne Refrigeration
Childrens Services,Children's Social Care,Support Service and Management Costs,Sch. Meals A/c - Woolmore,Repairs and Maintenance - Responsive - General,06/04/2018,5032814,965.00,Lambourne Refrigeration
Childrens Services,Children's Social Care,Services for young people,Youth Service Management,SLA Services (Expenditure) - Service Level Agreements,06/04/2018,5032911,"6,666.66",Ocean Youth Connexions
Childrens Services,Children's Social Care,Children Looked After,S23-Other-Semi-Ind. Unit,Childrens Act Section 23 - Placement Fee,06/04/2018,5032912,271.60,KPMS LTD
Childrens Services,Education Services,Early Years,Wapping CC,Room Hire,06/04/2018,5032915,"1,584.00",RSET - Mulberry & Bigland Green Centre
Childrens Services,Education Services,Early Years,Wapping CC,Room Hire,06/04/2018,5032916,264.00,RSET - Mulberry & Bigland Green Centre
Childrens Services,Cultural and Related Services,Recreation & Sport,Mayors Cup,Recreational Activities,06/04/2018,5032950,363.96,LIMEHOUSE GIRLS FOOTBALL CLUB
Childrens Services,Children's Social Care,Children Looked After,S23 Fam Pl P&V-F/Care,Childrens Act Section 23 - Placement Fee,06/04/2018,5032961,784.00,Swiis Foster Care Limited
Childrens Services,Children's Social Care,Children Looked After,Virtual School PPG,Education & Training - Non Staff Tuition Fees,06/04/2018,5033019,870.00,Prospero Group Ltd
Childrens Services,Children's Social Care,Children Looked After,Virtual School PPG,Education & Training - Non Staff Tuition Fees,06/04/2018,5033020,522.00,Prospero Group Ltd
Childrens Services,Children's Social Care,Children Looked After,Virtual School PPG,Education & Training - Non Staff Tuition Fees,06/04/2018,5033025,300.00,Prospero Group Ltd
Childrens Services,Children's Social Care,Children Looked After,Virtual School PPG,Education & Training - Non Staff Tuition Fees,06/04/2018,5033031,300.00,Prospero Group Ltd
Childrens Services,Children's Social Care,Children Looked After,Virtual School PPG,Education & Training - Non Staff Tuition Fees,06/04/2018,5033032,300.00,Prospero Group Ltd
Childrens Services,Children's Social Care,Children Looked After,Virtual School PPG,Education & Training - Non Staff Tuition Fees,06/04/2018,5033035,870.00,Prospero Group Ltd
Childrens Services,Children's Social Care,Children Looked After,Virtual School PPG,Education & Training - Non Staff Tuition Fees,06/04/2018,5033036,522.00,Prospero Group Ltd
Childrens Services,Children's Social Care,Children Looked After,Virtual School PPG,Education & Training - Non Staff Tuition Fees,06/04/2018,5033037,696.00,Prospero Group Ltd
Childrens Services,Children's Social Care,Children Looked After,Virtual School PPG,Education & Training - Non Staff Tuition Fees,06/04/2018,5033038,348.00,Prospero Group Ltd
Childrens Services,Cultural and Related Services,Culture & Heritage,Event Fund,Third Party Payments - Voluntary Associations,06/04/2018,5033039,"1,280.00",Stepney City Farm
Childrens Services,Cultural and Related Services,Culture & Heritage,Event Fund,Third Party Payments - Voluntary Associations,06/04/2018,5033040,"1,280.00",RadhaRamon Society
Childrens Services,Cultural and Related Services,Culture & Heritage,Event Fund,Third Party Payments - Voluntary Associations,06/04/2018,5033041,"1,600.00",Auto Italia South East
Childrens Services,Cultural and Related Services,Culture & Heritage,Event Fund,Third Party Payments - Voluntary Associations,06/04/2018,5033042,"2,000.00",East End Film Festival CIC
Childrens Services,Children's Social Care,Children Looked After,S23-Other-Semi-Ind. Unit,Childrens Act Section 23 - Placement Fee,06/04/2018,5033054,"3,251.57",TSS Ltd
Childrens Services,Children's Social Care,Children Looked After,S23-Other-Semi-Ind. Unit,Childrens Act Section 23 - Placement Fee,06/04/2018,5033108,"1,200.85",TSS Ltd
Childrens Services,No Service Specified,No Division Specified,Capital-Minor Works (SC),Other External Fees - Other External Fees,09/04/2018,5012332,503.63,Perfect Circle JV Ltd
Childrens Services,Children's Social Care,Support Service and Management Costs,Sch. Meals A/c - Central Production Unit,Kitchen Supplies - Food and Beverages,09/04/2018,5017586,810.24,Thomas Ridley & Son Ltd
Childrens Services,Children's Social Care,Service Strategy,FSP Sect 17 - Team 3,Services - Professional Fees - Translation Fees,09/04/2018,5017620,992.50,Oncall Interpreters LTD
Childrens Services,Children's Social Care,Service Strategy,FSP Sect 17 - Team 4,Services - Professional Fees - Translation Fees,09/04/2018,5017621,293.00,Oncall Interpreters LTD
Childrens Services,Children's Social Care,Service Strategy,FSP Sect 17 - Team 9,Services - Professional Fees - Translation Fees,09/04/2018,5017623,"1,483.50",Oncall Interpreters LTD
Childrens Services,Children's Social Care,Children Looked After,S23-Other-Semi-Ind. Unit,Childrens Act Section 23 - Interpreting/Translation,09/04/2018,5017634,972.00,Oncall Interpreters LTD
Childrens Services,Children's Social Care,Support Service and Management Costs,Toby Lane Function,Kitchen Supplies - Food and Beverages,09/04/2018,5017724,250.93,Thomas Ridley & Son Ltd
Childrens Services,Children's Social Care,Support Service and Management Costs,Schools Catering,Kitchen Supplies - Food and Beverages,09/04/2018,5018433,435.57,Thomas Ridley & Son Ltd
Childrens Services,Children's Social Care,Support Service and Management Costs,Schools Catering,Kitchen Supplies - Food and Beverages,09/04/2018,5018440,423.46,Thomas Ridley & Son Ltd
Childrens Services,Children's Social Care,Support Service and Management Costs,Schools Catering,Kitchen Supplies - Food and Beverages,09/04/2018,5018441,770.15,Thomas Ridley & Son Ltd
Childrens Services,Children's Social Care,Support Service and Management Costs,Schools Catering,Kitchen Supplies - Food and Beverages,09/04/2018,5018445,252.01,Thomas Ridley & Son Ltd
Childrens Services,Children's Social Care,Support Service and Management Costs,Schools Catering,Kitchen Supplies - Food and Beverages,09/04/2018,5018447,472.31,Thomas Ridley & Son Ltd
Childrens Services,Children's Social Care,Support Service and Management Costs,Schools Catering,Kitchen Supplies - Food and Beverages,09/04/2018,5018450,289.42,Thomas Ridley & Son Ltd
Childrens Services,Children's Social Care,Support Service and Management Costs,Schools Catering,Kitchen Supplies - Food and Beverages,09/04/2018,5018452,445.95,Thomas Ridley & Son Ltd
Childrens Services,Education Services,Early Years,Marner. CC,Catering - Hospitality,09/04/2018,5018526,580.00,Cafe Bite
Childrens Services,Education Services,Early Years,Wapping CC,Repairs and Maintenance - Responsive - Repair & Maintenance,09/04/2018,5018533,"1,520.00",JC Coster (Metalworks) Ltd
Childrens Services,Children's Social Care,Children Looked After,S23-Other-Semi-Ind. Unit,Childrens Act Section 23 - Placement Fee,09/04/2018,5018546,925.00,Real Life
Childrens Services,Children's Social Care,Children Looked After,S23-Other-Semi-Ind. Unit,Childrens Act Section 23 - Placement Fee,09/04/2018,5018547,"1,358.00",Real Life
Childrens Services,Children's Social Care,Children Looked After,S23-Other-Semi-Ind. Unit,Childrens Act Section 23 - Placement Fee,09/04/2018,5018548,925.00,Real Life
Childrens Services,Children's Social Care,Children Looked After,S23-Other-Semi-Ind. Unit,Childrens Act Section 23 - Placement Fee,09/04/2018,5018549,925.00,Real Life
Childrens Services,Children's Social Care,Support Service and Management Costs,Schools Catering,Kitchen Supplies - Food and Beverages,09/04/2018,5018703,260.59,Prescott-Thomas LTD.
Childrens Services,Children's Social Care,Support Service and Management Costs,Schools Catering,Kitchen Supplies - Food and Beverages,09/04/2018,5018911,294.60,Thomas Ridley & Son Ltd
Childrens Services,Children's Social Care,Support Service and Management Costs,Schools Catering,Kitchen Supplies - Food and Beverages,09/04/2018,5018914,815.14,Thomas Ridley & Son Ltd
Childrens Services,Children's Social Care,Support Service and Management Costs,Schools Catering,Kitchen Supplies - Food and Beverages,09/04/2018,5018917,421.10,Thomas Ridley & Son Ltd
Childrens Services,Children's Social Care,Support Service and Management Costs,Schools Catering,Kitchen Supplies - Food and Beverages,09/04/2018,5018920,257.06,Thomas Ridley & Son Ltd
Childrens Services,Children's Social Care,Support Service and Management Costs,Schools Catering,Kitchen Supplies - Food and Beverages,09/04/2018,5018923,447.67,Thomas Ridley & Son Ltd
Childrens Services,Children's Social Care,Support Service and Management Costs,Schools Catering,Kitchen Supplies - Food and Beverages,09/04/2018,5018926,596.56,Thomas Ridley & Son Ltd
Childrens Services,Children's Social Care,Support Service and Management Costs,Schools Catering,Kitchen Supplies - Food and Beverages,09/04/2018,5018929,260.37,Thomas Ridley & Son Ltd
Childrens Services,Children's Social Care,Support Service and Management Costs,Schools Catering,Kitchen Supplies - Food and Beverages,09/04/2018,5018935,315.37,Thomas Ridley & Son Ltd
Childrens Services,Children's Social Care,Support Service and Management Costs,Schools Catering,Kitchen Supplies - Food and Beverages,09/04/2018,5018938,337.62,Thomas Ridley & Son Ltd
Childrens Services,Children's Social Care,Support Service and Management Costs,Schools Catering,Kitchen Supplies - Food and Beverages,09/04/2018,5018941,528.02,Thomas Ridley & Son Ltd
Childrens Services,Education Services,Early Years,Mowlem CC,Fixtures and Fittings - Purchases - General,09/04/2018,5019048,570.00,JC Coster (Metalworks) Ltd
Childrens Services,Children's Social Care,Support Service and Management Costs,Schools Catering,Kitchen Supplies - Food and Beverages,09/04/2018,5019065,534.39,Thomas Ridley & Son Ltd
Childrens Services,Children's Social Care,Support Service and Management Costs,Toby Lane Function,Kitchen Supplies - Food and Beverages,09/04/2018,5019067,255.19,Thomas Ridley & Son Ltd
Childrens Services,Children's Social Care,Support Service and Management Costs,Sch. Meals A/c - Central Production Unit,Kitchen Supplies - Food and Beverages,09/04/2018,5019074,275.56,Prescott-Thomas LTD.
Childrens Services,Cultural and Related Services,Culture & Heritage,Arts-Park Events,Events & Exhibition Supplies,09/04/2018,5019139,909.50,Face Events LTD
Childrens Services,Cultural and Related Services,Open Spaces,Parks & Open Spaces Man&Admin,Payments to Private Contractors - Private Contractor,09/04/2018,5019168,"7,975.00",Friends of Tower Hamlets Cemetery Park
Childrens Services,Children's Social Care,Support Service and Management Costs,Schools Catering,Kitchen Supplies - Food and Beverages,09/04/2018,5019198,509.53,Thomas Ridley & Son Ltd
Childrens Services,Children's Social Care,Support Service and Management Costs,Sch. Meals A/c - Central Production Unit,Kitchen Supplies - Food and Beverages,09/04/2018,5019199,"1,863.77",Thomas Ridley & Son Ltd
Childrens Services,Children's Social Care,Support Service and Management Costs,Schools Catering,Kitchen Supplies - Food and Beverages,09/04/2018,5019245,262.94,Thomas Ridley & Son Ltd
Childrens Services,Children's Social Care,Support Service and Management Costs,Schools Catering,Kitchen Supplies - Food and Beverages,09/04/2018,5019255,658.65,Thomas Ridley & Son Ltd
Childrens Services,Children's Social Care,Support Service and Management Costs,Schools Catering,Kitchen Supplies - Food and Beverages,09/04/2018,5019268,574.49,Thomas Ridley & Son Ltd
Childrens Services,Children's Social Care,Support Service and Management Costs,Schools Catering,Materials - Cleaning Materials,09/04/2018,5019282,315.30,The Maintenance Supply Co Ltd
Childrens Services,Children's Social Care,Support Service and Management Costs,Schools Catering,Kitchen Supplies - Food and Beverages,09/04/2018,5019304,333.47,Thomas Ridley & Son Ltd
Childrens Services,Children's Social Care,Support Service and Management Costs,Schools Catering,Kitchen Supplies - Food and Beverages,09/04/2018,5019309,292.36,Thomas Ridley & Son Ltd
Childrens Services,Children's Social Care,Support Service and Management Costs,Schools Catering,Kitchen Supplies - Food and Beverages,09/04/2018,5019316,339.23,Thomas Ridley & Son Ltd
Childrens Services,Children's Social Care,Support Service and Management Costs,Schools Catering,Kitchen Supplies - Food and Beverages,09/04/2018,5019326,373.96,Thomas Ridley & Son Ltd
Childrens Services,Children's Social Care,Support Service and Management Costs,Schools Catering,Kitchen Supplies - Food and Beverages,09/04/2018,5019342,594.11,Thomas Ridley & Son Ltd
Childrens Services,Children's Social Care,Support Service and Management Costs,Schools Catering,Kitchen Supplies - Food and Beverages,09/04/2018,5019347,283.73,Thomas Ridley & Son Ltd
Childrens Services,Children's Social Care,Support Service and Management Costs,Schools Catering,Kitchen Supplies - Food and Beverages,09/04/2018,5019351,652.11,Thomas Ridley & Son Ltd
Childrens Services,Children's Social Care,Support Service and Management Costs,Schools Catering,Kitchen Supplies - Food and Beverages,09/04/2018,5019562,631.58,Thomas Ridley & Son Ltd
Childrens Services,Children's Social Care,Support Service and Management Costs,Schools Catering,Kitchen Supplies - Food and Beverages,09/04/2018,5020078,669.83,Thomas Ridley & Son Ltd
Childrens Services,Children's Social Care,Support Service and Management Costs,Schools Catering,Kitchen Supplies - Food and Beverages,09/04/2018,5020086,327.89,Thomas Ridley & Son Ltd
Childrens Services,Children's Social Care,Support Service and Management Costs,Schools Catering,Kitchen Supplies - Food and Beverages,09/04/2018,5020089,447.75,Thomas Ridley & Son Ltd
Childrens Services,Children's Social Care,Support Service and Management Costs,Schools Catering,Kitchen Supplies - Food and Beverages,09/04/2018,5020091,548.28,Thomas Ridley & Son Ltd
Childrens Services,Children's Social Care,Support Service and Management Costs,Schools Catering,Kitchen Supplies - Food and Beverages,09/04/2018,5020093,531.01,Thomas Ridley & Son Ltd
Childrens Services,Children's Social Care,Support Service and Management Costs,Schools Catering,Kitchen Supplies - Food and Beverages,09/04/2018,5020097,659.05,Thomas Ridley & Son Ltd
Childrens Services,Children's Social Care,Support Service and Management Costs,Schools Catering,Kitchen Supplies - Food and Beverages,09/04/2018,5020099,620.01,Thomas Ridley & Son Ltd
Childrens Services,Children's Social Care,Support Service and Management Costs,Schools Catering,Kitchen Supplies - Food and Beverages,09/04/2018,5020101,906.85,Thomas Ridley & Son Ltd
Childrens Services,Children's Social Care,Service Strategy,FSP Sect 17 - Team 5,Services - Professional Fees - Translation Fees,09/04/2018,5020248,949.50,Oncall Interpreters LTD
Childrens Services,Children's Social Care,Children Looked After,S23-Resi-P&V/OLA-Child Home,Childrens Act Section 23 - Placement Fee,09/04/2018,5020624,"2,332.00",Horizon Residential Homes LTD
Childrens Services,Education Services,Other Strategic Functions,Governors Services,Education & Training - Non Staff Tuition Fees,09/04/2018,5020640,500.00,Redacted Section 40 FOI Act
Childrens Services,Children's Social Care,Children Looked After,S23-Resi-P&V/OLA-Child Home,Childrens Act Section 23 - Placement Fee,09/04/2018,5020699,"2,332.00",Horizon Residential Homes LTD
Childrens Services,Children's Social Care,Children Looked After,S23-Resi-P&V/OLA-Child Home,Childrens Act Section 23 - Placement Fee,09/04/2018,5020716,999.42,Horizon Residential Homes LTD
Childrens Services,Education Services,Other Strategic Functions,Education Psychologists GF,Catering - Hospitality,09/04/2018,5020927,356.20,LIMONCELLO (CATERING & DELICATESSEN) LTD
Childrens Services,Children's Social Care,Youth Justice,Youth Justice Team,Services - Professional Fees - Partnership Arrangement,09/04/2018,5020929,270.00,The Appropriate Adult Service Ltd
Childrens Services,Children's Social Care,Children Looked After,S23-Resi-P&V/OLA-Child Home,Childrens Act Section 23 - Placement Fee,09/04/2018,5020941,"18,672.85",McRae Residential Care Services Limited
Childrens Services,Children's Social Care,Children Looked After,S23-Resi-P&V/OLA-Child Home,Childrens Act Section 23 - Placement Fee,09/04/2018,5021057,"19,295.28",McRae Residential Care Services Limited
Childrens Services,Children's Social Care,Children Looked After,S23-Resi-P&V/OLA-Child Home,Childrens Act Section 23 - Placement Fee,09/04/2018,5021073,"18,672.85",McRae Residential Care Services Limited
Childrens Services,Children's Social Care,Children Looked After,S23-Resi-P&V/OLA-Child Home,Childrens Act Section 23 - Placement Fee,09/04/2018,5021083,"19,295.28",McRae Residential Care Services Limited
Childrens Services,Children's Social Care,Children Looked After,S23-Resi-P&V/OLA-Child Home,Childrens Act Section 23 - Placement Fee,09/04/2018,5021091,"19,295.28",McRae Residential Care Services Limited
Childrens Services,Children's Social Care,Children Looked After,S23-Resi-P&V/OLA-Child Home,Childrens Act Section 23 - Placement Fee,09/04/2018,5021098,"17,428.00",McRae Residential Care Services Limited
Childrens Services,Education Services,Early Years,Wapping CC,Educational/Training Supplies - Arts & Crafts,09/04/2018,5021568,553.90,Eduzone Ltd
Childrens Services,Education Services,Early Years,Marner. CC,Educational/Training Supplies - Resources,09/04/2018,5021612,600.00,Ocean Builders Supplies
Childrens Services,Education Services,Early Years,Early Years-Qaulity Assurance Teachers,Comms - Courier,09/04/2018,5021644,927.50,Figurehead Studios
Childrens Services,Children's Social Care,Support Service and Management Costs,Schools Catering,Kitchen Supplies - Food and Beverages,09/04/2018,5021966,325.09,William White Meats Ltd
Childrens Services,Education Services,Other Strategic Functions,Attendance & Welf Service GF,Healthy & Safety Supplies,09/04/2018,5022218,775.20,Posturite (UK) Ltd
Childrens Services,Children's Social Care,Children Looked After,S23-Other-Mother & Baby Unit,Childrens Act Section 23 - Placement Fee,09/04/2018,5022233,"3,600.00",Care 2 Share LTD
Childrens Services,Cultural and Related Services,Open Spaces,Mile End Park,Subscriptions - Associations,09/04/2018,5023708,597.48,Canvas Events Ltd
Childrens Services,Children's Social Care,Family Support Services,CNN Pool: Joint Family Support,Childrens Act Section 17 - Interpreting/Translation,09/04/2018,5024625,"1,440.80",Oncall Interpreters LTD
Childrens Services,Children's Social Care,Children Looked After,LCS/Allowances-Accom,Leaving Care Financial Assistance - Grant Pay Special Needs,09/04/2018,5024952,"2,300.00",F & J Consults Ltd trading as Greenbridge 16 Plus
Childrens Services,Children's Social Care,Children Looked After,LCS/Allowances-Accom,Leaving Care Financial Assistance - Supp Accom/Hous Rents,09/04/2018,5024952,"1,000.00",F & J Consults Ltd trading as Greenbridge 16 Plus
Childrens Services,Education Services,Secondary Schools,Trade Union Facilities,Agency Staff - TradUn&PubDuties,09/04/2018,5025824,"1,815.36",Oakland School
Childrens Services,Children's Social Care,Children Looked After,Virtual School PPG,Training Expenses - Staff External Training (UK Based),09/04/2018,5030972,"1,102.00",Learn Solutions ltd trading as TLC LIVE
Childrens Services,Education Services,Secondary Schools,PFI Hldg Account-Grouped Schoo,Payments to Private Contractors - Other Contractors,09/04/2018,5031140,"1,222,399.48",Tower Hamlets Schools LTD
Childrens Services,Children's Social Care,Commissioning and Social Work,Advice and Assessment Section 17,Childrens Act Section 17 - Other Placements Bed & Breakfast,09/04/2018,5031761,300.00,Finefair Management
Childrens Services,Children's Social Care,Service Strategy,FSP Sect 17 - Team 5,Services - Professional Fees - Translation Fees,09/04/2018,5032801,"1,973.00",Oncall Interpreters LTD
Childrens Services,Education Services,Other Strategic Functions,Special Education Needs DSG,Third Party Payments - Payments to Schools,09/04/2018,5033223,290.00,Prospero Group Ltd
Childrens Services,Education Services,Other Strategic Functions,Special Education Needs DSG,Third Party Payments - Payments to Schools,09/04/2018,5033224,870.00,Prospero Group Ltd
Childrens Services,Education Services,Other Strategic Functions,Special Education Needs DSG,Third Party Payments - Payments to Schools,09/04/2018,5033225,290.00,Prospero Group Ltd
Childrens Services,Education Services,Other Strategic Functions,Special Education Needs DSG,Third Party Payments - Payments to Schools,09/04/2018,5033228,600.00,Prospero Group Ltd
Childrens Services,Education Services,Other Strategic Functions,Special Education Needs DSG,Third Party Payments - Payments to Schools,09/04/2018,5033229,450.00,Prospero Group Ltd
Childrens Services,Education Services,Other Strategic Functions,Special Education Needs DSG,Third Party Payments - Payments to Schools,09/04/2018,5033230,696.00,Prospero Group Ltd
Childrens Services,Education Services,Other Strategic Functions,Special Education Needs DSG,Third Party Payments - Payments to Schools,09/04/2018,5033231,450.00,Prospero Group Ltd
Childrens Services,Education Services,Other Strategic Functions,Special Education Needs DSG,Third Party Payments - Payments to Schools,09/04/2018,5033232,580.00,Prospero Group Ltd
Childrens Services,Education Services,Other Strategic Functions,Special Education Needs DSG,Third Party Payments - Payments to Schools,09/04/2018,5033233,348.00,Prospero Group Ltd
Childrens Services,Education Services,Other Strategic Functions,Special Education Needs DSG,Third Party Payments - Payments to Schools,09/04/2018,5033236,754.00,Prospero Group Ltd
Childrens Services,Education Services,Other Strategic Functions,Special Education Needs DSG,Third Party Payments - Payments to Schools,09/04/2018,5033241,261.00,Prospero Group Ltd
Childrens Services,Education Services,Other Strategic Functions,Special Education Needs DSG,Third Party Payments - Payments to Schools,09/04/2018,5033242,696.00,Prospero Group Ltd
Childrens Services,Education Services,Other Strategic Functions,Special Education Needs DSG,Third Party Payments - Payments to Schools,09/04/2018,5033244,841.00,Prospero Group Ltd
Childrens Services,Education Services,Other Strategic Functions,Special Education Needs DSG,Third Party Payments - Payments to Schools,09/04/2018,5033245,"1,450.00",Prospero Group Ltd
Childrens Services,Education Services,Other Strategic Functions,Special Education Needs DSG,Third Party Payments - Payments to Schools,09/04/2018,5033246,870.00,Prospero Group Ltd
Childrens Services,Education Services,Other Strategic Functions,Special Education Needs DSG,Third Party Payments - Payments to Schools,09/04/2018,5033247,"1,450.00",Prospero Group Ltd
Childrens Services,Education Services,Other Strategic Functions,Special Education Needs DSG,Third Party Payments - Payments to Schools,09/04/2018,5033248,"1,160.00",Prospero Group Ltd
Childrens Services,Education Services,Other Strategic Functions,Special Education Needs DSG,Third Party Payments - Payments to Schools,09/04/2018,5033249,"1,595.00",Prospero Group Ltd
Childrens Services,Education Services,Other Strategic Functions,Special Education Needs DSG,Third Party Payments - Payments to Schools,09/04/2018,5033250,870.00,Prospero Group Ltd
Childrens Services,Education Services,Other Strategic Functions,Special Education Needs DSG,Third Party Payments - Payments to Schools,09/04/2018,5033251,"1,380.00",Prospero Group Ltd
Childrens Services,Education Services,Other Strategic Functions,Special Education Needs DSG,Third Party Payments - Payments to Schools,09/04/2018,5033252,696.00,Prospero Group Ltd
Childrens Services,Education Services,Other Strategic Functions,Special Education Needs DSG,Third Party Payments - Payments to Schools,09/04/2018,5033253,"1,230.00",Prospero Group Ltd
Childrens Services,Education Services,Other Strategic Functions,Special Education Needs DSG,Third Party Payments - Payments to Schools,09/04/2018,5033254,870.00,Prospero Group Ltd
Childrens Services,Education Services,Other Strategic Functions,Special Education Needs DSG,Third Party Payments - Payments to Schools,09/04/2018,5033255,870.00,Prospero Group Ltd
Childrens Services,Education Services,Other Strategic Functions,Special Education Needs DSG,Third Party Payments - Payments to Schools,09/04/2018,5033256,870.00,Prospero Group Ltd
Childrens Services,Education Services,Other Strategic Functions,Special Education Needs DSG,Third Party Payments - Payments to Schools,09/04/2018,5033257,870.00,Prospero Group Ltd
Childrens Services,Education Services,Other Strategic Functions,Special Education Needs DSG,Third Party Payments - Payments to Schools,09/04/2018,5033259,696.00,Prospero Group Ltd
Childrens Services,Education Services,Other Strategic Functions,Music Trading Account,Educational/Training Supplies - Arts & Crafts,09/04/2018,5033266,556.00,Redacted Section 40 FOI Act
Childrens Services,Children's Social Care,Children Looked After,S23-Resi-P&V/OLA-Child Home,Childrens Act Section 23 - Placement Fee,09/04/2018,5033274,"12,188.40",Bridge Communities Ltd
Childrens Services,Children's Social Care,Children Looked After,Virtual School PPG,Training Expenses - Staff External Training (UK Based),09/04/2018,5033311,299.00,National Association of Virtual Heads
Childrens Services,Children's Social Care,Support Service and Management Costs,Schools Catering,Kitchen Supplies - Food and Beverages,09/04/2018,5033327,573.64,Thomas Ridley & Son Ltd
Childrens Services,Children's Social Care,Children Looked After,S23-Resi-P&V/OLA-Child Home,Childrens Act Section 23 - Placement Fee,09/04/2018,5033337,"8,857.14",CARE Ltd
Childrens Services,Children's Social Care,Services for young people,Youth Service Management,SLA Services (Expenditure) - Service Level Agreements,09/04/2018,5033386,"57,000.00",Osmani Trust
Childrens Services,Children's Social Care,Children's and Young People's Safety,Community Safeguarding,Training Expenses - Staff External Training (UK Based),09/04/2018,5033432,400.00,WF Somali Women Association
Childrens Services,Children's Social Care,Children Looked After,S23-Resi-P&V/OLA-Child Home,Childrens Act Section 23 - Placement Fee,09/04/2018,5033531,"19,928.57",Greenfields Adolescent Development Ltd
Childrens Services,Cultural and Related Services,Open Spaces,Mile End Park,Repairs and Maintenance - Responsive - Buildings,09/04/2018,5033552,"1,120.00",The Neon Sign Store
Childrens Services,Children's Social Care,Children Looked After,LCS/Allowances-Accom,Leaving Care Financial Assistance - Reg Plan Maint L-Allow,09/04/2018,5033637,290.00,SOCIAL SERVICES LEAVING CARE SERVICE
Childrens Services,Children's Social Care,Children Looked After,LCS/Allowances-Accom,Leaving Care Financial Assistance - User Inv Care Lea Group,09/04/2018,5033637,271.78,SOCIAL SERVICES LEAVING CARE SERVICE
Childrens Services,Children's Social Care,Support Service and Management Costs,Swanlea,Kitchen Supplies - Food and Beverages,10/04/2018,5019068,668.02,Thomas Ridley & Son Ltd
Childrens Services,Children's Social Care,Support Service and Management Costs,Schools Catering,Kitchen Supplies - Food and Beverages,10/04/2018,5020105,290.67,Thomas Ridley & Son Ltd
Childrens Services,Children's Social Care,Support Service and Management Costs,Schools Catering,Kitchen Supplies - Food and Beverages,10/04/2018,5020108,365.43,Thomas Ridley & Son Ltd
Childrens Services,Children's Social Care,Support Service and Management Costs,Schools Catering,Kitchen Supplies - Food and Beverages,10/04/2018,5020110,338.84,Thomas Ridley & Son Ltd
Childrens Services,Children's Social Care,Support Service and Management Costs,Schools Catering,Kitchen Supplies - Food and Beverages,10/04/2018,5020112,476.11,Thomas Ridley & Son Ltd
Childrens Services,Children's Social Care,Support Service and Management Costs,Schools Catering,Kitchen Supplies - Food and Beverages,10/04/2018,5020114,468.52,Thomas Ridley & Son Ltd
Childrens Services,Children's Social Care,Support Service and Management Costs,Schools Catering,Kitchen Supplies - Food and Beverages,10/04/2018,5020124,289.63,Thomas Ridley & Son Ltd
Childrens Services,Children's Social Care,Support Service and Management Costs,Schools Catering,Kitchen Supplies - Food and Beverages,10/04/2018,5020126,731.65,Thomas Ridley & Son Ltd
Childrens Services,Children's Social Care,Support Service and Management Costs,Schools Catering,Kitchen Supplies - Food and Beverages,10/04/2018,5020130,453.13,Thomas Ridley & Son Ltd
Childrens Services,Education Services,Other Strategic Functions,Central Pupil Database Project,Computing - Purchase of Software,10/04/2018,5020159,"18,000.00",Serverlec Synergy Ltd
Childrens Services,Education Services,Other Strategic Functions,Central Pupil Database Project,Computing - Purchase of Software,10/04/2018,5020160,"1,350.00",Serverlec Synergy Ltd
Childrens Services,Education Services,Other Strategic Functions,Central Pupil Database Project,Computing - Purchase of Software,10/04/2018,5020161,"8,800.00",Serverlec Synergy Ltd
Childrens Services,Education Services,Early Years,Overland,Payments to Private Contractors - Private Contractor,10/04/2018,5020233,339.00,ESPO
Childrens Services,Education Services,Early Years,John Smith,Payments to Private Contractors - Private Contractor,10/04/2018,5020234,339.00,ESPO
Childrens Services,Cultural and Related Services,Culture & Heritage,Brady Arts Centre,Office Furniture/Equipment,10/04/2018,5020235,732.00,ESPO
Childrens Services,Children's Social Care,Support Service and Management Costs,Schools Catering,Kitchen Supplies - Food and Beverages,10/04/2018,5020240,658.78,Thomas Ridley & Son Ltd
Childrens Services,Children's Social Care,Support Service and Management Costs,"Mulberry Caf�		",Kitchen Supplies - Food and Beverages,10/04/2018,5020241,383.88,Thomas Ridley & Son Ltd
Childrens Services,Children's Social Care,Support Service and Management Costs,Sch. Meals A/c - Central Production Unit,Kitchen Supplies - Food and Beverages,10/04/2018,5020242,"1,229.01",Thomas Ridley & Son Ltd
Childrens Services,Children's Social Care,Support Service and Management Costs,Schools Catering,Kitchen Supplies - Food and Beverages,10/04/2018,5020312,418.94,Thomas Ridley & Son Ltd
Childrens Services,Children's Social Care,Support Service and Management Costs,Schools Catering,Kitchen Supplies - Food and Beverages,10/04/2018,5020321,748.62,Thomas Ridley & Son Ltd
Childrens Services,Children's Social Care,Support Service and Management Costs,Schools Catering,Kitchen Supplies - Food and Beverages,10/04/2018,5020327,750.61,Thomas Ridley & Son Ltd
Childrens Services,Children's Social Care,Support Service and Management Costs,Schools Catering,Kitchen Supplies - Food and Beverages,10/04/2018,5020338,827.63,Thomas Ridley & Son Ltd
Childrens Services,Children's Social Care,Support Service and Management Costs,Schools Catering,Kitchen Supplies - Food and Beverages,10/04/2018,5020346,280.07,Thomas Ridley & Son Ltd
Childrens Services,Children's Social Care,Support Service and Management Costs,Schools Catering,Kitchen Supplies - Food and Beverages,10/04/2018,5020350,428.50,Thomas Ridley & Son Ltd
Childrens Services,Children's Social Care,Support Service and Management Costs,Schools Catering,Kitchen Supplies - Food and Beverages,10/04/2018,5020356,659.25,Thomas Ridley & Son Ltd
Childrens Services,Children's Social Care,Support Service and Management Costs,Schools Catering,Kitchen Supplies - Food and Beverages,10/04/2018,5020358,307.65,Thomas Ridley & Son Ltd
Childrens Services,Children's Social Care,Support Service and Management Costs,Schools Catering,Kitchen Supplies - Food and Beverages,10/04/2018,5020360,283.56,Thomas Ridley & Son Ltd
Childrens Services,Children's Social Care,Support Service and Management Costs,Schools Catering,Kitchen Supplies - Food and Beverages,10/04/2018,5020364,839.12,Thomas Ridley & Son Ltd
Childrens Services,Children's Social Care,Support Service and Management Costs,Schools Catering,Kitchen Supplies - Food and Beverages,10/04/2018,5020366,347.23,Thomas Ridley & Son Ltd
Childrens Services,Children's Social Care,Support Service and Management Costs,Schools Catering,Kitchen Supplies - Food and Beverages,10/04/2018,5020368,492.09,Thomas Ridley & Son Ltd
Childrens Services,Children's Social Care,Support Service and Management Costs,Schools Catering,Kitchen Supplies - Food and Beverages,10/04/2018,5020370,522.83,Thomas Ridley & Son Ltd
Childrens Services,Children's Social Care,Support Service and Management Costs,Schools Catering,Kitchen Supplies - Food and Beverages,10/04/2018,5020372,315.43,Thomas Ridley & Son Ltd
Childrens Services,Children's Social Care,Support Service and Management Costs,Schools Catering,Kitchen Supplies - Food and Beverages,10/04/2018,5020374,511.14,Thomas Ridley & Son Ltd
Childrens Services,Children's Social Care,Support Service and Management Costs,Schools Catering,Kitchen Supplies - Food and Beverages,10/04/2018,5020376,321.37,Thomas Ridley & Son Ltd
Childrens Services,Children's Social Care,Support Service and Management Costs,Schools Catering,Kitchen Supplies - Food and Beverages,10/04/2018,5020380,298.07,Thomas Ridley & Son Ltd
Childrens Services,Children's Social Care,Support Service and Management Costs,Schools Catering,Kitchen Supplies - Food and Beverages,10/04/2018,5020382,451.16,Thomas Ridley & Son Ltd
Childrens Services,Children's Social Care,Support Service and Management Costs,Schools Catering,Kitchen Supplies - Food and Beverages,10/04/2018,5020384,666.68,Thomas Ridley & Son Ltd
Childrens Services,Children's Social Care,Support Service and Management Costs,Schools Catering,Kitchen Supplies - Food and Beverages,10/04/2018,5020386,359.82,Thomas Ridley & Son Ltd
Childrens Services,Children's Social Care,Support Service and Management Costs,Schools Catering,Kitchen Supplies - Food and Beverages,10/04/2018,5020388,544.74,Thomas Ridley & Son Ltd
Childrens Services,Children's Social Care,Support Service and Management Costs,Schools Catering,Kitchen Supplies - Food and Beverages,10/04/2018,5020390,327.51,Thomas Ridley & Son Ltd
Childrens Services,Children's Social Care,Support Service and Management Costs,Schools Catering,Kitchen Supplies - Food and Beverages,10/04/2018,5020392,520.66,Thomas Ridley & Son Ltd
Childrens Services,Children's Social Care,Support Service and Management Costs,Schools Catering,Kitchen Supplies - Food and Beverages,10/04/2018,5020396,766.18,Thomas Ridley & Son Ltd
Childrens Services,Children's Social Care,Support Service and Management Costs,Schools Catering,Kitchen Supplies - Food and Beverages,10/04/2018,5020400,854.32,Thomas Ridley & Son Ltd
Childrens Services,Children's Social Care,Support Service and Management Costs,Schools Catering,Kitchen Supplies - Food and Beverages,10/04/2018,5020402,266.82,Thomas Ridley & Son Ltd
Childrens Services,Children's Social Care,Support Service and Management Costs,Schools Catering,Kitchen Supplies - Food and Beverages,10/04/2018,5020403,293.47,Thomas Ridley & Son Ltd
Childrens Services,Education Services,Early Years,Marner. CC,Stationery,10/04/2018,5020535,509.72,Office Depot (Catalogue)
Childrens Services,Education Services,Early Years,John Smith CC,Educational/Training Supplies - Arts & Crafts,10/04/2018,5020613,462.00,ESPO
Childrens Services,Education Services,Early Years,EYS Mangt & Admin GF,Events & Exhibition Supplies,10/04/2018,5020615,300.00,Kois Miah Photography
Childrens Services,Children's Social Care,Support Service and Management Costs,Schools Catering,Kitchen Supplies - Food and Beverages,10/04/2018,5020626,-766.18,Thomas Ridley & Son Ltd
Childrens Services,Children's Social Care,Support Service and Management Costs,Swanlea,Kitchen Supplies - Food and Beverages,10/04/2018,5020627,467.32,Thomas Ridley & Son Ltd
Childrens Services,Education Services,Other Strategic Functions,High Needs Other Boroughs,Third Party Payments - Payments to Schools,10/04/2018,5020674,"5,833.31",Stormont House School
Childrens Services,Children's Social Care,Support Service and Management Costs,Schools Catering,Kitchen Supplies - Food and Beverages,10/04/2018,5020700,"1,003.65",Thomas Ridley & Son Ltd
Childrens Services,Children's Social Care,Support Service and Management Costs,Schools Catering,Kitchen Supplies - Food and Beverages,10/04/2018,5020717,649.26,Thomas Ridley & Son Ltd
Childrens Services,Children's Social Care,Support Service and Management Costs,Schools Catering,Kitchen Supplies - Food and Beverages,10/04/2018,5020728,495.76,Thomas Ridley & Son Ltd
Childrens Services,Children's Social Care,Support Service and Management Costs,Schools Catering,Kitchen Supplies - Food and Beverages,10/04/2018,5020737,342.98,Thomas Ridley & Son Ltd
Childrens Services,Children's Social Care,Support Service and Management Costs,Schools Catering,Kitchen Supplies - Food and Beverages,10/04/2018,5020754,632.01,Thomas Ridley & Son Ltd
Childrens Services,Children's Social Care,Support Service and Management Costs,Schools Catering,Kitchen Supplies - Food and Beverages,10/04/2018,5020768,250.27,Thomas Ridley & Son Ltd
Childrens Services,Children's Social Care,Support Service and Management Costs,Schools Catering,Kitchen Supplies - Food and Beverages,10/04/2018,5020783,498.66,Thomas Ridley & Son Ltd
Childrens Services,Children's Social Care,Support Service and Management Costs,Schools Catering,Kitchen Supplies - Food and Beverages,10/04/2018,5020787,265.13,Thomas Ridley & Son Ltd
Childrens Services,Children's Social Care,Support Service and Management Costs,Schools Catering,Kitchen Supplies - Food and Beverages,10/04/2018,5020794,326.58,Thomas Ridley & Son Ltd
Childrens Services,Children's Social Care,Support Service and Management Costs,Schools Catering,Kitchen Supplies - Food and Beverages,10/04/2018,5020800,766.18,Thomas Ridley & Son Ltd
Childrens Services,Children's Social Care,Support Service and Management Costs,Schools Catering,Kitchen Supplies - Food and Beverages,10/04/2018,5020807,496.59,Thomas Ridley & Son Ltd
Childrens Services,Children's Social Care,Support Service and Management Costs,Schools Catering,Kitchen Supplies - Food and Beverages,10/04/2018,5020811,454.54,Thomas Ridley & Son Ltd
Childrens Services,Children's Social Care,Support Service and Management Costs,Schools Catering,Kitchen Supplies - Food and Beverages,10/04/2018,5020817,"1,074.33",Thomas Ridley & Son Ltd
Childrens Services,Children's Social Care,Support Service and Management Costs,Schools Catering,Kitchen Supplies - Food and Beverages,10/04/2018,5020820,371.36,Thomas Ridley & Son Ltd
Childrens Services,Children's Social Care,Support Service and Management Costs,Schools Catering,Repairs and Maintenance - Responsive - General,10/04/2018,5021086,528.80,Lambourne Refrigeration
Childrens Services,Education Services,Early Years,Marner. CC,Educational/Training Supplies - Resources,10/04/2018,5021617,308.00,COMMUNITY PRODUCTS (UK) LTD
Childrens Services,Education Services,Early Years,Marner. CC,Educational/Training Supplies - Resources,10/04/2018,5021619,"1,520.00",COMMUNITY PRODUCTS (UK) LTD
Childrens Services,Children's Social Care,Children Looked After,Virtual School PPG,Agency Staff - Associations,10/04/2018,5021665,"1,150.75",Academics ltd
Childrens Services,Children's Social Care,Children Looked After,Virtual School PPG,Agency Staff - Associations,10/04/2018,5021666,690.45,Academics ltd
Childrens Services,Children's Social Care,Children Looked After,Virtual School PPG,Agency Staff - Associations,10/04/2018,5021667,920.60,Academics ltd
Childrens Services,Children's Social Care,Children Looked After,Virtual School PPG,Agency Staff - Associations,10/04/2018,5021668,690.45,Academics ltd
Childrens Services,Children's Social Care,Children Looked After,Virtual School PPG,Agency Staff - Associations,10/04/2018,5021669,"1,150.75",Academics ltd
Childrens Services,Children's Social Care,Children Looked After,Virtual School PPG,Agency Staff - Associations,10/04/2018,5021670,"1,150.75",Academics ltd
Childrens Services,Children's Social Care,Support Service and Management Costs,Sch. Meals A/c - Central Production Unit,Kitchen Supplies - Food and Beverages,10/04/2018,5021684,625.80,William White Meats Ltd
Childrens Services,Education Services,Early Years,Marner. CC,Recreational Equipment - Recreational Equipment,10/04/2018,5021705,"2,640.00",Space kraft Ltd
Childrens Services,Children's Social Care,Support Service and Management Costs,Schools Catering,Kitchen Supplies - Food and Beverages,10/04/2018,5021991,424.32,William White Meats Ltd
Childrens Services,Children's Social Care,Support Service and Management Costs,Schools Catering,Kitchen Supplies - Food and Beverages,10/04/2018,5022000,480.61,William White Meats Ltd
Childrens Services,Children's Social Care,Support Service and Management Costs,Sch. Meals A/c - C.F.S. Upper (Harley Grove),Kitchen Supplies - Food and Beverages,10/04/2018,5022008,685.10,Peros Limited
Childrens Services,Adult Social Care,Support Service and Management Costs,Org Development L&D Training,Training Expenses - Staff External Training (UK Based),10/04/2018,5022082,"1,630.00",Huntersjoy Ltd
Childrens Services,Children's Social Care,Youth Justice,Partnerships,Computing - Purchase of Hardware,10/04/2018,5022092,597.00,Ignite Service Provider Ltd
Childrens Services,Children's Social Care,Children Looked After,S23 Fam Pl P&V-F/Care,Childrens Act Section 23 - Placement Fee,10/04/2018,5022102,"3,875.00",Ryancare Fostering Ltd
Childrens Services,Children's Social Care,Children Looked After,S23 Family Placements P&V,Childrens Act Section 23 - Placement Fee,10/04/2018,5022127,"1,733.92",Safehouses
Childrens Services,Education Services,Other Strategic Functions,Education Psychologists GF,Training Expenses - Staff External Training (UK Based),10/04/2018,5022149,"2,200.15",Talking Mats Ltd
Childrens Services,Children's Social Care,Support Service and Management Costs,Schools Catering,Kitchen Supplies - Food and Beverages,10/04/2018,5022279,278.45,William White Meats Ltd
Childrens Services,Children's Social Care,Support Service and Management Costs,Schools Catering,Kitchen Supplies - Food and Beverages,10/04/2018,5022283,565.60,William White Meats Ltd
Childrens Services,Education Services,Other Strategic Functions,Health through Education,Office Furniture/Equipment,10/04/2018,5023637,"1,080.00",Unique Office Solutions
Childrens Services,Education Services,Other Strategic Functions,Education Psychologists GF,Office Furniture/Equipment,10/04/2018,5023638,"2,160.00",Unique Office Solutions
Childrens Services,Children's Social Care,Children Looked After,S23-Resi-P&V/OLA-Sec Acc-Wel,Third Party Payments - Day Care,10/04/2018,5024512,"-6,566.88",Rossie Secure Accommodation Services
Childrens Services,Children's Social Care,Children Looked After,S23-Resi-P&V/OLA-Sec Acc-Wel,Childrens Act Section 23 - Placement Fee,10/04/2018,5024512,"-6,566.88",Rossie Secure Accommodation Services
Childrens Services,Children's Social Care,Support Service and Management Costs,Schools Catering,Printing - External,10/04/2018,5024607,380.49,Copy & Print
Childrens Services,Children's Social Care,Services for young people,LAPS 1 - 8,Educational/Training Supplies - Curriculum Visits/Activities,10/04/2018,5024664,601.68,Specialist Crafts LTD
Childrens Services,Children's Social Care,Children Looked After,S23-Resi-P&V/OLA-Sec Acc-Wel,Third Party Payments - Day Care,10/04/2018,5024957,"12,723.33",Rossie Secure Accommodation Services
Childrens Services,Children's Social Care,Children Looked After,S23-Resi-P&V/OLA-Sec Acc-Wel,Childrens Act Section 23 - Placement Fee,10/04/2018,5024957,"12,723.33",Rossie Secure Accommodation Services
Childrens Services,Children's Social Care,Children Looked After,S23-Resi-P&V/OLA-Child Home,Childrens Act Section 23 - Non-Contact Taxi Costs,10/04/2018,5025001,"1,861.70",Wrixon Care Services
Childrens Services,Education Services,Early Years,Overland CC,Educational/Training Supplies - Arts & Crafts,10/04/2018,5030523,481.00,ESPO
Childrens Services,Children's Social Care,Children Looked After,S23-Resi-P&V/OLA-Child Home,Childrens Act Section 23 - Placement Fee,10/04/2018,5030577,"18,339.82",Castle Homes Care Ltd
Childrens Services,Children's Social Care,Support Service and Management Costs,Welfare Catering,Kitchen Supplies - Food and Beverages,10/04/2018,5030579,"1,250.74",Raj Foods LTD
Childrens Services,Children's Social Care,Support Service and Management Costs,Welfare Catering,Kitchen Supplies - Food and Beverages,10/04/2018,5030698,"1,466.63",Raj Foods LTD
Childrens Services,Education Services,Secondary Schools,PFI Hldg Account-Grouped Schoo,Payments to Private Contractors - Other Contractors,10/04/2018,5031013,"228,909.73",Tower Hamlets Schools LTD
Childrens Services,No Service Specified,No Division Specified,Capital-Minor Works (SC),Other External Fees - Other External Fees,10/04/2018,5031386,"5,850.00",Tower Hamlets Schools LTD
Childrens Services,Education Services,Other Strategic Functions,Music Trading Account,Third Party Payments - Voluntary Associations,10/04/2018,5031854,"2,000.00",Voces Cantabiles Music
Childrens Services,Children's Social Care,Children Looked After,S23-Other-Semi-Ind. Unit,Childrens Act Section 23 - Placement Fee,10/04/2018,5033105,"2,116.85",TSS Ltd
Childrens Services,Children's Social Care,Children Looked After,Staying Put,Childrens Act Section 23 - Placement Fee,10/04/2018,5033319,"1,330.78",Welcome Foster Care
Childrens Services,Education Services,Other Strategic Functions,Music Trading Account,Third Party Payments - Voluntary Associations,10/04/2018,5033476,"1,000.00",Auto Italia South East
Childrens Services,Education Services,Other Strategic Functions,Music Trading Account,Third Party Payments - Voluntary Associations,10/04/2018,5033526,"1,000.00",Wigmore Hall Trust
Childrens Services,Children's Social Care,Family Support Services,CNN Pool: Joint Family Support,Social Care - Homecare,10/04/2018,5033572,"37,438.25",APASENTH
Childrens Services,Children's Social Care,Family Support Services,IPST S17 NRPF,Childrens Act Section 17 - Food Grants,10/04/2018,5033655,"1,375.00",SOCIAL SERVICES CHEVIOT HOUSE
Childrens Services,Children's Social Care,Family Support Services,IPST S17 NRPF,Childrens Act Section 17 - Food Grants,10/04/2018,5033655,"1,230.00",SOCIAL SERVICES CHEVIOT HOUSE
Childrens Services,Children's Social Care,Support Service and Management Costs,Professional Dev Centre,Repairs and Maintenance - Responsive - Fire Equipment,10/04/2018,5033736,622.53,Fire Safety Services (UK) Ltd
Childrens Services,Education Services,Other Strategic Functions,Schools Library,Educational/Training Supplies - Books,10/04/2018,5033737,343.88,Heath Books Ltd
Childrens Services,Children's Social Care,Children Looked After,S23 Family Placements P&V,Childrens Act Section 23 - Placement Fee,10/04/2018,5033764,"3,034.36",Safehouses
Childrens Services,Education Services,Other Strategic Functions,Auxilary Aids,Training Expenses - Staff External Training (UK Based),10/04/2018,5033769,424.00,Ewing Foundation
Childrens Services,Children's Social Care,Children Looked After,S23 Fam Pl In-Hse-S/Term F/C,Childrens Act Section 23 - Expert Assessmt/Witness Costs,10/04/2018,5033813,307.60,Healthcare South West Ltd
Childrens Services,Children's Social Care,Children Looked After,S23 Fam Pl In-Hse-F&F F/Care,Childrens Act Section 23 - Commissioned Services,10/04/2018,5033824,"3,250.00",The Wyvern Federation (Vauxhall Primary School)
Childrens Services,Children's Social Care,Service Strategy,CSC Childrens Resources M & A,Training Expenses - Staff External Training (UK Based),11/04/2018,5021598,"1,985.60",AC Education
Childrens Services,Cultural and Related Services,Open Spaces,Victoria Park,Repairs and Maintenance - Responsive - Repair & Maintenance,11/04/2018,5031354,"5,290.53",Manpower Direct UK
Childrens Services,Cultural and Related Services,Open Spaces,Victoria Park,Repairs and Maintenance - Responsive - Repair & Maintenance,11/04/2018,5031448,905.68,Timberplay Ltd
Childrens Services,Education Services,Other Strategic Functions,Ofsted Improvement Plan,Services - Professional Fees - Consultants Fees,11/04/2018,5033235,"3,500.00",Palvinder Kudhail Associates Limited
Childrens Services,Children's Social Care,Family Support Services,Eva Armsby Family Centre,Services - Professional Fees - Legal Fees/Expenses,11/04/2018,5033922,307.57,Umeed Ltd
Childrens Services,Children's Social Care,Support Service and Management Costs,Schools Catering,Kitchen Supplies - Food and Beverages,13/04/2018,5020942,718.31,Thomas Ridley & Son Ltd
Childrens Services,Children's Social Care,Support Service and Management Costs,Sch. Meals A/c - Central Production Unit,Kitchen Supplies - Food and Beverages,13/04/2018,5020943,"1,088.09",Thomas Ridley & Son Ltd
Childrens Services,Education Services,Other Education and Community Budget,Community Languages,Office Furniture/Equipment,13/04/2018,5020981,"2,200.00",Creative Events
Childrens Services,Children's Social Care,Support Service and Management Costs,Schools Catering,Kitchen Supplies - Food and Beverages,13/04/2018,5021058,577.12,Thomas Ridley & Son Ltd
Childrens Services,Children's Social Care,Support Service and Management Costs,Schools Catering,Kitchen Supplies - Food and Beverages,13/04/2018,5021074,762.28,Thomas Ridley & Son Ltd
Childrens Services,Children's Social Care,Support Service and Management Costs,Schools Catering,Kitchen Supplies - Food and Beverages,13/04/2018,5021084,263.51,Thomas Ridley & Son Ltd
Childrens Services,Children's Social Care,Support Service and Management Costs,Schools Catering,Kitchen Supplies - Food and Beverages,13/04/2018,5021099,554.03,Thomas Ridley & Son Ltd
Childrens Services,Children's Social Care,Support Service and Management Costs,Schools Catering,Kitchen Supplies - Food and Beverages,13/04/2018,5021107,663.58,Thomas Ridley & Son Ltd
Childrens Services,Children's Social Care,Support Service and Management Costs,Schools Catering,Kitchen Supplies - Food and Beverages,13/04/2018,5021115,683.96,Thomas Ridley & Son Ltd
Childrens Services,Children's Social Care,Support Service and Management Costs,Schools Catering,Kitchen Supplies - Food and Beverages,13/04/2018,5021117,310.61,Thomas Ridley & Son Ltd
Childrens Services,Children's Social Care,Support Service and Management Costs,Schools Catering,Kitchen Supplies - Food and Beverages,13/04/2018,5021122,451.21,Thomas Ridley & Son Ltd
Childrens Services,Children's Social Care,Support Service and Management Costs,Schools Catering,Kitchen Supplies - Food and Beverages,13/04/2018,5021124,281.08,Thomas Ridley & Son Ltd
Childrens Services,Children's Social Care,Support Service and Management Costs,Schools Catering,Kitchen Supplies - Food and Beverages,13/04/2018,5021126,314.68,Thomas Ridley & Son Ltd
Childrens Services,Children's Social Care,Support Service and Management Costs,Schools Catering,Kitchen Supplies - Food and Beverages,13/04/2018,5021388,380.76,Thomas Ridley & Son Ltd
Childrens Services,Children's Social Care,Support Service and Management Costs,Schools Catering,Kitchen Supplies - Food and Beverages,13/04/2018,5021390,312.31,Thomas Ridley & Son Ltd
Childrens Services,Children's Social Care,Support Service and Management Costs,Schools Catering,Kitchen Supplies - Food and Beverages,13/04/2018,5021392,"1,001.34",Thomas Ridley & Son Ltd
Childrens Services,Children's Social Care,Support Service and Management Costs,Schools Catering,Kitchen Supplies - Food and Beverages,13/04/2018,5021396,"1,193.27",Thomas Ridley & Son Ltd
Childrens Services,Children's Social Care,Support Service and Management Costs,Schools Catering,Kitchen Supplies - Food and Beverages,13/04/2018,5021398,354.09,Thomas Ridley & Son Ltd
Childrens Services,Children's Social Care,Support Service and Management Costs,Schools Catering,Kitchen Supplies - Food and Beverages,13/04/2018,5021400,485.95,Thomas Ridley & Son Ltd
Childrens Services,Children's Social Care,Support Service and Management Costs,Schools Catering,Kitchen Supplies - Food and Beverages,13/04/2018,5021402,334.87,Thomas Ridley & Son Ltd
Childrens Services,Children's Social Care,Support Service and Management Costs,Schools Catering,Kitchen Supplies - Food and Beverages,13/04/2018,5021404,474.24,Thomas Ridley & Son Ltd
Childrens Services,Children's Social Care,Support Service and Management Costs,Schools Catering,Kitchen Supplies - Food and Beverages,13/04/2018,5021405,368.66,Thomas Ridley & Son Ltd
Childrens Services,Children's Social Care,Support Service and Management Costs,Schools Catering,Kitchen Supplies - Food and Beverages,13/04/2018,5021406,344.82,Thomas Ridley & Son Ltd
Childrens Services,Children's Social Care,Support Service and Management Costs,Schools Catering,Kitchen Supplies - Food and Beverages,13/04/2018,5021409,408.43,Thomas Ridley & Son Ltd
Childrens Services,Children's Social Care,Support Service and Management Costs,Schools Catering,Kitchen Supplies - Food and Beverages,13/04/2018,5021410,342.38,Thomas Ridley & Son Ltd
Childrens Services,Children's Social Care,Support Service and Management Costs,Schools Catering,Kitchen Supplies - Food and Beverages,13/04/2018,5021411,448.88,Thomas Ridley & Son Ltd
Childrens Services,Children's Social Care,Support Service and Management Costs,Schools Catering,Kitchen Supplies - Food and Beverages,13/04/2018,5021413,357.18,Thomas Ridley & Son Ltd
Childrens Services,Children's Social Care,Support Service and Management Costs,Schools Catering,Kitchen Supplies - Food and Beverages,13/04/2018,5021414,480.51,Thomas Ridley & Son Ltd
Childrens Services,Children's Social Care,Support Service and Management Costs,Schools Catering,Kitchen Supplies - Food and Beverages,13/04/2018,5021415,987.75,Thomas Ridley & Son Ltd
Childrens Services,Children's Social Care,Support Service and Management Costs,Schools Catering,Kitchen Supplies - Food and Beverages,13/04/2018,5021475,722.99,Thomas Ridley & Son Ltd
Childrens Services,Children's Social Care,Support Service and Management Costs,Schools Catering,Kitchen Supplies - Food and Beverages,13/04/2018,5021476,791.09,Thomas Ridley & Son Ltd
Childrens Services,Children's Social Care,Support Service and Management Costs,Schools Catering,Kitchen Supplies - Food and Beverages,13/04/2018,5021478,636.04,Thomas Ridley & Son Ltd
Childrens Services,Children's Social Care,Support Service and Management Costs,Schools Catering,Kitchen Supplies - Food and Beverages,13/04/2018,5021486,563.50,Thomas Ridley & Son Ltd
Childrens Services,Children's Social Care,Support Service and Management Costs,Schools Catering,Kitchen Supplies - Food and Beverages,13/04/2018,5021495,406.94,Thomas Ridley & Son Ltd
Childrens Services,Children's Social Care,Children Looked After,S23 Fam Pl P&V-F/Care,Childrens Act Section 23 - Placement Fee,13/04/2018,5021638,"4,185.00",St Christopher's Fellowship
Childrens Services,Education Services,Other Strategic Functions,High Needs FE Colleges,Third Party Payments - Payments to Schools,13/04/2018,5021741,"12,594.18",Lambeth College
Childrens Services,Children's Social Care,Children Looked After,S23 Fam Pl P&V-F/Care,Childrens Act Section 23 - Placement Fee,13/04/2018,5021753,"4,650.00",St Christopher's Fellowship
Childrens Services,Children's Social Care,Support Service and Management Costs,Swanlea,Kitchen Supplies - Food and Beverages,13/04/2018,5021762,777.69,William White Meats Ltd
Childrens Services,Children's Social Care,Support Service and Management Costs,Welfare Catering,Kitchen Supplies - Food and Beverages,13/04/2018,5021763,399.95,William White Meats Ltd
Childrens Services,Children's Social Care,Support Service and Management Costs,Sch. Meals A/c - Central Production Unit,Kitchen Supplies - Food and Beverages,13/04/2018,5021764,"1,486.57",William White Meats Ltd
Childrens Services,Children's Social Care,Support Service and Management Costs,Welfare Catering,Kitchen Supplies - Food and Beverages,13/04/2018,5021781,303.60,William White Meats Ltd
Childrens Services,Children's Social Care,Support Service and Management Costs,Schools Catering,Materials - Cleaning Materials,13/04/2018,5021816,285.45,The Maintenance Supply Co Ltd
Childrens Services,Children's Social Care,Support Service and Management Costs,Schools Catering,Kitchen Supplies - Food and Beverages,13/04/2018,5021980,834.00,William White Meats Ltd
Childrens Services,Education Services,Other Strategic Functions,High Needs Other Boroughs,Third Party Payments - Payments to Schools,13/04/2018,5022174,"8,763.20",St Monicas Catholic Primary School
Childrens Services,Children's Social Care,Support Service and Management Costs,Schools Catering,Kitchen Supplies - Food and Beverages,13/04/2018,5022295,323.24,William White Meats Ltd
Childrens Services,Children's Social Care,Support Service and Management Costs,Schools Catering,Kitchen Supplies - Food and Beverages,13/04/2018,5022307,357.44,William White Meats Ltd
Childrens Services,Children's Social Care,Support Service and Management Costs,Schools Catering,Kitchen Supplies - Food and Beverages,13/04/2018,5022316,250.32,William White Meats Ltd
Childrens Services,Children's Social Care,Support Service and Management Costs,Schools Catering,Kitchen Supplies - Food and Beverages,13/04/2018,5022848,268.20,William White Meats Ltd
Childrens Services,Children's Social Care,Support Service and Management Costs,Schools Catering,Kitchen Supplies - Food and Beverages,13/04/2018,5023542,344.74,William White Meats Ltd
Childrens Services,Children's Social Care,Support Service and Management Costs,Schools Catering,Kitchen Supplies - Food and Beverages,13/04/2018,5023545,305.23,William White Meats Ltd
Childrens Services,Children's Social Care,Support Service and Management Costs,Schools Catering,Kitchen Supplies - Food and Beverages,13/04/2018,5023571,306.00,William White Meats Ltd
Childrens Services,Children's Social Care,Support Service and Management Costs,Schools Catering,Kitchen Supplies - Food and Beverages,13/04/2018,5023574,401.87,William White Meats Ltd
Childrens Services,Children's Social Care,Support Service and Management Costs,Schools Catering,Kitchen Supplies - Food and Beverages,13/04/2018,5023583,290.49,William White Meats Ltd
Childrens Services,Children's Social Care,Support Service and Management Costs,Schools Catering,Kitchen Supplies - Food and Beverages,13/04/2018,5023655,472.08,Pelican Rouge Coffee Solutions Ltd
Childrens Services,Education Services,Other Strategic Functions,Ofsted Improvement Plan,Repairs and Maintenance - Responsive - Repair & Maintenance,13/04/2018,5023664,649.00,Crown Promotions and Removals Ltd
Childrens Services,Education Services,Other Strategic Functions,High Needs Other Boroughs,Third Party Payments - Payments to Schools,13/04/2018,5023670,"7,583.33",Riverside School
Childrens Services,Children's Social Care,Service Strategy,FSP Sect 17 - Team 3,Childrens Act Section 17 - Expert Assessmt/Witness Costs,13/04/2018,5023739,441.67,Kings College London
Childrens Services,Children's Social Care,Children Looked After,S23-Other-Semi-Ind. Unit,Childrens Act Section 23 - Placement Fee,13/04/2018,5024645,"3,991.99",Heartwood Outreach Services Ltd
Childrens Services,Children's Social Care,Children Looked After,LCS/Allowances-Accom,Leaving Care Financial Assistance - Grant Pay Special Needs,13/04/2018,5024646,"1,060.51",Heartwood Outreach Services Ltd
Childrens Services,Children's Social Care,Children Looked After,LCS/Allowances-Accom,Leaving Care Financial Assistance - Supp Accom/Hous Rents,13/04/2018,5024646,"1,569.53",Heartwood Outreach Services Ltd
Childrens Services,Children's Social Care,Children Looked After,S23-Other-Semi-Ind. Unit,Childrens Act Section 23 - Placement Fee,13/04/2018,5024647,"3,752.67",Heartwood Outreach Services Ltd
Childrens Services,Children's Social Care,Children Looked After,Virtual School PPG,Third Party Payments - Payments to Schools,13/04/2018,5024980,830.00,St Margaret's C of E Junior School
Childrens Services,Children's Social Care,Support Service and Management Costs,Sch. Meals A/c - Bow School,Catering - Hospitality,13/04/2018,5024982,810.20,Tiffin Sandwiches
Childrens Services,Children's Social Care,Support Service and Management Costs,Sch. Meals A/c - C.F.S. Upper (Harley Grove),Catering - Hospitality,13/04/2018,5024983,790.00,Tiffin Sandwiches
Childrens Services,Children's Social Care,Support Service and Management Costs,Sch. Meals A/c - George Green,Catering - Hospitality,13/04/2018,5024984,620.15,Tiffin Sandwiches
Childrens Services,Children's Social Care,Support Service and Management Costs,Sch. Meals A/c - Mulberry,Catering - Hospitality,13/04/2018,5024985,887.17,Tiffin Sandwiches
Childrens Services,Children's Social Care,Support Service and Management Costs,Sch. Meals A/c - Oaklands,Catering - Hospitality,13/04/2018,5024986,616.20,Tiffin Sandwiches
Childrens Services,Children's Social Care,Support Service and Management Costs,Sch. Meals A/c - Raines Foundation,Catering - Hospitality,13/04/2018,5024987,316.00,Tiffin Sandwiches
Childrens Services,Children's Social Care,Support Service and Management Costs,Sch. Meals A/c - St. Paul's Way Comm. Trust,Catering - Hospitality,13/04/2018,5024988,338.12,Tiffin Sandwiches
Childrens Services,Children's Social Care,Support Service and Management Costs,Sch. Meals A/c - Stepney Green,Catering - Hospitality,13/04/2018,5024989,750.50,Tiffin Sandwiches
Childrens Services,Children's Social Care,Support Service and Management Costs,Sch. Meals A/c - Langdon Park,Catering - Hospitality,13/04/2018,5024990,635.16,Tiffin Sandwiches
Childrens Services,Children's Social Care,Support Service and Management Costs,Sch. Meals A/c - Morpeth,Catering - Hospitality,13/04/2018,5024991,"1,054.65",Tiffin Sandwiches
Childrens Services,Children's Social Care,Support Service and Management Costs,"Mulberry Caf�		",Catering - Hospitality,13/04/2018,5024992,397.00,Tiffin Sandwiches
Childrens Services,Children's Social Care,Support Service and Management Costs,Professional Dev Centre,Office Furniture/Equipment,13/04/2018,5025040,313.00,Pitney Bowes DMT
Childrens Services,Education Services,Early Years,Isle of Dogs. CC,Events & Exhibition Supplies,13/04/2018,5025932,400.00,All Seasons Foods
Childrens Services,Cultural and Related Services,Culture & Heritage,Arts-Park Events,Events & Exhibition Supplies,13/04/2018,5025936,"4,999.80",Greenwich & Docklands Festival
Childrens Services,Children's Social Care,Support Service and Management Costs,Schools Catering,Kitchen Supplies - Food and Beverages,13/04/2018,5025983,339.26,William White Meats Ltd
Childrens Services,Children's Social Care,Support Service and Management Costs,Welfare Catering,Kitchen Supplies - Food and Beverages,13/04/2018,5025984,263.97,William White Meats Ltd
Childrens Services,Children's Social Care,Children Looked After,S23-Other-Semi-Ind. Unit,Childrens Act Section 23 - Placement Fee,13/04/2018,5025996,"3,752.67",Heartwood Outreach Services Ltd
Childrens Services,Children's Social Care,Service Strategy,FSP Sect 17 - Team 3,Social Care - Day Care,13/04/2018,5025997,"4,036.32",Heartwood Outreach Services Ltd
Childrens Services,Children's Social Care,Children Looked After,S23-Other-Semi-Ind. Unit,Childrens Act Section 23 - Placement Fee,13/04/2018,5025998,"4,036.32",Heartwood Outreach Services Ltd
Childrens Services,Children's Social Care,Support Service and Management Costs,Schools Catering,Kitchen Supplies - Food and Beverages,13/04/2018,5026080,554.97,William White Meats Ltd
Childrens Services,Children's Social Care,Support Service and Management Costs,Schools Catering,Kitchen Supplies - Food and Beverages,13/04/2018,5026106,296.79,William White Meats Ltd
Childrens Services,Children's Social Care,Support Service and Management Costs,Schools Catering,Kitchen Supplies - Food and Beverages,13/04/2018,5026116,420.25,William White Meats Ltd
Childrens Services,Children's Social Care,Support Service and Management Costs,Schools Catering,Kitchen Supplies - Food and Beverages,13/04/2018,5026172,369.79,William White Meats Ltd
Childrens Services,Children's Social Care,Support Service and Management Costs,Schools Catering,Kitchen Supplies - Food and Beverages,13/04/2018,5026176,994.71,William White Meats Ltd
Childrens Services,Children's Social Care,Support Service and Management Costs,Schools Catering,Kitchen Supplies - Food and Beverages,13/04/2018,5026179,368.05,William White Meats Ltd
Childrens Services,Children's Social Care,Support Service and Management Costs,Schools Catering,Kitchen Supplies - Food and Beverages,13/04/2018,5026181,290.07,William White Meats Ltd
Childrens Services,Children's Social Care,Support Service and Management Costs,Schools Catering,Kitchen Supplies - Food and Beverages,13/04/2018,5026183,973.15,William White Meats Ltd
Childrens Services,Children's Social Care,Support Service and Management Costs,Schools Catering,Kitchen Supplies - Food and Beverages,13/04/2018,5026185,458.05,William White Meats Ltd
Childrens Services,Children's Social Care,Support Service and Management Costs,Schools Catering,Kitchen Supplies - Food and Beverages,13/04/2018,5026189,428.57,William White Meats Ltd
Childrens Services,Children's Social Care,Support Service and Management Costs,Schools Catering,Kitchen Supplies - Food and Beverages,13/04/2018,5026191,405.46,William White Meats Ltd
Childrens Services,Children's Social Care,Support Service and Management Costs,Schools Catering,Kitchen Supplies - Food and Beverages,13/04/2018,5026201,325.51,William White Meats Ltd
Childrens Services,Children's Social Care,Support Service and Management Costs,Schools Catering,Kitchen Supplies - Food and Beverages,13/04/2018,5026212,336.88,William White Meats Ltd
Childrens Services,Children's Social Care,Support Service and Management Costs,Schools Catering,Kitchen Supplies - Food and Beverages,13/04/2018,5026220,710.12,William White Meats Ltd
Childrens Services,Children's Social Care,Support Service and Management Costs,Schools Catering,Kitchen Supplies - Food and Beverages,13/04/2018,5026222,"1,038.35",William White Meats Ltd
Childrens Services,Children's Social Care,Support Service and Management Costs,Schools Catering,Kitchen Supplies - Food and Beverages,13/04/2018,5026224,386.42,William White Meats Ltd
Childrens Services,Children's Social Care,Support Service and Management Costs,Schools Catering,Kitchen Supplies - Food and Beverages,13/04/2018,5026228,324.51,William White Meats Ltd
Childrens Services,Children's Social Care,Support Service and Management Costs,Schools Catering,Kitchen Supplies - Food and Beverages,13/04/2018,5026236,260.95,William White Meats Ltd
Childrens Services,Children's Social Care,Support Service and Management Costs,Schools Catering,Kitchen Supplies - Food and Beverages,13/04/2018,5026240,374.69,William White Meats Ltd
Childrens Services,Children's Social Care,Support Service and Management Costs,Schools Catering,Kitchen Supplies - Food and Beverages,13/04/2018,5026242,324.61,William White Meats Ltd
Childrens Services,Children's Social Care,Support Service and Management Costs,Schools Catering,Kitchen Supplies - Food and Beverages,13/04/2018,5026244,394.67,William White Meats Ltd
Childrens Services,Children's Social Care,Support Service and Management Costs,Schools Catering,Kitchen Supplies - Food and Beverages,13/04/2018,5026246,526.20,William White Meats Ltd
Childrens Services,Children's Social Care,Support Service and Management Costs,Schools Catering,Kitchen Supplies - Food and Beverages,13/04/2018,5026248,436.21,William White Meats Ltd
Childrens Services,Children's Social Care,Support Service and Management Costs,Schools Catering,Kitchen Supplies - Food and Beverages,13/04/2018,5026250,310.66,William White Meats Ltd
Childrens Services,Children's Social Care,Support Service and Management Costs,Schools Catering,Kitchen Supplies - Food and Beverages,13/04/2018,5026254,463.73,William White Meats Ltd
Childrens Services,Children's Social Care,Support Service and Management Costs,Schools Catering,Kitchen Supplies - Food and Beverages,13/04/2018,5026258,333.45,William White Meats Ltd
Childrens Services,Children's Social Care,Support Service and Management Costs,Schools Catering,Kitchen Supplies - Food and Beverages,13/04/2018,5026260,252.72,William White Meats Ltd
Childrens Services,Children's Social Care,Support Service and Management Costs,Schools Catering,Kitchen Supplies - Food and Beverages,13/04/2018,5026262,372.85,William White Meats Ltd
Childrens Services,Children's Social Care,Support Service and Management Costs,Schools Catering,Kitchen Supplies - Food and Beverages,13/04/2018,5026264,264.14,William White Meats Ltd
Childrens Services,Children's Social Care,Support Service and Management Costs,Schools Catering,Kitchen Supplies - Food and Beverages,13/04/2018,5026267,753.40,William White Meats Ltd
Childrens Services,Children's Social Care,Support Service and Management Costs,Schools Catering,Kitchen Supplies - Food and Beverages,13/04/2018,5026269,463.66,William White Meats Ltd
Childrens Services,Education Services,Early Years,Marner. CC,Educational/Training Supplies - Resources,13/04/2018,5030506,"1,190.00",COMMUNITY PRODUCTS (UK) LTD
Childrens Services,Education Services,Early Years,Marner. CC,Educational/Training Supplies - Resources,13/04/2018,5030508,"1,389.00",COMMUNITY PRODUCTS (UK) LTD
Childrens Services,Children's Social Care,Support Service and Management Costs,Sch. Meals A/c - Lansbury Law./Our Lady's,Repairs and Maintenance - Responsive - General,13/04/2018,5030559,704.00,Lambourne Refrigeration
Childrens Services,Education Services,Other Strategic Functions,Special Education Needs DSG,Third Party Payments - Payments to Schools,13/04/2018,5031108,"-6,869.28",Ambitious about Autism
Childrens Services,Education Services,Other Strategic Functions,High Needs FE Colleges,Third Party Payments - Payments to Schools,13/04/2018,5031156,"11,875.00",The Complete Works Ltd
Childrens Services,Education Services,Early Years,Early Years Health Project,Social Care - Nursing Care,13/04/2018,5031766,370.00,NHS SUPPLY CHAIN
Childrens Services,Education Services,Other Strategic Functions,Special Education Needs DSG,Third Party Payments - Payments to Schools,13/04/2018,5032943,"17,915.30",Ambitious about Autism
Childrens Services,Education Services,Other Strategic Functions,Special Education Needs DSG,Third Party Payments - Payments to Schools,13/04/2018,5032944,"24,042.44",Ambitious about Autism
Childrens Services,Education Services,Other Strategic Functions,Special Education Needs DSG,Third Party Payments - Payments to Schools,13/04/2018,5032945,"24,042.44",Ambitious about Autism
Childrens Services,Education Services,Other Strategic Functions,Special Education Needs DSG,Third Party Payments - Payments to Schools,13/04/2018,5032946,"24,042.44",Ambitious about Autism
Childrens Services,Education Services,Other Strategic Functions,Special Education Needs DSG,Third Party Payments - Payments to Schools,13/04/2018,5032947,"24,042.44",Ambitious about Autism
Childrens Services,Education Services,Other Strategic Functions,Special Education Needs DSG,Third Party Payments - Payments to Schools,13/04/2018,5032978,547.27,Ambitious about Autism
Childrens Services,Education Services,Other Strategic Functions,Special Education Needs DSG,Payments to Private Contractors - Private Contractor,13/04/2018,5033269,"1,550.00",Redacted Section 40 FOI Act
Childrens Services,Children's Social Care,Support Service and Management Costs,Schools Catering,Kitchen Supplies - Food and Beverages,13/04/2018,5033588,304.65,Thomas Ridley & Son Ltd
Childrens Services,Children's Social Care,Children Looked After,S23 Fam Pl In-Hse-S/Term F/C,Childrens Act Section 23 - Spec Pymnts Legal,13/04/2018,5033657,350.00,GOODMAN RAY SOLICITORS
Childrens Services,Children's Social Care,Family Support Services,IPST S17 NRPF,Childrens Act Section 17 - Other Placements Bed & Breakfast,13/04/2018,5033950,"1,209.00",METROPOLITAN & CROWN
Childrens Services,Education Services,Other Strategic Functions,Information & Support Services,Recharges from Directorates - Chief Executive's,13/04/2018,5033961,"5,773.59",Westco Trading Ltd
Childrens Services,Education Services,Early Years,Children Centre Central Team,SLA Services (Expenditure) - Service Level Agreements,13/04/2018,5035057,"1,485.00",AquariumGroup
Childrens Services,Children's Social Care,Support Service and Management Costs,Schools Catering,Kitchen Supplies - Food and Beverages,13/04/2018,5035097,366.24,Pelican Rouge Coffee Solutions Ltd
Childrens Services,Education Services,Other Strategic Functions,Special Education Needs DSG,Third Party Payments - Payments to Schools,13/04/2018,5035139,"5,812.50",National Teaching And Advisory Service
Childrens Services,Education Services,Early Years,Children Centre Central Team,SLA Services (Expenditure) - Service Level Agreements,13/04/2018,5035187,495.00,AquariumGroup
Childrens Services,Education Services,Other Strategic Functions,Special Education Needs DSG,Third Party Payments - Payments to Schools,13/04/2018,5035200,"4,687.50",National Teaching And Advisory Service
Childrens Services,Children's Social Care,Other Children's and Family Services,Permanancy and Adoption Support Team 1,Training Expenses - Other External Training (Non UK Based),13/04/2018,5035277,297.00,St David Childrens Society
Childrens Services,No Service Specified,No Division Specified,Capital-Minor Works (SC),Building Works - Main Works,13/04/2018,5035484,"2,160.00",Carter Accomodation Ltd
Childrens Services,Children's Social Care,Children's and Young People's Safety,Community Safeguarding,Events & Exhibition Supplies,13/04/2018,5035531,500.00,Youth Against Crime Not Crime Against Youth
Childrens Services,Cultural and Related Services,Recreation & Sport,Sports Development,Recreational Activities,16/04/2018,5006704,305.00,Access Sport
Childrens Services,Children's Social Care,Children Looked After,S23-Other-Semi-Ind. Unit,Childrens Act Section 23 - Placement Fee,16/04/2018,5021054,"5,603.83",The Way Care Services Ltd
Childrens Services,Children's Social Care,Children Looked After,LCS/Allowances-Accom,Leaving Care Financial Assistance - Grant Pay Special Needs,16/04/2018,5021055,"1,992.68",The Way Care Services Ltd
Childrens Services,Children's Social Care,Children Looked After,LCS/Allowances-Accom,Leaving Care Financial Assistance - Reg Plan Maint L-Allow,16/04/2018,5021055,256.37,The Way Care Services Ltd
Childrens Services,Children's Social Care,Children Looked After,LCS/Allowances-Accom,Leaving Care Financial Assistance - Supp Accom/Hous Rents,16/04/2018,5021055,"3,321.34",The Way Care Services Ltd
Childrens Services,Children's Social Care,Children Looked After,S23-Other-Semi-Ind. Unit,Childrens Act Section 23 - Placement Fee,16/04/2018,5021056,"5,603.83",The Way Care Services Ltd
Childrens Services,Children's Social Care,Support Service and Management Costs,Schools Catering,Kitchen Supplies - Food and Beverages,16/04/2018,5021501,443.49,Thomas Ridley & Son Ltd
Childrens Services,Children's Social Care,Support Service and Management Costs,Schools Catering,Kitchen Supplies - Food and Beverages,16/04/2018,5021505,304.23,Thomas Ridley & Son Ltd
Childrens Services,Children's Social Care,Support Service and Management Costs,Schools Catering,Kitchen Supplies - Food and Beverages,16/04/2018,5021510,663.27,Thomas Ridley & Son Ltd
Childrens Services,Children's Social Care,Support Service and Management Costs,Schools Catering,Kitchen Supplies - Food and Beverages,16/04/2018,5021514,312.18,Thomas Ridley & Son Ltd
Childrens Services,Children's Social Care,Support Service and Management Costs,Schools Catering,Kitchen Supplies - Food and Beverages,16/04/2018,5021515,307.58,Thomas Ridley & Son Ltd
Childrens Services,Children's Social Care,Support Service and Management Costs,Schools Catering,Kitchen Supplies - Food and Beverages,16/04/2018,5021517,358.99,Thomas Ridley & Son Ltd
Childrens Services,Children's Social Care,Support Service and Management Costs,Schools Catering,Kitchen Supplies - Food and Beverages,16/04/2018,5021519,334.96,Thomas Ridley & Son Ltd
Childrens Services,Children's Social Care,Support Service and Management Costs,Schools Catering,Kitchen Supplies - Food and Beverages,16/04/2018,5021522,377.47,Thomas Ridley & Son Ltd
Childrens Services,Children's Social Care,Support Service and Management Costs,Schools Catering,Kitchen Supplies - Food and Beverages,16/04/2018,5021524,410.78,Thomas Ridley & Son Ltd
Childrens Services,Children's Social Care,Support Service and Management Costs,Schools Catering,Kitchen Supplies - Food and Beverages,16/04/2018,5021529,294.96,Thomas Ridley & Son Ltd
Childrens Services,Children's Social Care,Support Service and Management Costs,Schools Catering,Kitchen Supplies - Food and Beverages,16/04/2018,5021531,320.85,Thomas Ridley & Son Ltd
Childrens Services,Children's Social Care,Support Service and Management Costs,Schools Catering,Kitchen Supplies - Food and Beverages,16/04/2018,5021533,263.82,Thomas Ridley & Son Ltd
Childrens Services,Children's Social Care,Support Service and Management Costs,Schools Catering,Kitchen Supplies - Food and Beverages,16/04/2018,5021534,341.66,Thomas Ridley & Son Ltd
Childrens Services,Children's Social Care,Support Service and Management Costs,Schools Catering,Kitchen Supplies - Food and Beverages,16/04/2018,5021535,959.25,Thomas Ridley & Son Ltd
Childrens Services,Children's Social Care,Support Service and Management Costs,Schools Catering,Kitchen Supplies - Food and Beverages,16/04/2018,5021536,"1,093.98",Thomas Ridley & Son Ltd
Childrens Services,Children's Social Care,Support Service and Management Costs,Schools Catering,Kitchen Supplies - Food and Beverages,16/04/2018,5021537,354.84,Thomas Ridley & Son Ltd
Childrens Services,Children's Social Care,Support Service and Management Costs,Schools Catering,Kitchen Supplies - Food and Beverages,16/04/2018,5021538,259.81,Thomas Ridley & Son Ltd
Childrens Services,Children's Social Care,Support Service and Management Costs,Schools Catering,Kitchen Supplies - Food and Beverages,16/04/2018,5021539,331.46,Thomas Ridley & Son Ltd
Childrens Services,Education Services,Early Years,Overland CC,Repairs and Maintenance - Responsive - Repair & Maintenance,16/04/2018,5021631,620.00,JC Coster (Metalworks) Ltd
Childrens Services,Education Services,Other Strategic Functions,Parents Advice Centre,Computing - Purchase of Hardware,16/04/2018,5021659,262.00,VMS Network Cabling Ltd
Childrens Services,Children's Social Care,Family Support Services,Family Intervention Programme,Computing - Purchase of Hardware,16/04/2018,5021659,262.25,VMS Network Cabling Ltd
Childrens Services,Education Services,Other Strategic Functions,Family Information Services,Computing - Purchase of Hardware,16/04/2018,5021659,262.00,VMS Network Cabling Ltd
Childrens Services,Children's Social Care,Support Service and Management Costs,Schools Catering,Kitchen Supplies - Food and Beverages,16/04/2018,5021754,287.04,Thomas Ridley & Son Ltd
Childrens Services,Children's Social Care,Support Service and Management Costs,Schools Catering,Kitchen Supplies - Food and Beverages,16/04/2018,5021774,658.60,Thomas Ridley & Son Ltd
Childrens Services,Children's Social Care,Support Service and Management Costs,Schools Catering,Kitchen Supplies - Food and Beverages,16/04/2018,5021797,287.97,Thomas Ridley & Son Ltd
Childrens Services,Children's Social Care,Support Service and Management Costs,Schools Catering,Kitchen Supplies - Food and Beverages,16/04/2018,5021811,693.94,Thomas Ridley & Son Ltd
Childrens Services,Children's Social Care,Support Service and Management Costs,Schools Catering,Kitchen Supplies - Food and Beverages,16/04/2018,5021817,323.62,Thomas Ridley & Son Ltd
Childrens Services,Children's Social Care,Support Service and Management Costs,Schools Catering,Kitchen Supplies - Food and Beverages,16/04/2018,5021823,743.70,Thomas Ridley & Son Ltd
Childrens Services,Children's Social Care,Support Service and Management Costs,Schools Catering,Kitchen Supplies - Food and Beverages,16/04/2018,5021828,487.09,Thomas Ridley & Son Ltd
Childrens Services,Children's Social Care,Support Service and Management Costs,Schools Catering,Kitchen Supplies - Food and Beverages,16/04/2018,5021833,269.80,Thomas Ridley & Son Ltd
Childrens Services,Children's Social Care,Support Service and Management Costs,Schools Catering,Kitchen Supplies - Food and Beverages,16/04/2018,5021838,347.99,Thomas Ridley & Son Ltd
Childrens Services,Children's Social Care,Support Service and Management Costs,Schools Catering,Kitchen Supplies - Food and Beverages,16/04/2018,5021872,366.80,Prescott-Thomas LTD.
Childrens Services,Children's Social Care,Support Service and Management Costs,Schools Catering,Kitchen Supplies - Food and Beverages,16/04/2018,5021932,250.92,Prescott-Thomas LTD.
Childrens Services,Children's Social Care,Support Service and Management Costs,Schools Catering,Kitchen Supplies - Food and Beverages,16/04/2018,5021959,272.34,Prescott-Thomas LTD.
Childrens Services,Education Services,Early Years,Overland CC,Stationery,16/04/2018,5022025,392.06,Office Depot (Catalogue)
Childrens Services,Children's Social Care,Support Service and Management Costs,Professional Dev Centre,Stationery,16/04/2018,5022027,417.38,Office Depot (Catalogue)
Childrens Services,Education Services,Other Strategic Functions,Health through Education,Tools and Equipment - Purchase,16/04/2018,5022061,300.00,Carmen Valino
Childrens Services,Children's Social Care,Children Looked After,S23 Fam Pl P&V-F/Care,Childrens Act Section 23 - Placement Fee,16/04/2018,5022065,"3,410.00",Fostering People Too
Childrens Services,Children's Social Care,Children Looked After,S23-Other-Semi-Ind. Unit,Childrens Act Section 23 - Placement Fee,16/04/2018,5022088,925.00,Real Life
Childrens Services,Children's Social Care,Children Looked After,S23-Other-Semi-Ind. Unit,Childrens Act Section 23 - Placement Fee,16/04/2018,5022089,"1,358.00",Real Life
Childrens Services,Children's Social Care,Children Looked After,S23-Other-Semi-Ind. Unit,Childrens Act Section 23 - Placement Fee,16/04/2018,5022090,925.00,Real Life
Childrens Services,Children's Social Care,Children Looked After,S23-Other-Semi-Ind. Unit,Childrens Act Section 23 - Placement Fee,16/04/2018,5022091,925.00,Real Life
Childrens Services,Children's Social Care,Support Service and Management Costs,Schools Catering,Kitchen Supplies - Food and Beverages,16/04/2018,5022103,682.03,Thomas Ridley & Son Ltd
Childrens Services,Children's Social Care,Support Service and Management Costs,Sch. Meals A/c - Central Production Unit,Kitchen Supplies - Food and Beverages,16/04/2018,5022104,"1,480.18",Thomas Ridley & Son Ltd
Childrens Services,Children's Social Care,Support Service and Management Costs,Toby Lane Function,Kitchen Supplies - Food and Beverages,16/04/2018,5022105,295.39,Thomas Ridley & Son Ltd
Childrens Services,Children's Social Care,Support Service and Management Costs,"Mulberry Caf�		",Kitchen Supplies - Food and Beverages,16/04/2018,5022106,284.72,Thomas Ridley & Son Ltd
Childrens Services,Children's Social Care,Support Service and Management Costs,Sch. Meals A/c - P.D.C. Cateen,Kitchen Supplies - Food and Beverages,16/04/2018,5022107,274.71,Thomas Ridley & Son Ltd
Childrens Services,No Service Specified,No Division Specified,Capital-Minor Works (SC),Other External Fees - Other External Fees,16/04/2018,5022108,"1,700.00",Architype
Childrens Services,Children's Social Care,Support Service and Management Costs,Sch. Meals A/c - Central Production Unit,Kitchen Supplies - Food and Beverages,16/04/2018,5022112,275.56,Prescott-Thomas LTD.
Childrens Services,Education Services,Other Strategic Functions,High Needs Other Boroughs,Third Party Payments - Payments to Schools,16/04/2018,5022134,"24,711.00",LONDON BOROUGH OF ISLINGTON
Childrens Services,Children's Social Care,Support Service and Management Costs,Schools Catering,Kitchen Supplies - Food and Beverages,16/04/2018,5022227,367.30,Thomas Ridley & Son Ltd
Childrens Services,Children's Social Care,Children Looked After,S23-Other-Mother & Baby Unit,Childrens Act Section 23 - Placement Fee,16/04/2018,5022242,"3,500.00",Care 2 Share LTD
Childrens Services,Children's Social Care,Support Service and Management Costs,Schools Catering,Kitchen Supplies - Food and Beverages,16/04/2018,5022243,748.19,Thomas Ridley & Son Ltd
Childrens Services,Children's Social Care,Support Service and Management Costs,Schools Catering,Kitchen Supplies - Food and Beverages,16/04/2018,5022260,314.14,Thomas Ridley & Son Ltd
Childrens Services,Children's Social Care,Support Service and Management Costs,Schools Catering,Kitchen Supplies - Food and Beverages,16/04/2018,5022265,532.21,Thomas Ridley & Son Ltd
Childrens Services,Children's Social Care,Support Service and Management Costs,Schools Catering,Kitchen Supplies - Food and Beverages,16/04/2018,5022273,721.26,Thomas Ridley & Son Ltd
Childrens Services,Children's Social Care,Support Service and Management Costs,Schools Catering,Kitchen Supplies - Food and Beverages,16/04/2018,5022277,409.94,Thomas Ridley & Son Ltd
Childrens Services,Children's Social Care,Support Service and Management Costs,Schools Catering,Kitchen Supplies - Food and Beverages,16/04/2018,5022281,304.41,Thomas Ridley & Son Ltd
Childrens Services,Children's Social Care,Support Service and Management Costs,Schools Catering,Kitchen Supplies - Food and Beverages,16/04/2018,5022285,380.42,Thomas Ridley & Son Ltd
Childrens Services,Children's Social Care,Support Service and Management Costs,Schools Catering,Kitchen Supplies - Food and Beverages,16/04/2018,5022289,528.79,Thomas Ridley & Son Ltd
Childrens Services,Children's Social Care,Support Service and Management Costs,Schools Catering,Kitchen Supplies - Food and Beverages,16/04/2018,5022293,427.27,Thomas Ridley & Son Ltd
Childrens Services,Children's Social Care,Support Service and Management Costs,Schools Catering,Kitchen Supplies - Food and Beverages,16/04/2018,5022297,430.51,Thomas Ridley & Son Ltd
Childrens Services,Children's Social Care,Support Service and Management Costs,Schools Catering,Kitchen Supplies - Food and Beverages,16/04/2018,5022301,368.16,Thomas Ridley & Son Ltd
Childrens Services,Children's Social Care,Support Service and Management Costs,Schools Catering,Kitchen Supplies - Food and Beverages,16/04/2018,5022305,955.19,Thomas Ridley & Son Ltd
Childrens Services,Children's Social Care,Support Service and Management Costs,Schools Catering,Kitchen Supplies - Food and Beverages,16/04/2018,5022314,372.74,Thomas Ridley & Son Ltd
Childrens Services,Children's Social Care,Support Service and Management Costs,Schools Catering,Kitchen Supplies - Food and Beverages,16/04/2018,5022318,317.54,Thomas Ridley & Son Ltd
Childrens Services,Children's Social Care,Support Service and Management Costs,Schools Catering,Kitchen Supplies - Food and Beverages,16/04/2018,5022838,309.60,Thomas Ridley & Son Ltd
Childrens Services,Children's Social Care,Support Service and Management Costs,Schools Catering,Kitchen Supplies - Food and Beverages,16/04/2018,5022842,489.53,Thomas Ridley & Son Ltd
Childrens Services,Children's Social Care,Support Service and Management Costs,Schools Catering,Kitchen Supplies - Food and Beverages,16/04/2018,5022847,592.91,Thomas Ridley & Son Ltd
Childrens Services,Children's Social Care,Support Service and Management Costs,Schools Catering,Kitchen Supplies - Food and Beverages,16/04/2018,5023541,306.18,Thomas Ridley & Son Ltd
Childrens Services,Children's Social Care,Support Service and Management Costs,Schools Catering,Kitchen Supplies - Food and Beverages,16/04/2018,5023548,357.81,Thomas Ridley & Son Ltd
Childrens Services,Children's Social Care,Support Service and Management Costs,Schools Catering,Kitchen Supplies - Food and Beverages,16/04/2018,5023552,518.76,Thomas Ridley & Son Ltd
Childrens Services,Children's Social Care,Support Service and Management Costs,Schools Catering,Kitchen Supplies - Food and Beverages,16/04/2018,5023561,408.60,Thomas Ridley & Son Ltd
Childrens Services,Children's Social Care,Support Service and Management Costs,Schools Catering,Kitchen Supplies - Food and Beverages,16/04/2018,5023564,510.08,Thomas Ridley & Son Ltd
Childrens Services,Children's Social Care,Support Service and Management Costs,Schools Catering,Kitchen Supplies - Food and Beverages,16/04/2018,5023567,601.60,Thomas Ridley & Son Ltd
Childrens Services,Children's Social Care,Support Service and Management Costs,Schools Catering,Kitchen Supplies - Food and Beverages,16/04/2018,5023570,531.11,Thomas Ridley & Son Ltd
Childrens Services,Children's Social Care,Support Service and Management Costs,Schools Catering,Kitchen Supplies - Food and Beverages,16/04/2018,5023573,373.52,Thomas Ridley & Son Ltd
Childrens Services,Children's Social Care,Support Service and Management Costs,Schools Catering,Kitchen Supplies - Food and Beverages,16/04/2018,5023576,877.25,Thomas Ridley & Son Ltd
Childrens Services,Children's Social Care,Support Service and Management Costs,Schools Catering,Kitchen Supplies - Food and Beverages,16/04/2018,5023579,573.80,Thomas Ridley & Son Ltd
Childrens Services,Children's Social Care,Support Service and Management Costs,Schools Catering,Kitchen Supplies - Food and Beverages,16/04/2018,5023585,250.08,Thomas Ridley & Son Ltd
Childrens Services,Children's Social Care,Support Service and Management Costs,Schools Catering,Kitchen Supplies - Food and Beverages,16/04/2018,5023592,250.10,Thomas Ridley & Son Ltd
Childrens Services,Education Services,Early Years,Marner. CC,Fixtures and Fittings - Purchases - General,16/04/2018,5023657,"3,651.00",G A Harpers LTD
Childrens Services,Education Services,Early Years,Marner. CC,Fixtures and Fittings - Purchases - General,16/04/2018,5023658,"7,269.00",G A Harpers LTD
Childrens Services,Children's Social Care,Children Looked After,S23 Fam Pl In-Hse-S/Term F/C,Childrens Act Section 23 - Documentation Costs,16/04/2018,5023696,"3,791.00",UBIQUS (UK) LTD
Childrens Services,Cultural and Related Services,Open Spaces,Mile End Park,Repairs and Maintenance - Responsive - Play Equipment Maintenance,16/04/2018,5024510,"2,981.00",The Great Outdoor Gym Company
Childrens Services,Cultural and Related Services,Open Spaces,Parks & Open Spaces Man&Admin,Repairs and Maintenance - Responsive - Buildings,16/04/2018,5024570,710.00,JC Coster (Metalworks) Ltd
Childrens Services,Cultural and Related Services,Open Spaces,Mile End Park,Repairs and Maintenance - Responsive - Buildings,16/04/2018,5025018,"3,700.00",J&L Coster (Drainage) Ltd
Childrens Services,Children's Social Care,Children Looked After,Staying Put,Childrens Act Section 23 - Placement Fee,16/04/2018,5025032,"5,207.14",West Sussex County Council
Childrens Services,Education Services,Other Strategic Functions,Alternative Provision,Services - Professional Fees - Consultants Fees,16/04/2018,5025050,"5,000.00",JPW CONSULTANCY SERVICES LTD
Childrens Services,Cultural and Related Services,Open Spaces,Mile End Park,Repairs and Maintenance - Responsive - Buildings,16/04/2018,5025625,"1,600.00",J&L Coster (Drainage) Ltd
Childrens Services,Cultural and Related Services,Open Spaces,Mile End Park,Repairs and Maintenance - Responsive - Buildings,16/04/2018,5025640,430.00,J&L Coster (Drainage) Ltd
Childrens Services,Education Services,Secondary Schools,Trade Union Facilities,Agency Staff - TradUn&PubDuties,16/04/2018,5025830,"13,351.00",Central Foundation Girls School
Childrens Services,Children's Social Care,Support Service and Management Costs,Sch. Meals A/c - Central Production Unit,Kitchen Supplies - Food and Beverages,16/04/2018,5025985,333.00,William White Meats Ltd
Childrens Services,Children's Social Care,Support Service and Management Costs,Schools Catering,Kitchen Supplies - Food and Beverages,16/04/2018,5026324,376.45,William White Meats Ltd
Childrens Services,Children's Social Care,Support Service and Management Costs,Schools Catering,Kitchen Supplies - Food and Beverages,16/04/2018,5026326,337.84,William White Meats Ltd
Childrens Services,Children's Social Care,Support Service and Management Costs,Schools Catering,Kitchen Supplies - Food and Beverages,16/04/2018,5026352,382.00,William White Meats Ltd
Childrens Services,Children's Social Care,Support Service and Management Costs,Schools Catering,Kitchen Supplies - Food and Beverages,16/04/2018,5030339,443.69,William White Meats Ltd
Childrens Services,Education Services,Other Strategic Functions,Music Trading Account,Third Party Payments - Voluntary Associations,16/04/2018,5030511,"3,000.00",Bow Arts Trust
Childrens Services,Cultural and Related Services,Open Spaces,Mile End Park,Repairs and Maintenance - Responsive - Buildings,16/04/2018,5030533,"1,650.00",J&L Coster (Drainage) Ltd
Childrens Services,Education Services,Early Years,Children Centre Central Team,Third Party Payments - Voluntary Associations,16/04/2018,5030554,"6,374.50",Toyhouse
Childrens Services,Children's Social Care,Family Support Services,Eva Armsby Family Centre,Computing - Purchase of Software,16/04/2018,5030617,275.46,Specialist Computer Centres PLC
Childrens Services,Children's Social Care,Family Support Services,Short Breaks and Family Support,Third Party Payments - Voluntary Associations,16/04/2018,5030629,"15,891.39",Childrens Specialist Services SENSE
Childrens Services,Education Services,Other Strategic Functions,Health through Education,Room Hire,16/04/2018,5030631,258.75,Greenwich Leisure LTD
Childrens Services,Cultural and Related Services,Open Spaces,Mile End Park,Repairs and Maintenance - Responsive - Buildings,16/04/2018,5030683,440.00,J&L Coster (Drainage) Ltd
Childrens Services,Cultural and Related Services,Open Spaces,Mile End Park,Repairs and Maintenance - Responsive - Buildings,16/04/2018,5030684,780.00,J&L Coster (Drainage) Ltd
Childrens Services,Children's Social Care,Family Support Services,Short Breaks and Family Support,Third Party Payments - Voluntary Associations,16/04/2018,5030707,"21,741.41",Childrens Specialist Services SENSE
Childrens Services,Cultural and Related Services,Open Spaces,Mile End Park,Repairs and Maintenance - Responsive - Buildings,16/04/2018,5030718,250.00,J&L Coster (Drainage) Ltd
Childrens Services,Cultural and Related Services,Recreation & Sport,London Youth Games,Payments to Private Contractors - Sports Club Support,16/04/2018,5031068,"7,000.00",London Youth Games
Childrens Services,Children's Social Care,Children Looked After,S23-Resi-P&V/OLA-Child Home,Childrens Act Section 23 - Non-Contact Trans/Travel Costs,16/04/2018,5031428,"3,001.20",Wrixon Care Services
Childrens Services,Education Services,Other Education and Community Budget,Community Languages,Catering - Hospitality,16/04/2018,5031434,"1,218.50",Biryani Hut Ltd
Childrens Services,Cultural and Related Services,Open Spaces,Victoria Park,Events & Exhibition Supplies,16/04/2018,5031832,390.00,Fishing London Ltd
Childrens Services,Children's Social Care,Support Service and Management Costs,Schools Catering,Repairs and Maintenance - Responsive - General,16/04/2018,5032088,522.00,Lambourne Refrigeration
Childrens Services,Children's Social Care,Children Looked After,S23-Resi-P&V/OLA-Child Home,Childrens Act Section 23 - Placement Fee,16/04/2018,5033285,"12,000.00",holibrook Care Services Ltd
Childrens Services,Children's Social Care,Children Looked After,S23 Family Placements P&V,Childrens Act Section 23 - Placement Fee,16/04/2018,5033342,"5,601.24",Credo Care ltd
Childrens Services,Children's Social Care,Children Looked After,S23 Family Placements P&V,Childrens Act Section 23 - Placement Fee,16/04/2018,5033343,"4,000.00",Credo Care ltd
Childrens Services,Children's Social Care,Family Support Services,Short Breaks and Family Support,Third Party Payments - Voluntary Associations,16/04/2018,5033395,"22,520.40",QALB Centre Short Break Services
Childrens Services,Children's Social Care,Children Looked After,S23 Fam Pl P&V-F/Care,Childrens Act Section 23 - Placement Fee,16/04/2018,5033524,"8,580.00",Shared Care Services Ltd
Childrens Services,Children's Social Care,Children Looked After,S23-Other-Prison,Childrens Act Section 23 - Placement Fee,16/04/2018,5033529,"2,101.00",The Youth Justice Board
Childrens Services,Children's Social Care,Children Looked After,S23-Resi-P&V/OLA-Child Home,Childrens Act Section 23 - Placement Fee,16/04/2018,5033555,"12,000.00",holibrook Care Services Ltd
Childrens Services,Children's Social Care,Children Looked After,S23-Resi-P&V/OLA-Child Home,Childrens Act Section 23 - Placement Fee,16/04/2018,5033577,"13,285.71",holibrook Care Services Ltd
Childrens Services,Children's Social Care,Other Children's and Family Services,Permanancy and Adoption Support Team 1,Services - Professional Fees - Legal Fees/Expenses,16/04/2018,5033659,803.00,S Smith Social Work Services Ltd
Childrens Services,Education Services,Other Strategic Functions,SLS - SEN Training SLA,Services - Professional Fees - Training,16/04/2018,5033704,390.00,Swiss Cottage School
Childrens Services,Education Services,Other Strategic Functions,Auxilary Aids,Training Expenses - Staff External Training (UK Based),16/04/2018,5033770,427.30,Ewing Foundation
Childrens Services,Children's Social Care,Children Looked After,S23-Resi-P&V/OLA-Sec Acc-Wel,Childrens Act Section 23 - Secure Review Costs,16/04/2018,5034020,757.11,Coram Voice
Childrens Services,Cultural and Related Services,Open Spaces,Victoria Park,Repairs and Maintenance - Responsive - Repair & Maintenance,16/04/2018,5035075,"5,290.53",Manpower Direct UK
Childrens Services,Children's Social Care,Children Looked After,S23-Resi-P&V/OLA-Sec Acc-Wel,Childrens Act Section 23 - Non-Contact Trans/Travel Costs,16/04/2018,5035487,881.00,Wrixon Care Services
Childrens Services,Children's Social Care,Support Service and Management Costs,Sch. Meals A/c - George Green,Kitchen Supplies - Food and Beverages,16/04/2018,5035494,426.24,Chicken Joes
Childrens Services,Children's Social Care,Support Service and Management Costs,Sch. Meals A/c - C.F.S. Upper (Harley Grove),Kitchen Supplies - Food and Beverages,16/04/2018,5035495,695.35,Chicken Joes
Childrens Services,Children's Social Care,Support Service and Management Costs,Swanlea,Kitchen Supplies - Food and Beverages,16/04/2018,5035496,510.85,Chicken Joes
Childrens Services,Children's Social Care,Support Service and Management Costs,Sch. Meals A/c - Mulberry,Kitchen Supplies - Food and Beverages,16/04/2018,5035497,406.65,Chicken Joes
Childrens Services,Children's Social Care,Children Looked After,S23 Fam Pl In-Hse-For Adopt,Childrens Act Section 23 - Inter-Agency Fees,16/04/2018,5035512,"9,900.00",Bexley Council
Childrens Services,Education Services,Other Strategic Functions,Special Education Needs DSG,Third Party Payments - Payments to Schools,16/04/2018,5035535,"14,350.00",Moor House School and College
Childrens Services,Children's Social Care,Family Support Services,Short Breaks and Family Support,Third Party Payments - Voluntary Associations,16/04/2018,5035565,"130,000.00",QALB Centre Short Break Services
Childrens Services,Children's Social Care,Support Service and Management Costs,Sch. Meals A/c - George Green,Kitchen Supplies - Food and Beverages,16/04/2018,5035601,352.96,Chicken Joes
Childrens Services,Children's Social Care,Support Service and Management Costs,Sch. Meals A/c - Mulberry,Kitchen Supplies - Food and Beverages,16/04/2018,5035605,291.64,Chicken Joes
Childrens Services,Children's Social Care,Support Service and Management Costs,Swanlea,Kitchen Supplies - Food and Beverages,16/04/2018,5035606,474.10,Chicken Joes
Childrens Services,Children's Social Care,Support Service and Management Costs,Sch. Meals A/c - C.F.S. Upper (Harley Grove),Kitchen Supplies - Food and Beverages,16/04/2018,5035608,612.90,Chicken Joes
Childrens Services,Children's Social Care,Support Service and Management Costs,Sch. Meals A/c - George Green,Kitchen Supplies - Food and Beverages,16/04/2018,5035621,426.64,Chicken Joes
Childrens Services,Children's Social Care,Support Service and Management Costs,Swanlea,Kitchen Supplies - Food and Beverages,16/04/2018,5035622,408.18,Chicken Joes
Childrens Services,Children's Social Care,Support Service and Management Costs,Sch. Meals A/c - C.F.S. Upper (Harley Grove),Kitchen Supplies - Food and Beverages,16/04/2018,5035624,637.70,Chicken Joes
Childrens Services,Children's Social Care,Support Service and Management Costs,Sch. Meals A/c - Mulberry,Kitchen Supplies - Food and Beverages,16/04/2018,5035625,366.04,Chicken Joes
Childrens Services,Education Services,Other Strategic Functions,Music Trading Account,Third Party Payments - Voluntary Associations,16/04/2018,5035677,"1,500.00",East London Dance
Childrens Services,Education Services,Other Strategic Functions,Music Trading Account,Third Party Payments - Voluntary Associations,16/04/2018,5035678,"5,000.00",East London Dance
Childrens Services,Children's Social Care,Children Looked After,S23 Fam Pl In-Hse-For Adopt,Childrens Act Section 23 - Inter-Agency Fees,16/04/2018,5036028,"27,000.00",London Borough of Waltham Forest
Childrens Services,Cultural and Related Services,Open Spaces,Parks & Open Spaces Man&Admin,Repairs and Maintenance - Responsive - Buildings,18/04/2018,5023669,"3,100.00",The Play Inspection Company
Childrens Services,Children's Social Care,Support Service and Management Costs,Sch. Meals A/c - Central Production Unit,Kitchen Supplies - Food and Beverages,18/04/2018,5023688,"2,063.89",Thomas Ridley & Son Ltd
Childrens Services,Children's Social Care,Service Strategy,Children's Placement Team,Services - Professional Fees - Training,18/04/2018,5023722,525.00,Curve Solutions
Childrens Services,Children's Social Care,Support Service and Management Costs,Schools Catering,Kitchen Supplies - Food and Beverages,18/04/2018,5023772,280.58,Thomas Ridley & Son Ltd
Childrens Services,Children's Social Care,Support Service and Management Costs,Schools Catering,Kitchen Supplies - Food and Beverages,18/04/2018,5023809,"1,216.12",Thomas Ridley & Son Ltd
Childrens Services,Children's Social Care,Support Service and Management Costs,Schools Catering,Kitchen Supplies - Food and Beverages,18/04/2018,5023816,298.11,Thomas Ridley & Son Ltd
Childrens Services,Children's Social Care,Support Service and Management Costs,Schools Catering,Kitchen Supplies - Food and Beverages,18/04/2018,5023823,276.48,Thomas Ridley & Son Ltd
Childrens Services,Children's Social Care,Support Service and Management Costs,Schools Catering,Kitchen Supplies - Food and Beverages,18/04/2018,5023838,468.09,Thomas Ridley & Son Ltd
Childrens Services,Children's Social Care,Support Service and Management Costs,Schools Catering,Kitchen Supplies - Food and Beverages,18/04/2018,5023843,843.03,Thomas Ridley & Son Ltd
Childrens Services,Children's Social Care,Support Service and Management Costs,Schools Catering,Kitchen Supplies - Food and Beverages,18/04/2018,5023851,334.79,Thomas Ridley & Son Ltd
Childrens Services,Children's Social Care,Support Service and Management Costs,Schools Catering,Kitchen Supplies - Food and Beverages,18/04/2018,5023858,538.09,Thomas Ridley & Son Ltd
Childrens Services,Children's Social Care,Support Service and Management Costs,Schools Catering,Kitchen Supplies - Food and Beverages,18/04/2018,5023863,275.87,Thomas Ridley & Son Ltd
Childrens Services,Children's Social Care,Support Service and Management Costs,Schools Catering,Kitchen Supplies - Food and Beverages,18/04/2018,5023869,655.59,Thomas Ridley & Son Ltd
Childrens Services,Children's Social Care,Support Service and Management Costs,Schools Catering,Kitchen Supplies - Food and Beverages,18/04/2018,5023874,417.96,Thomas Ridley & Son Ltd
Childrens Services,Children's Social Care,Support Service and Management Costs,Schools Catering,Kitchen Supplies - Food and Beverages,18/04/2018,5023881,334.83,Thomas Ridley & Son Ltd
Childrens Services,Children's Social Care,Support Service and Management Costs,Schools Catering,Kitchen Supplies - Food and Beverages,18/04/2018,5023900,591.87,Thomas Ridley & Son Ltd
Childrens Services,Children's Social Care,Support Service and Management Costs,Schools Catering,Kitchen Supplies - Food and Beverages,18/04/2018,5023906,586.65,Thomas Ridley & Son Ltd
Childrens Services,Children's Social Care,Support Service and Management Costs,Schools Catering,Kitchen Supplies - Food and Beverages,18/04/2018,5023911,309.68,Thomas Ridley & Son Ltd
Childrens Services,Children's Social Care,Support Service and Management Costs,Schools Catering,Kitchen Supplies - Food and Beverages,18/04/2018,5023928,428.24,Thomas Ridley & Son Ltd
Childrens Services,Children's Social Care,Support Service and Management Costs,Schools Catering,Kitchen Supplies - Food and Beverages,18/04/2018,5023939,783.47,Thomas Ridley & Son Ltd
Childrens Services,Children's Social Care,Support Service and Management Costs,Schools Catering,Kitchen Supplies - Food and Beverages,18/04/2018,5023945,352.25,Thomas Ridley & Son Ltd
Childrens Services,Children's Social Care,Support Service and Management Costs,Schools Catering,Kitchen Supplies - Food and Beverages,18/04/2018,5023949,340.68,Thomas Ridley & Son Ltd
Childrens Services,Children's Social Care,Support Service and Management Costs,Schools Catering,Kitchen Supplies - Food and Beverages,18/04/2018,5023955,645.54,Thomas Ridley & Son Ltd
Childrens Services,Children's Social Care,Support Service and Management Costs,Schools Catering,Kitchen Supplies - Food and Beverages,18/04/2018,5023957,281.63,Thomas Ridley & Son Ltd
Childrens Services,Children's Social Care,Support Service and Management Costs,Schools Catering,Kitchen Supplies - Food and Beverages,18/04/2018,5023959,810.88,Thomas Ridley & Son Ltd
Childrens Services,Children's Social Care,Support Service and Management Costs,Schools Catering,Kitchen Supplies - Food and Beverages,18/04/2018,5023964,432.17,Thomas Ridley & Son Ltd
Childrens Services,Children's Social Care,Support Service and Management Costs,Schools Catering,Kitchen Supplies - Food and Beverages,18/04/2018,5023966,279.11,Thomas Ridley & Son Ltd
Childrens Services,Children's Social Care,Support Service and Management Costs,Schools Catering,Kitchen Supplies - Food and Beverages,18/04/2018,5023970,717.34,Thomas Ridley & Son Ltd
Childrens Services,Children's Social Care,Support Service and Management Costs,Schools Catering,Kitchen Supplies - Food and Beverages,18/04/2018,5023977,285.14,Thomas Ridley & Son Ltd
Childrens Services,Children's Social Care,Support Service and Management Costs,Schools Catering,Kitchen Supplies - Food and Beverages,18/04/2018,5023979,413.95,Thomas Ridley & Son Ltd
Childrens Services,Education Services,Early Years,Children Centre Central Team,Training Expenses - Staff External Training (UK Based),18/04/2018,5024509,830.00,Olga Primary School
Childrens Services,Children's Social Care,Children Looked After,S23 Fam Pl P&V-F/Care,Childrens Act Section 23 - Placement Fee,18/04/2018,5024513,"3,220.20",Quality Foster Care Ltd
Childrens Services,Education Services,Other Strategic Functions,High Needs FE Colleges,Third Party Payments - Payments to Schools,18/04/2018,5024529,"1,674.65",Capel Manor College
Childrens Services,Children's Social Care,Family Support Services,Tackling Troubled Families,Computing - Purchase of Software,18/04/2018,5024535,"3,990.00",Agilisys Professional Services
Childrens Services,Education Services,Other Strategic Functions,Central Pupil Database Project,Computing - Purchase of Software,18/04/2018,5024537,511.00,Agilisys Professional Services
Childrens Services,Education Services,Other Strategic Functions,Project Costs and Training,Services - Professional Fees - Consultants Fees,18/04/2018,5024538,"7,222.00",Agilisys Professional Services
Childrens Services,Children's Social Care,Support Service and Management Costs,Schools Catering,Kitchen Supplies - Food and Beverages,18/04/2018,5024609,887.30,Thomas Ridley & Son Ltd
Childrens Services,Children's Social Care,Support Service and Management Costs,Swanlea,Kitchen Supplies - Food and Beverages,18/04/2018,5024610,"1,776.44",Thomas Ridley & Son Ltd
Childrens Services,Children's Social Care,Children Looked After,Virtual School PPG,Agency Staff - Associations,18/04/2018,5024619,690.45,Academics ltd
Childrens Services,Children's Social Care,Children Looked After,Virtual School PPG,Agency Staff - Associations,18/04/2018,5024620,920.60,Academics ltd
Childrens Services,Children's Social Care,Children Looked After,Virtual School PPG,Agency Staff - Associations,18/04/2018,5024621,920.60,Academics ltd
Childrens Services,Children's Social Care,Children Looked After,Virtual School PPG,Agency Staff - Associations,18/04/2018,5024622,690.45,Academics ltd
Childrens Services,Children's Social Care,Children Looked After,Virtual School PPG,Agency Staff - Associations,18/04/2018,5024623,"1,150.75",Academics ltd
Childrens Services,Children's Social Care,Children Looked After,Virtual School PPG,Agency Staff - Associations,18/04/2018,5024624,920.60,Academics ltd
Childrens Services,Education Services,Other Strategic Functions,High Needs Academies & Free Schs,Third Party Payments - Payments to Schools,18/04/2018,5024650,"9,764.71",City Gateway 14-19 Provision
Childrens Services,Children's Social Care,Youth Justice,YJB-Core,Computing - Purchase of Software,18/04/2018,5024699,365.00,Agilisys Professional Services
Childrens Services,Education Services,Other Strategic Functions,Central Pupil Database Project,Computing - Purchase of Software,18/04/2018,5024700,"5,840.00",Agilisys Professional Services
Childrens Services,Cultural and Related Services,Open Spaces,Parks & Open Spaces Man&Admin,Repairs and Maintenance - Responsive - Buildings,18/04/2018,5024708,680.00,JC Coster (Metalworks) Ltd
Childrens Services,Children's Social Care,Support Service and Management Costs,Schools Catering,Kitchen Supplies - Food and Beverages,18/04/2018,5024726,513.47,Thomas Ridley & Son Ltd
Childrens Services,Children's Social Care,Support Service and Management Costs,Schools Catering,Kitchen Supplies - Food and Beverages,18/04/2018,5024751,610.79,Thomas Ridley & Son Ltd
Childrens Services,Children's Social Care,Youth Justice,YJB-Core,Computing - Purchase of Software,18/04/2018,5024758,"2,336.00",Agilisys Professional Services
Childrens Services,Children's Social Care,Support Service and Management Costs,Schools Catering,Kitchen Supplies - Food and Beverages,18/04/2018,5024763,366.18,Thomas Ridley & Son Ltd
Childrens Services,Children's Social Care,Support Service and Management Costs,Schools Catering,Kitchen Supplies - Food and Beverages,18/04/2018,5024777,252.14,Thomas Ridley & Son Ltd
Childrens Services,Children's Social Care,Children Looked After,S23 Fam Pl P&V-F/Care,Childrens Act Section 23 - Commissioned Services,18/04/2018,5024953,"1,290.82",The Transformed You Community Interest Company
Childrens Services,Children's Social Care,Support Service and Management Costs,Schools Catering,Kitchen Supplies - Food and Beverages,18/04/2018,5025021,319.48,Thomas Ridley & Son Ltd
Childrens Services,Cultural and Related Services,Open Spaces,Mile End Park,Repairs and Maintenance - Responsive - Buildings,18/04/2018,5025938,960.00,JC Coster (Metalworks) Ltd
Childrens Services,Children's Social Care,Support Service and Management Costs,Welfare Catering,Kitchen Supplies - Food and Beverages,18/04/2018,5026060,337.85,William White Meats Ltd
Childrens Services,Children's Social Care,Support Service and Management Costs,Schools Catering,Kitchen Supplies - Food and Beverages,18/04/2018,5026193,499.72,William White Meats Ltd
Childrens Services,Children's Social Care,Services for young people,Youth Service Management,SLA Services (Expenditure) - Service Level Agreements,18/04/2018,5026318,840.00,15billion
Childrens Services,Children's Social Care,Support Service and Management Costs,Schools Catering,Kitchen Supplies - Food and Beverages,18/04/2018,5026334,274.50,William White Meats Ltd
Childrens Services,Children's Social Care,Support Service and Management Costs,Schools Catering,Kitchen Supplies - Food and Beverages,18/04/2018,5026351,274.50,William White Meats Ltd
Childrens Services,Children's Social Care,Support Service and Management Costs,Schools Catering,Kitchen Supplies - Food and Beverages,18/04/2018,5026355,673.03,William White Meats Ltd
Childrens Services,Children's Social Care,Support Service and Management Costs,Schools Catering,Kitchen Supplies - Food and Beverages,18/04/2018,5030330,366.00,William White Meats Ltd
Childrens Services,Children's Social Care,Support Service and Management Costs,Schools Catering,Kitchen Supplies - Food and Beverages,18/04/2018,5030338,457.50,William White Meats Ltd
Childrens Services,Children's Social Care,Support Service and Management Costs,Schools Catering,Kitchen Supplies - Food and Beverages,18/04/2018,5030354,482.04,William White Meats Ltd
Childrens Services,Children's Social Care,Support Service and Management Costs,Sch. Meals A/c - George Green,Kitchen Supplies - Food and Beverages,18/04/2018,5030444,291.00,Peros Limited
Childrens Services,Children's Social Care,Support Service and Management Costs,Sch. Meals A/c - C.F.S. Upper (Harley Grove),Kitchen Supplies - Food and Beverages,18/04/2018,5030445,261.20,Peros Limited
Childrens Services,Education Services,Early Years,SSEYCG Development Staffing,Educational/Training Supplies - Arts & Crafts,18/04/2018,5030467,605.75,Eduzone Ltd
Childrens Services,Children's Social Care,Services for young people,Youth Service Management,Educational/Training Supplies - Books,18/04/2018,5030502,463.80,Asdan Limited
Childrens Services,Education Services,Other Strategic Functions,High Needs Other Boroughs,Third Party Payments - Payments to Schools,18/04/2018,5030519,"31,107.00",City Of London Corporation
Childrens Services,Children's Social Care,Commissioning and Social Work,MASH Team,Computing - Purchase of Software,18/04/2018,5030622,347.46,Specialist Computer Centres PLC
Childrens Services,Children's Social Care,Support Service and Management Costs,Welfare Catering,Kitchen Supplies - Food and Beverages,18/04/2018,5030726,"1,466.10",Raj Foods LTD
Childrens Services,Education Services,Other Strategic Functions,High Needs Academies & Free Schs,Third Party Payments - Payments to Schools,18/04/2018,5031007,"6,900.00",Medway Council
Childrens Services,Cultural and Related Services,Open Spaces,Parks & Open Spaces Man&Admin,Repairs and Maintenance - Responsive - Buildings,18/04/2018,5031037,400.00,J&L Coster (Drainage) Ltd
Childrens Services,Cultural and Related Services,Open Spaces,Mile End Park,Repairs and Maintenance - Responsive - Buildings,18/04/2018,5031038,280.00,J&L Coster (Drainage) Ltd
Childrens Services,Cultural and Related Services,Open Spaces,Mile End Park,Repairs and Maintenance - Responsive - Buildings,18/04/2018,5031142,500.00,J&L Coster (Drainage) Ltd
Childrens Services,Children's Social Care,Children Looked After,S23 Fam Pl In-Hse-For Adopt,Childrens Act Section 23 - Inter-Agency Fees,18/04/2018,5031754,"9,900.00",Reading Borough Council
Childrens Services,Children's Social Care,Children Looked After,S23 Fam Pl In-Hse-S/Term F/C,Childrens Act Section 23 - Non-Contact Trans/Travel Costs,18/04/2018,5031842,675.00,Mile End Car Hire Limited
Childrens Services,Children's Social Care,Support Service and Management Costs,Schools Catering,Repairs and Maintenance - Responsive - General,18/04/2018,5033155,526.00,Lambourne Refrigeration
Childrens Services,Children's Social Care,Children Looked After,Virtual School PPG,Third Party Payments - Payments to Schools,18/04/2018,5033475,"1,200.00",BARRINGTON PRIMARY SCHOOL
Childrens Services,Education Services,Other Strategic Functions,High Needs Other Boroughs,Third Party Payments - Payments to Schools,18/04/2018,5033953,"10,862.47",Medway Council
Childrens Services,Education Services,Other Strategic Functions,CS Finance Trading Account,Training Expenses - Staff External Training (UK Based),18/04/2018,5035449,"16,830.00",Frontline Data Ltd
Childrens Services,Children's Social Care,Children Looked After,S23-Resi-P&V/OLA-Sec Acc-Wel,Childrens Act Section 23 - Non-Contact Trans/Travel Costs,18/04/2018,5035599,"4,201.50",Wrixon Care Services
Childrens Services,Children's Social Care,Support Service and Management Costs,Sch. Meals A/c - George Green,Kitchen Supplies - Food and Beverages,18/04/2018,5035637,299.72,Chicken Joes
Childrens Services,Education Services,Early Years,SSEYCG Two Year Old Pilot,Third Party Payments - Voluntary Associations,18/04/2018,5036157,990.00,Allen Gardens Playgroup
Childrens Services,Education Services,Early Years,SSEYCG Two Year Old Pilot,Third Party Payments - Voluntary Associations,18/04/2018,5036158,"2,160.00",Avebury Playgroup
Childrens Services,Education Services,Early Years,SSEYCG Two Year Old Pilot,Third Party Payments - Voluntary Associations,18/04/2018,5036159,"11,430.00",Barnardo's
Childrens Services,Education Services,Early Years,SSEYCG Two Year Old Pilot,Third Party Payments - Voluntary Associations,18/04/2018,5036160,"6,570.00",Calvary Charismatic Baptist Church
Childrens Services,Education Services,Early Years,SSEYCG Two Year Old Pilot,Third Party Payments - Voluntary Associations,18/04/2018,5036161,"2,970.00",DATE PALM PRIMARY
Childrens Services,Education Services,Early Years,SSEYCG Two Year Old Pilot,Third Party Payments - Voluntary Associations,18/04/2018,5036162,990.00,Iqra Pre School
Childrens Services,Education Services,Early Years,SSEYCG Two Year Old Pilot,Third Party Payments - Voluntary Associations,18/04/2018,5036164,"2,160.00",New Birth Day Nursery
Childrens Services,Education Services,Early Years,SSEYCG Two Year Old Pilot,Third Party Payments - Voluntary Associations,18/04/2018,5036165,"2,160.00",Step By Step Nursery
Childrens Services,Education Services,Early Years,SSEYCG Two Year Old Pilot,Third Party Payments - Voluntary Associations,18/04/2018,5036166,720.00,TATE HOUSE PLAYGROUP
Childrens Services,Education Services,Early Years,3&4 Year old PVI�s,Third Party Payments - Voluntary Associations,18/04/2018,5036168,"9,639.00",ABERTOTS PLAY
Childrens Services,Education Services,Early Years,3&4 Year old PVI�s,Third Party Payments - Voluntary Associations,18/04/2018,5036169,"4,536.00",Allen Gardens Playgroup
Childrens Services,Education Services,Early Years,3&4 Year old PVI�s,Third Party Payments - Voluntary Associations,18/04/2018,5036170,"8,505.00",Avebury Playgroup
Childrens Services,Education Services,Early Years,3&4 Year old PVI�s,Third Party Payments - Voluntary Associations,18/04/2018,5036171,"3,402.00",BRAYFORD SQUARE PLAYGROUP
Childrens Services,Education Services,Early Years,3&4 Year old PVI�s,Third Party Payments - Voluntary Associations,18/04/2018,5036172,"5,103.00",Burdett Estate playgroup
Childrens Services,Education Services,Early Years,3&4 Year old PVI�s,Third Party Payments - Voluntary Associations,18/04/2018,5036173,"3,969.00",SOMALI INTEGRATION TEAM
Childrens Services,Education Services,Early Years,3&4 Year old PVI�s,Third Party Payments - Voluntary Associations,18/04/2018,5036174,"49,896.00",DATE PALM PRIMARY
Childrens Services,Education Services,Early Years,3&4 Year old PVI�s,Third Party Payments - Voluntary Associations,18/04/2018,5036175,"3,402.00",Dreammaker Day Nursery
Childrens Services,Education Services,Early Years,3&4 Year old PVI�s,Third Party Payments - Voluntary Associations,18/04/2018,5036176,"7,371.00",CITY GATEWAY
Childrens Services,Education Services,Early Years,3&4 Year old PVI�s,Third Party Payments - Voluntary Associations,18/04/2018,5036177,"15,309.00",CITY GATEWAY
Childrens Services,Education Services,Early Years,3&4 Year old PVI�s,Third Party Payments - Voluntary Associations,18/04/2018,5036178,"9,639.00",Account 3 Ltd
Childrens Services,Education Services,Early Years,3&4 Year old PVI�s,Third Party Payments - Voluntary Associations,18/04/2018,5036179,"15,309.00",Headstart Nursery
Childrens Services,Education Services,Early Years,3&4 Year old PVI�s,Third Party Payments - Voluntary Associations,18/04/2018,5036180,"2,268.00",Incy Wincy Stars Childcare Ltd
Childrens Services,Education Services,Early Years,3&4 Year old PVI�s,Third Party Payments - Voluntary Associations,18/04/2018,5036181,"7,371.00",Iqra Pre School
Childrens Services,Education Services,Early Years,3&4 Year old PVI�s,Third Party Payments - Voluntary Associations,18/04/2018,5036182,"9,072.00",ISLAND HOUSE PRE SCHOOL PLAYGROUP
Childrens Services,Education Services,Early Years,3&4 Year old PVI�s,Third Party Payments - Voluntary Associations,18/04/2018,5036183,"7,371.00",Jingle Jungle Nursery
Childrens Services,Education Services,Early Years,3&4 Year old PVI�s,Third Party Payments - Voluntary Associations,18/04/2018,5036184,"7,371.00",LANTERNS DAY NURSERY
Childrens Services,Education Services,Early Years,3&4 Year old PVI�s,Third Party Payments - Voluntary Associations,18/04/2018,5036185,"27,783.00",Lincoln Hall Playgroup
Childrens Services,Education Services,Early Years,3&4 Year old PVI�s,Third Party Payments - Voluntary Associations,18/04/2018,5036186,"4,536.00",Little St Matthias Pre School
Childrens Services,Education Services,Early Years,3&4 Year old PVI�s,Third Party Payments - Voluntary Associations,18/04/2018,5036187,"15,876.00",Mudchute Association
Childrens Services,Education Services,Early Years,3&4 Year old PVI�s,Third Party Payments - Voluntary Associations,18/04/2018,5036188,"11,907.00",Munchkins Playgroup
Childrens Services,Education Services,Early Years,3&4 Year old PVI�s,Third Party Payments - Voluntary Associations,18/04/2018,5036189,"19,845.00",Rainbow House
Childrens Services,Education Services,Early Years,3&4 Year old PVI�s,Third Party Payments - Voluntary Associations,18/04/2018,5036190,"9,072.00",Rainbow House
Childrens Services,Education Services,Early Years,3&4 Year old PVI�s,Third Party Payments - Voluntary Associations,18/04/2018,5036191,"2,268.00",RANWELL PLAYGROUP
Childrens Services,Education Services,Early Years,3&4 Year old PVI�s,Third Party Payments - Voluntary Associations,18/04/2018,5036193,"1,701.00",Scallywags Playgroup
Childrens Services,Education Services,Early Years,3&4 Year old PVI�s,Third Party Payments - Voluntary Associations,18/04/2018,5036194,"3,969.00",CATHOLIC CHILDREN'S SOCIETY(WESTMINSTER)
Childrens Services,Education Services,Early Years,3&4 Year old PVI�s,Third Party Payments - Voluntary Associations,18/04/2018,5036195,"4,536.00",TATE HOUSE PLAYGROUP
Childrens Services,Education Services,Early Years,3&4 Year old PVI�s,Third Party Payments - Voluntary Associations,18/04/2018,5036196,"5,103.00",TATE HOUSE PLAYGROUP
Childrens Services,Education Services,Early Years,3&4 Year old PVI�s,Third Party Payments - Voluntary Associations,18/04/2018,5036197,"6,237.00",SELECTIVE LEARNING
Childrens Services,Education Services,Early Years,3&4 Year old PVI�s,Third Party Payments - Voluntary Associations,18/04/2018,5036198,"14,742.00",Limehouse Arches Day Nursery
Childrens Services,Education Services,Early Years,3&4 Year old PVI�s,Third Party Payments - Voluntary Associations,18/04/2018,5036199,"11,907.00",The Pier Head Preparatory School
Childrens Services,Education Services,Early Years,3&4 Year old PVI�s,Third Party Payments - Voluntary Associations,18/04/2018,5036200,"3,969.00",New City College (Tower Hamlets Campus)
Childrens Services,Education Services,Early Years,3&4 Year old PVI�s,Third Party Payments - Voluntary Associations,18/04/2018,5036201,"9,639.00",Tower Hamlets Opportunity Group
Childrens Services,Education Services,Early Years,3&4 Year old PVI�s,Third Party Payments - Voluntary Associations,18/04/2018,5036202,"4,536.00",VERNON PLAYGROUP
Childrens Services,Education Services,Early Years,3&4 Year old PVI�s,Third Party Payments - Voluntary Associations,18/04/2018,5036203,"5,103.00",WAPPING PLAYGROUP
Childrens Services,Education Services,Early Years,3&4 Year old PVI�s,Third Party Payments - Voluntary Associations,18/04/2018,5036204,"3,969.00",WEAVERSFIELD COMMUNITY NURSERY
Childrens Services,Education Services,Early Years,Private Voluntary & Independant Extended Funding Hours,Third Party Payments - Voluntary Associations,18/04/2018,5036206,567.00,WAPPING PLAYGROUP
Childrens Services,Education Services,Early Years,Private Voluntary & Independant Extended Funding Hours,Third Party Payments - Voluntary Associations,18/04/2018,5036207,"1,134.00",The Pier Head Preparatory School
Childrens Services,Education Services,Early Years,Private Voluntary & Independant Extended Funding Hours,Third Party Payments - Voluntary Associations,18/04/2018,5036208,"2,268.00",SELECTIVE LEARNING
Childrens Services,Education Services,Early Years,Private Voluntary & Independant Extended Funding Hours,Third Party Payments - Voluntary Associations,18/04/2018,5036209,567.00,Scallywags Playgroup
Childrens Services,Education Services,Early Years,Private Voluntary & Independant Extended Funding Hours,Third Party Payments - Voluntary Associations,18/04/2018,5036210,"3,969.00",Rainbow House
Childrens Services,Education Services,Early Years,Private Voluntary & Independant Extended Funding Hours,Third Party Payments - Voluntary Associations,18/04/2018,5036211,567.00,Rainbow House
Childrens Services,Education Services,Early Years,Private Voluntary & Independant Extended Funding Hours,Third Party Payments - Voluntary Associations,18/04/2018,5036212,567.00,Little St Matthias Pre School
Childrens Services,Education Services,Early Years,Private Voluntary & Independant Extended Funding Hours,Third Party Payments - Voluntary Associations,18/04/2018,5036213,"7,938.00",Mudchute Association
Childrens Services,Education Services,Early Years,Private Voluntary & Independant Extended Funding Hours,Third Party Payments - Voluntary Associations,18/04/2018,5036214,"1,134.00",Munchkins Playgroup
Childrens Services,Education Services,Early Years,Private Voluntary & Independant Extended Funding Hours,Third Party Payments - Voluntary Associations,18/04/2018,5036215,567.00,ISLAND HOUSE PRE SCHOOL PLAYGROUP
Childrens Services,Education Services,Early Years,Private Voluntary & Independant Extended Funding Hours,Third Party Payments - Voluntary Associations,18/04/2018,5036216,"1,701.00",CITY GATEWAY
Childrens Services,Education Services,Early Years,Private Voluntary & Independant Extended Funding Hours,Third Party Payments - Voluntary Associations,18/04/2018,5036217,"1,134.00",Account 3 Ltd
Childrens Services,Education Services,Early Years,Private Voluntary & Independant Extended Funding Hours,Third Party Payments - Voluntary Associations,18/04/2018,5036218,"2,268.00",Headstart Nursery
Childrens Services,Education Services,Early Years,Private Voluntary & Independant Extended Funding Hours,Third Party Payments - Voluntary Associations,18/04/2018,5036219,567.00,SOMALI INTEGRATION TEAM
Childrens Services,Education Services,Early Years,Private Voluntary & Independant Extended Funding Hours,Third Party Payments - Voluntary Associations,18/04/2018,5036220,"6,237.00",DATE PALM PRIMARY
Childrens Services,Education Services,Early Years,Private Voluntary & Independant Extended Funding Hours,Third Party Payments - Voluntary Associations,18/04/2018,5036221,567.00,Dreammaker Day Nursery
Childrens Services,Education Services,Early Years,Private Voluntary & Independant Extended Funding Hours,Third Party Payments - Voluntary Associations,18/04/2018,5036222,567.00,Allen Gardens Playgroup
Childrens Services,Education Services,Early Years,Private Voluntary & Independant Extended Funding Hours,Third Party Payments - Voluntary Associations,18/04/2018,5036223,"5,103.00",Limehouse Arches Day Nursery
Childrens Services,Education Services,Early Years,3&4 Year old PVI�s,Third Party Payments - Voluntary Associations,18/04/2018,5036224,"2,268.00",Limehouse Arches Day Nursery
Childrens Services,Education Services,Early Years,3&4 Year old PVI�s,Third Party Payments - Voluntary Associations,18/04/2018,5036231,"6,932.70",New City College (Tower Hamlets Campus)
Childrens Services,Education Services,Early Years,3&4 Year old PVI�s,Third Party Payments - Voluntary Associations,18/04/2018,5036232,"1,080.00",Scallywags Playgroup
Childrens Services,Education Services,Early Years,3&4 Year old PVI�s,Third Party Payments - Voluntary Associations,18/04/2018,5036233,"1,557.00",Jingle Jungle Nursery
Childrens Services,Education Services,Early Years,3&4 Year old PVI�s,Third Party Payments - Voluntary Associations,18/04/2018,5036234,"24,090.00",Gatehouse Educational Trust Ltd
Childrens Services,Education Services,Early Years,3&4 Year old PVI�s,Third Party Payments - Voluntary Associations,18/04/2018,5036235,"1,080.00",BRIGHT HORIZONS FAMILY SOLUTION
Childrens Services,Cultural and Related Services,Culture & Heritage,Event Fund,Third Party Payments - Voluntary Associations,18/04/2018,5036240,800.00,Bangla Noboborsho Udjapon Parishod London
Childrens Services,Cultural and Related Services,Culture & Heritage,Event Fund,Third Party Payments - Voluntary Associations,18/04/2018,5036242,400.00,FRIENDS OF MILE END PARK
Childrens Services,Cultural and Related Services,Open Spaces,Victoria Park,Water Services - Metered,18/04/2018,5036285,868.83,CASTLE WATER
Childrens Services,Cultural and Related Services,Open Spaces,Parks & Open Spaces Man&Admin,Events & Exhibition Supplies,18/04/2018,5036427,360.00,Simply Hire LTD
Childrens Services,Education Services,Other Education and Community Budget,Community Languages,Stationery,18/04/2018,5036443,"1,014.55",Love2Reward
Childrens Services,Education Services,Other Strategic Functions,Ofsted Improvement Plan,Meeting Expenses,18/04/2018,5036898,"3,500.00",The Atrium London Ltd
Childrens Services,Education Services,Other Strategic Functions,Special Education Needs DSG,Third Party Payments - Payments to Schools,18/04/2018,5036928,"31,762.64",Cambian Autism Services Ltd
Childrens Services,Children's Social Care,Children Looked After,S23-Resi-P&V/OLA-Boarding Sch,Childrens Act Section 23 - Placement Fee,18/04/2018,5036928,"31,762.64",Cambian Autism Services Ltd
Childrens Services,Adult Social Care,Support Service and Management Costs,Non SLA Equipment,Computing - Purchase of Hardware,20/04/2018,5021697,"7,360.00",Highgate IT
Childrens Services,Cultural and Related Services,Recreation & Sport,Sports Development,Recreational Activities,20/04/2018,5023742,540.00,Access Sport
Childrens Services,Children's Social Care,Support Service and Management Costs,Sch. Meals A/c - Central Production Unit,Kitchen Supplies - Food and Beverages,20/04/2018,5024611,586.87,Thomas Ridley & Son Ltd
Childrens Services,Children's Social Care,Support Service and Management Costs,Schools Catering,Kitchen Supplies - Food and Beverages,20/04/2018,5024785,588.11,Thomas Ridley & Son Ltd
Childrens Services,Children's Social Care,Support Service and Management Costs,Schools Catering,Kitchen Supplies - Food and Beverages,20/04/2018,5024791,318.46,Thomas Ridley & Son Ltd
Childrens Services,Children's Social Care,Support Service and Management Costs,Schools Catering,Kitchen Supplies - Food and Beverages,20/04/2018,5024808,438.51,Thomas Ridley & Son Ltd
Childrens Services,Children's Social Care,Support Service and Management Costs,Schools Catering,Kitchen Supplies - Food and Beverages,20/04/2018,5024814,544.15,Thomas Ridley & Son Ltd
Childrens Services,Children's Social Care,Support Service and Management Costs,Schools Catering,Kitchen Supplies - Food and Beverages,20/04/2018,5024822,417.42,Thomas Ridley & Son Ltd
Childrens Services,Children's Social Care,Support Service and Management Costs,Schools Catering,Kitchen Supplies - Food and Beverages,20/04/2018,5024830,506.83,Thomas Ridley & Son Ltd
Childrens Services,Children's Social Care,Support Service and Management Costs,Schools Catering,Kitchen Supplies - Food and Beverages,20/04/2018,5024841,493.22,Thomas Ridley & Son Ltd
Childrens Services,Children's Social Care,Support Service and Management Costs,Schools Catering,Kitchen Supplies - Food and Beverages,20/04/2018,5024851,828.95,Thomas Ridley & Son Ltd
Childrens Services,Children's Social Care,Support Service and Management Costs,Schools Catering,Kitchen Supplies - Food and Beverages,20/04/2018,5024857,377.10,Thomas Ridley & Son Ltd
Childrens Services,Education Services,Other Strategic Functions,Parental Engagement,Newspapers and Magazines - General Purchases,20/04/2018,5024978,500.00,Carmen Valino
Childrens Services,No Service Specified,No Division Specified,Capital-Minor Works (SC),Building Works - Main Works,20/04/2018,5025015,450.00,J&L Coster (Drainage) Ltd
Childrens Services,Children's Social Care,Support Service and Management Costs,Swanlea,Kitchen Supplies - Food and Beverages,20/04/2018,5025023,441.59,Thomas Ridley & Son Ltd
Childrens Services,Children's Social Care,Support Service and Management Costs,"Mulberry Caf�		",Kitchen Supplies - Food and Beverages,20/04/2018,5025024,408.82,Thomas Ridley & Son Ltd
Childrens Services,Children's Social Care,Children Looked After,LCS/Allowances-Accom,Leaving Care Financial Assistance - Grant Pay Special Needs,20/04/2018,5025052,279.00,Light Touch Accomodation Ltd
Childrens Services,Children's Social Care,Children Looked After,Leaving Care-UASC,Leaving Care Financial Assistance - Supp Accom/Hous Rents,20/04/2018,5025053,"3,093.62",Light Touch Accomodation Ltd
Childrens Services,Children's Social Care,Children Looked After,Leaving Care-UASC,Leaving Care Financial Assistance - Supp Accom/Hous Rents,20/04/2018,5025054,"4,774.11",Light Touch Accomodation Ltd
Childrens Services,Children's Social Care,Children Looked After,Leaving Care-UASC,Leaving Care Financial Assistance - Supp Accom/Hous Rents,20/04/2018,5025055,"4,774.11",Light Touch Accomodation Ltd
Childrens Services,Children's Social Care,Children Looked After,Leaving Care-UASC,Leaving Care Financial Assistance - Supp Accom/Hous Rents,20/04/2018,5025057,"4,774.11",Light Touch Accomodation Ltd
Childrens Services,Children's Social Care,Children Looked After,Leaving Care-UASC,Leaving Care Financial Assistance - Supp Accom/Hous Rents,20/04/2018,5025058,"4,774.11",Light Touch Accomodation Ltd
